Workbook

Sheet 1. 매수매도 총잔량
A3: 2024-11-19
A4: 시간 | B4: 매도총잔량 | C4: 매도건수 | D4: 매수총잔량 | E4: 매수건수 | F4: 순매수총잔량 | G4: 선물지수 | H4: 순매수건수 | I4: 평균계약수
A5: 45615.65694 | B5: 3186 | C5: 659 | D5: 4150 | E5: 950 | F5: 964 | G5: 329.4 | H5: 291 | I5: 3.312714777
B6: 건수당 계약수 | C6: 4.834597876 | D6: 건수당 계약수 | E6: 4.368421053 | F6: 건수당 계약수 | H6: -0.4661768229
A8: 시간 | B8: 매도총잔량 | C8: 매도건수 | D8: 매수총잔량 | E8: 매수건수 | F8: 순매수총잔량 | G8: 선물지수 | H8: 순매수건수 | I8: 평균계약수
A9: 08:40:00 | B9: 9672 | C9: 1111 | D9: 9704 | E9: 1068 | F9: 32 | G9: 327.65 | H9: =(D9/E9)-(B9/C9) -> 0.380471755 | I9: =(D9-B9)/(E9-C9) -> -0.7441860465
A10: 08:41:00 | B10: 9735 | C10: 1126 | D10: 9642 | E10: 1082 | F10: -93 | G10: 327.65 | H10: =(D10/E10)-(B10/C10) -> 0.2656271033 | I10: =(D10-B10)/(E10-C10) -> 2.113636364
A11: 08:42:00 | B11: 9894 | C11: 1148 | D11: 9676 | E11: 1110 | F11: -218 | G11: 327.65 | H11: =(D11/E11)-(B11/C11) -> 0.09865021816 | I11: 5.736842105
A12: 08:43:00 | B12: 9919 | C12: 1170 | D12: 9716 | E12: 1128 | F12: -203 | G12: 327.65 | H12: 0.1356973995 | I12: 4.833333333
A13: 08:44:00 | B13: 9764 | C13: 1180 | D13: 7894 | E13: 980 | F13: -1870 | G13: 327.65 | H13: -0.2194742304 | I13: 9.35
A14: 08:45:00 | B14: 10255 | C14: 1306 | D14: 8441 | E14: 1146 | F14: -1814 | G14: 327.65 | H14: -0.4866009744 | I14: 11.3375
A15: 08:46:00 | B15: 10555 | C15: 1421 | D15: 9092 | E15: 1293 | F15: -1463 | G15: 328.15 | H15: -0.3961584954 | I15: 11.4296875
A16: 08:47:00 | B16: 10470 | C16: 1445 | D16: 9376 | E16: 1463 | F16: -1094 | G16: 328.35 | H16: -0.8369255949 | I16: -60.77777778
A17: 08:48:00 | B17: 10612 | C17: 1532 | D17: 9317 | E17: 1432 | F17: -1295 | G17: 328.25 | H17: -0.4206080342 | I17: 12.95
A18: 08:49:00 | B18: 10802 | C18: 1632 | D18: 9279 | E18: 1429 | F18: -1523 | G18: 328.1 | H18: -0.1255205546 | I18: 7.502463054
A19: 08:50:00 | B19: 10980 | C19: 1667 | D19: 9001 | E19: 1376 | F19: -1979 | G19: 327.8 | H19: -0.04525824486 | I19: 6.800687285
A20: 08:51:00 | B20: 10860 | C20: 1629 | D20: 9345 | E20: 1522 | F20: -1515 | G20: 328.05 | H20: -0.5267192291 | I20: =(D20-B20)/(E20-C20) -> 14.1588785
A21: 08:52:00 | B21: 10972 | C21: 1697 | D21: 9439 | E21: 1579 | F21: -1533 | G21: 328.05 | H21: -0.4876933291 | I21: 12.99152542
A22: 08:53:00 | B22: 10803 | C22: 1671 | D22: 9505 | E22: 1623 | F22: -1298 | G22: 328.15 | H22: -0.6085523296 | I22: =(D22-B22)/(E22-C22) -> 27.04166667
A23: 08:54:00 | B23: 10997 | C23: 1782 | D23: 9248 | E23: 1484 | F23: -1749 | G23: 327.9 | H23: 0.06064992543 | I23: 5.869127517
A24: 08:55:00 | B24: 11113 | C24: 1776 | D24: 9191 | E24: 1460 | F24: -1922 | G24: 327.75 | H24: 0.03788565963 | I24: =(D24-B24)/(E24-C24) -> 6.082278481
A25: 08:56:00 | B25: 11463 | C25: 1864 | D25: 9018 | E25: 1402 | F25: -2445 | G25: 327.6 | H25: 0.282561546 | I25: 5.292207792
A26: 08:57:00 | B26: 11593 | C26: 1894 | D26: 8910 | E26: 1372 | F26: -2683 | G26: 327.45 | H26: 0.3732609653 | I26: 5.139846743
A27: 08:58:00 | B27: 11638 | C27: 1912 | D27: 8852 | E27: 1357 | F27: -2786 | G27: 327.3 | H27: 0.4363928861 | I27: 5.01981982
A28: 08:59:00 | B28: 11805 | C28: 1981 | D28: 8746 | E28: 1334 | F28: -3059 | G28: 327.15 | H28: 0.5971103292 | I28: =(D28-B28)/(E28-C28) -> 4.72797527
A29: 09:00:00 | B29: 11683 | C29: 1890 | D29: 8891 | E29: 1348 | F29: -2792 | G29: 327.3 | H29: 0.4142158479 | I29: =(D29-B29)/(E29-C29) -> 5.151291513
A30: 09:01:00 | B30: 11098 | C30: 1730 | D30: 9378 | E30: 1548 | F30: -1720 | G30: 328 | H30: -0.3568893669 | I30: 9.450549451
A31: 09:02:00 | B31: 11402 | C31: 1847 | D31: 9264 | E31: 1537 | F31: -2138 | G31: 327.65 | H31: -0.1459279656 | I31: 6.896774194
A32: 09:03:00 | B32: 10980 | C32: 1673 | D32: 9726 | E32: 1691 | F32: -1254 | G32: 328.3 | H32: -0.8114341139 | I32: -69.66666667
A33: 09:04:00 | B33: 11355 | C33: 1837 | D33: 9310 | E33: 1518 | F33: -2045 | G33: 327.85 | H33: -0.04820398728 | I33: 6.410658307
A34: 09:05:00 | B34: 11244 | C34: 1750 | D34: 9567 | E34: 1684 | F34: -1677 | G34: 328 | H34: -0.7440264676 | I34: 25.40909091
A35: 09:06:00 | B35: 10641 | C35: 1556 | D35: 10162 | E35: 1766 | F35: -479 | G35: 328.6 | H35: -1.08444206 | I35: -2.280952381
A36: 09:07:00 | B36: 10679 | C36: 1620 | D36: 10131 | E36: 1806 | F36: -548 | G36: 328.65 | H36: -0.9823407571 | I36: -2.946236559
A37: 09:08:00 | B37: 10866 | C37: 1707 | D37: 9841 | E37: 1673 | F37: -1025 | G37: 328.3 | H37: -0.4833061432 | I37: 30.14705882
A38: 09:09:00 | B38: 10845 | C38: 1732 | D38: 9941 | E38: 1702 | F38: -904 | G38: 328.4 | H38: -0.4207717859 | I38: 30.13333333
A39: 09:10:00 | B39: 10886 | C39: 1751 | D39: 10021 | E39: 1740 | F39: -865 | G39: 328.4 | H39: -0.4578234441 | I39: 78.63636364
A40: 09:11:00 | B40: 10914 | C40: 1729 | D40: 9860 | E40: 1711 | F40: -1054 | G40: 328.2 | H40: -0.5496073953 | I40: 58.55555556
A41: 09:12:00 | B41: 11012 | C41: 1805 | D41: 9830 | E41: 1686 | F41: -1182 | G41: 328.25 | H41: -0.2704632906 | I41: 9.932773109
A42: 09:13:00 | B42: 10803 | C42: 1710 | D42: 10101 | E42: 1832 | F42: -702 | G42: 328.5 | H42: -0.8038975714 | I42: -5.754098361
A43: 09:14:00 | B43: 10900 | C43: 1760 | D43: 10018 | E43: 1773 | F43: -882 | G43: 328.45 | H43: -0.5428716095 | I43: -67.84615385
A44: 09:15:00 | B44: 10474 | C44: 1587 | D44: 10548 | E44: 1954 | F44: 74 | G44: 328.9 | H44: -1.201716351 | I44: 0.2016348774
A45: 09:16:00 | B45: 10356 | C45: 1561 | D45: 10683 | E45: 1980 | F45: 327 | G45: 329.1 | H45: -1.238754295 | I45: 0.7804295943
A46: 09:17:00 | B46: 9972 | C46: 1425 | D46: 10978 | E46: 2107 | F46: 1006 | G46: 329.4 | H46: -1.787643194 | I46: 1.475073314
A47: 09:18:00 | B47: 10285 | C47: 1582 | D47: 10856 | E47: 1997 | F47: 571 | G47: 329.3 | H47: -1.065109991 | I47: 1.375903614
A48: 09:19:00 | B48: 10159 | C48: 1538 | D48: 11001 | E48: 2075 | F48: 842 | G48: 329.45 | H48: -1.303644852 | I48: 1.567970205
A49: 09:20:00 | B49: 10395 | C49: 1476 | D49: 11344 | E49: 2153 | F49: 949 | G49: 329.7 | H49: -1.773755848 | I49: 1.401772526
A50: 09:21:00 | B50: 10349 | C50: 1570 | D50: 11301 | E50: 2139 | F50: 952 | G50: 329.65 | H50: -1.308409787 | I50: 1.673110721
A51: 09:22:00 | B51: 10969 | C51: 1836 | D51: 10618 | E51: 1860 | F51: -351 | G51: 329.1 | H51: -0.2657987209 | I51: =(D51-B51)/(E51-C51) -> -14.625
A52: 09:23:00 | B52: 11252 | C52: 1911 | D52: 10138 | E52: 1721 | F52: -1114 | G52: 328.65 | H52: 0.002744440198 | I52: 5.863157895
A53: 09:24:00 | B53: 11025 | C53: 1807 | D53: 10523 | E53: 1888 | F53: -502 | G53: 328.8 | H53: -0.5276499465 | I53: -6.197530864
A54: 09:25:00 | B54: 10620 | C54: 1658 | D54: 10905 | E54: 2045 | F54: 285 | G54: 329.2 | H54: -1.072789262 | I54: 0.7364341085
A55: 09:26:00 | B55: 10996 | C55: 1841 | D55: 10500 | E55: 1896 | F55: -496 | G55: 328.95 | H55: -0.4348661638 | I55: -9.018181818
A56: 09:27:00 | B56: 11124 | C56: 1893 | D56: 10319 | E56: 1811 | F56: -805 | G56: 328.75 | H56: -0.1784297579 | I56: 9.817073171
A57: 09:28:00 | B57: 11012 | C57: 1846 | D57: 10500 | E57: 1894 | F57: -512 | G57: 328.9 | H57: -0.4215078465 | I57: -10.66666667
A58: 09:29:00 | B58: 11219 | C58: 1928 | D58: 10284 | E58: 1784 | F58: -935 | G58: 328.65 | H58: -0.05440941146 | I58: 6.493055556
A59: 09:30:00 | B59: 11129 | C59: 1888 | D59: 10397 | E59: 1849 | F59: -732 | G59: 328.75 | H59: -0.2715579768 | I59: 18.76923077
A60: 09:31:00 | B60: 10832 | C60: 1761 | D60: 10689 | E60: 1991 | F60: -143 | G60: 329.05 | H60: -0.7823915741 | I60: -0.6217391304
A61: 09:32:00 | B61: 10731 | C61: 1704 | D61: 10841 | E61: 2061 | F61: 110 | G61: 329.15 | H61: -1.037467283 | I61: 0.3081232493
A62: 09:33:00 | B62: 11021 | C62: 1863 | D62: 10581 | E62: 1918 | F62: -440 | G62: 328.9 | H62: -0.3990432756 | I62: -8
A63: 09:34:00 | B63: 10845 | C63: 1762 | D63: 10790 | E63: 1996 | F63: -55 | G63: 329.05 | H63: -0.7491259477 | I63: -0.235042735
A64: 09:35:00 | B64: 10651 | C64: 1671 | D64: 11056 | E64: 2119 | F64: 405 | G64: 329.3 | H64: -1.156472078 | I64: 0.9040178571
A65: 09:36:00 | B65: 10775 | C65: 1751 | D65: 10998 | E65: 2090 | F65: 223 | G65: 329.25 | H65: -0.8914255422 | I65: 0.6578171091
A66: 09:37:00 | B66: 10615 | C66: 1684 | D66: 11154 | E66: 2143 | F66: 539 | G66: 329.35 | H66: -1.098591171 | I66: 1.174291939
A67: 09:38:00 | B67: 10793 | C67: 1766 | D67: 11220 | E67: 2048 | F67: 427 | G67: 329.2 | H67: -0.6330359039 | I67: 1.514184397
A68: 09:39:00 | B68: 11041 | C68: 1897 | D68: 10927 | E68: 1980 | F68: -114 | G68: 329.05 | H68: -0.3015556195 | I68: -1.373493976
A69: 09:40:00 | B69: 10875 | C69: 1819 | D69: 11156 | E69: 2077 | F69: 281 | G69: 329.25 | H69: -0.6073511744 | I69: 1.089147287
A70: 09:41:00 | B70: 10762 | C70: 1758 | D70: 11296 | E70: 2138 | F70: 534 | G70: 329.3 | H70: -0.8382867682 | I70: 1.405263158
A71: 09:42:00 | B71: 10733 | C71: 1764 | D71: 11238 | E71: 2142 | F71: 505 | G71: 329.3 | H71: -0.8379685207 | I71: 1.335978836
A72: 09:43:00 | B72: 11210 | C72: 1979 | D72: 10682 | E72: 1863 | F72: -528 | G72: 328.85 | H72: 0.06928573967 | I72: 4.551724138
A73: 09:44:00 | B73: 11325 | C73: 2031 | D73: 10596 | E73: 1850 | F73: -729 | G73: 328.7 | H73: 0.1514966665 | I73: =(D73-B73)/(E73-C73) -> 4.027624309
A74: 09:45:00 | B74: 11337 | C74: 2012 | D74: 10468 | E74: 1832 | F74: -869 | G74: 328.6 | H74: =(D74/E74)-(B74/C74) -> 0.07928195022 | I74: 4.827777778
A75: 09:46:00 | B75: 11369 | C75: 2046 | D75: 10468 | E75: 1823 | F75: -901 | G75: 328.5 | H75: 0.1854872223 | I75: 4.040358744
A76: 09:47:00 | B76: 11579 | C76: 2106 | D76: 10230 | E76: 1733 | F76: -1349 | G76: 328.3 | H76: 0.4049576157 | I76: =(D76-B76)/(E76-C76) -> 3.616621984
A77: 09:48:00 | B77: 11293 | C77: 1964 | D77: 10639 | E77: 1884 | F77: -654 | G77: 328.45 | H77: -0.1029723992 | I77: 8.175
A78: 09:49:00 | B78: 11330 | C78: 1993 | D78: 10522 | E78: 1865 | F78: -808 | G78: 328.5 | H78: -0.04307408369 | I78: 6.3125
A79: 09:50:00 | B79: 11518 | C79: 2067 | D79: 10366 | E79: 1830 | F79: -1152 | G79: 328.35 | H79: 0.09215383029 | I79: 4.860759494
A80: 09:51:00 | B80: 11242 | C80: 1950 | D80: 10622 | E80: 1955 | F80: -620 | G80: 328.55 | H80: -0.3318801233 | I80: -124
A81: 09:52:00 | B81: 11099 | C81: 1910 | D81: 10791 | E81: 2018 | F81: -308 | G81: 328.7 | H81: -0.4636211271 | I81: -2.851851852
A82: 09:53:00 | B82: 11424 | C82: 2049 | D82: 10399 | E82: 1874 | F82: -1025 | G82: 328.45 | H82: -0.02630978591 | I82: 5.857142857
A83: 09:54:00 | B83: 11091 | C83: 1874 | D83: 10788 | E83: 2040 | F83: -303 | G83: 328.75 | H83: -0.6301211627 | I83: -1.825301205
A84: 09:55:00 | B84: 11152 | C84: 1925 | D84: 10716 | E84: 2012 | F84: -436 | G84: 328.75 | H84: -0.4672030157 | I84: -5.011494253
A85: 09:56:00 | B85: 11350 | C85: 2009 | D85: 10500 | E85: 1900 | F85: -850 | G85: 328.55 | H85: -0.1232611145 | I85: 7.798165138
A86: 09:57:00 | B86: 11470 | C86: 2066 | D86: 10457 | E86: 1860 | F86: -1013 | G86: 328.45 | H86: 0.07025211046 | I86: 4.917475728
A87: 09:58:00 | B87: 11451 | C87: 2049 | D87: 10423 | E87: 1870 | F87: -1028 | G87: 328.5 | H87: -0.01478300358 | I87: =(D87-B87)/(E87-C87) -> 5.74301676
A88: 09:59:00 | B88: 11420 | C88: 2028 | D88: 10529 | E88: 1937 | F88: -891 | G88: 328.55 | H88: -0.1954383596 | I88: 9.791208791
A89: 10:00:00 | B89: 11463 | C89: 2045 | D89: 10485 | E89: 1931 | F89: -978 | G89: 328.5 | H89: -0.175549869 | I89: 8.578947368
A90: 10:01:00 | B90: 11109 | C90: 1875 | D90: 10833 | E90: 2058 | F90: -276 | G90: 328.75 | H90: -0.6609516035 | I90: =(D90-B90)/(E90-C90) -> -1.508196721
A91: 10:02:00 | B91: 10983 | C91: 1841 | D91: 10967 | E91: 2130 | F91: -16 | G91: 328.9 | H91: -0.8169531766 | I91: -0.0553633218
A92: 10:03:00 | B92: 10789 | C92: 1768 | D92: 11119 | E92: 2178 | F92: 330 | G92: 329.05 | H92: -0.9972332332 | I92: 0.8048780488
A93: 10:04:00 | B93: 11025 | C93: 1876 | D93: 11004 | E93: 2104 | F93: -21 | G93: 328.9 | H93: -0.6468276488 | I93: -0.09210526316
A94: 10:05:00 | B94: 10817 | C94: 1777 | D94: 11081 | E94: 2136 | F94: 264 | G94: 329 | H94: -0.8994915788 | I94: 0.7353760446
A95: 10:06:00 | B95: 10845 | C95: 1818 | D95: 11044 | E95: 2108 | F95: 199 | G95: 329 | H95: -0.7262573506 | I95: 0.6862068966
A96: 10:07:00 | B96: 10548 | C96: 1669 | D96: 11346 | E96: 2234 | F96: 798 | G96: 329.25 | H96: -1.241169614 | I96: 1.412389381
A97: 10:08:00 | B97: 10521 | C97: 1664 | D97: 11392 | E97: 2253 | F97: 871 | G97: 329.3 | H97: -1.266347061 | I97: =(D97-B97)/(E97-C97) -> 1.478777589
A98: 10:09:00 | B98: 10792 | C98: 1767 | D98: 11216 | E98: 2169 | F98: 424 | G98: 329.2 | H98: -0.9364803165 | I98: 1.054726368
A99: 10:10:00 | B99: 10656 | C99: 1719 | D99: 11360 | E99: 2227 | F99: 704 | G99: 329.3 | H99: -1.0979201 | I99: 1.385826772
A100: 10:11:00 | B100: 11023 | C100: 1887 | D100: 10898 | E100: 2002 | F100: -125 | G100: 328.9 | H100: -0.3979909862 | I100: -1.086956522
A101: 10:12:00 | B101: 11324 | C101: 1984 | D101: 10649 | E101: 1905 | F101: -675 | G101: 328.65 | H101: -0.1176350436 | I101: 8.544303797
A102: 10:13:00 | B102: 11105 | C102: 1881 | D102: 10798 | E102: 2003 | F102: -307 | G102: 328.8 | H102: -0.5128609584 | I102: -2.516393443
A103: 10:14:00 | B103: 10908 | C103: 1793 | D103: 11023 | E103: 2105 | F103: 115 | G103: 328.95 | H103: -0.8470791002 | I103: 0.3685897436
A104: 10:15:00 | B104: 10625 | C104: 1698 | D104: 11385 | E104: 2179 | F104: 760 | G104: 329.2 | H104: -1.032487807 | I104: 1.58004158
A105: 10:16:00 | B105: 10870 | C105: 1814 | D105: 11076 | E105: 2037 | F105: 206 | G105: 329.05 | H105: -0.5548742963 | I105: 0.9237668161
A106: 10:17:00 | B106: 10616 | C106: 1710 | D106: 11392 | E106: 2155 | F106: 776 | G106: 329.2 | H106: -0.9218762296 | I106: =(D106-B106)/(E106-C106) -> 1.743820225
A107: 10:18:00 | B107: 10516 | C107: 1669 | D107: 11454 | E107: 2218 | F107: 938 | G107: 329.3 | H107: -1.136667097 | I107: 1.70856102
A108: 10:19:00 | B108: 10377 | C108: 1598 | D108: 11547 | E108: 2247 | F108: 1170 | G108: 329.5 | H108: -1.354890375 | I108: 1.802773498
A109: 10:20:00 | B109: 10676 | C109: 1732 | D109: 11396 | E109: 2166 | F109: 720 | G109: 329.35 | H109: -0.9026611137 | I109: 1.658986175
A110: 10:21:00 | B110: 10841 | C110: 1784 | D110: 11296 | E110: 2126 | F110: 455 | G110: 329.25 | H110: -0.7635293758 | I110: 1.330409357
A111: 10:22:00 | B111: 10954 | C111: 1854 | D111: 11218 | E111: 2076 | F111: 264 | G111: 329.1 | H111: -0.5046454783 | I111: 1.189189189
A112: 10:23:00 | B112: 11264 | C112: 1945 | D112: 10742 | E112: 1896 | F112: -522 | G112: 328.75 | H112: -0.1256478258 | I112: 10.65306122
A113: 10:24:00 | B113: 11386 | C113: 1937 | D113: 10517 | E113: 1869 | F113: -869 | G113: 328.5 | H113: -0.2510888051 | I113: 12.77941176
A114: 10:25:00 | B114: 11318 | C114: 1877 | D114: 10821 | E114: 1983 | F114: -497 | G114: 328.65 | H114: -0.572951333 | I114: -4.688679245
A115: 10:26:00 | B115: 11476 | C115: 1934 | D115: 10825 | E115: 1983 | F115: -651 | G115: 328.6 | H115: -0.47491527 | I115: -13.28571429
A116: 10:27:00 | B116: 11076 | C116: 1775 | D116: 11217 | E116: 2142 | F116: 141 | G116: 328.95 | H116: -1.003305322 | I116: 0.3841961853
A117: 10:28:00 | B117: 11399 | C117: 1906 | D117: 10967 | E117: 2019 | F117: -432 | G117: 328.75 | H117: -0.5486906393 | I117: -3.82300885
A118: 10:29:00 | B118: 11568 | C118: 1977 | D118: 10812 | E118: 1941 | F118: -756 | G118: 328.6 | H118: -0.2809652581 | I118: 21
A119: 10:30:00 | B119: 11520 | C119: 1959 | D119: 10856 | E119: 1984 | F119: -664 | G119: 328.65 | H119: -0.4087771081 | I119: -26.56
A120: 10:31:00 | B120: 11415 | C120: 1907 | D120: 10987 | E120: 2023 | F120: -428 | G120: 328.8 | H120: -0.5547986306 | I120: -3.689655172
A121: 10:32:00 | B121: 11588 | C121: 1986 | D121: 10812 | E121: 1954 | F121: -776 | G121: 328.6 | H121: -0.3015788101 | I121: 24.25
A122: 10:33:00 | B122: 11387 | C122: 1886 | D122: 10932 | E122: 2037 | F122: -455 | G122: 328.8 | H122: -0.6709300528 | I122: -3.013245033
A123: 10:34:00 | B123: 11294 | C123: 1835 | D123: 11084 | E123: 2114 | F123: -210 | G123: 328.9 | H123: -0.9116274274 | I123: -0.752688172
A124: 10:35:00 | B124: 11546 | C124: 1976 | D124: 10757 | E124: 1956 | F124: -789 | G124: 328.65 | H124: -0.3436286564 | I124: 39.45
A125: 10:36:00 | B125: 11220 | C125: 1829 | D125: 11144 | E125: 2146 | F125: -76 | G125: 328.9 | H125: -0.9415826716 | I125: -0.2397476341
A126: 10:37:00 | B126: 11157 | C126: 1814 | D126: 11264 | E126: 2175 | F126: 107 | G126: 329 | H126: -0.9716455664 | I126: =(D126-B126)/(E126-C126) -> 0.296398892
A127: 10:38:00 | B127: 11115 | C127: 1804 | D127: 11300 | E127: 2207 | F127: 185 | G127: 329.05 | H127: -1.041235707 | I127: 0.459057072
A128: 10:39:00 | B128: 10993 | C128: 1755 | D128: 11442 | E128: 2240 | F128: 449 | G128: 329.2 | H128: -1.15578195 | I128: 0.9257731959
A129: 10:40:00 | B129: 11210 | C129: 1854 | D129: 11285 | E129: 2173 | F129: 75 | G129: 329.1 | H129: -0.8531050139 | I129: 0.2351097179
A130: 10:41:00 | B130: 11371 | C130: 1923 | D130: 11120 | E130: 2091 | F130: -251 | G130: 328.95 | H130: -0.5951268754 | I130: =(D130-B130)/(E130-C130) -> -1.494047619
A131: 10:42:00 | B131: 11606 | C131: 2034 | D131: 10902 | E131: 1987 | F131: -704 | G131: 328.75 | H131: -0.2193347219 | I131: =(D131-B131)/(E131-C131) -> 14.9787234
A132: 10:43:00 | B132: 11459 | C132: 1974 | D132: 11069 | E132: 2071 | F132: -390 | G132: 328.85 | H132: -0.460203554 | I132: -4.020618557
A133: 10:44:00 | B133: 11289 | C133: 1902 | D133: 11213 | E133: 2143 | F133: -76 | G133: 328.95 | H133: -0.7029467226 | I133: -0.3153526971
A134: 10:45:00 | B134: 11168 | C134: 1855 | D134: 11337 | E134: 2185 | F134: 169 | G134: 329.1 | H134: -0.8319268228 | I134: =(D134-B134)/(E134-C134) -> 0.5121212121
A135: 10:46:00 | B135: 11415 | C135: 1951 | D135: 11130 | E135: 2094 | F135: -285 | G135: 328.9 | H135: -0.5356594737 | I135: =(D135-B135)/(E135-C135) -> -1.993006993
A136: 10:47:00 | B136: 11407 | C136: 1964 | D136: 11171 | E136: 2125 | F136: -236 | G136: 328.95 | H136: -0.55110363 | I136: =(D136-B136)/(E136-C136) -> -1.465838509
A137: 10:48:00 | B137: 11537 | C137: 2025 | D137: 10982 | E137: 2036 | F137: -555 | G137: 328.8 | H137: -0.3033743239 | I137: =(D137-B137)/(E137-C137) -> -50.45454545
A138: 10:49:00 | B138: 11336 | C138: 1934 | D138: 11226 | E138: 2152 | F138: -110 | G138: 329 | H138: =(D138/E138)-(B138/C138) -> -0.6448843432 | I138: -0.504587156
A139: 10:50:00 | B139: 11247 | C139: 1887 | D139: 11417 | E139: 2230 | F139: 170 | G139: 329.1 | H139: -0.8405234303 | I139: 0.4956268222
A140: 10:51:00 | B140: 11202 | C140: 1896 | D140: 11530 | E140: 2288 | F140: 328 | G140: 329.2 | H140: -0.8688921838 | I140: 0.8367346939
A141: 10:52:00 | B141: 11166 | C141: 1861 | D141: 11546 | E141: 2289 | F141: 380 | G141: 329.2 | H141: -0.9558759284 | I141: 0.8878504673
A142: 10:53:00 | B142: 11260 | C142: 1897 | D142: 11454 | E142: 2249 | F142: 194 | G142: 329.15 | H142: -0.8427577371 | I142: 0.5511363636
A143: 10:54:00 | B143: 10904 | C143: 1762 | D143: 11581 | E143: 2229 | F143: 677 | G143: 329.35 | H143: -0.9928188378 | I143: 1.449678801
A144: 10:55:00 | B144: 10926 | C144: 1782 | D144: 11535 | E144: 2264 | F144: 609 | G144: 329.35 | H144: -1.036348467 | I144: 1.263485477
A145: 10:56:00 | B145: 10838 | C145: 1756 | D145: 11676 | E145: 2321 | F145: 838 | G145: 329.4 | H145: -1.141391514 | I145: 1.483185841
A146: 10:57:00 | B146: 10575 | C146: 1640 | D146: 11885 | E146: 2396 | F146: 1310 | G146: 329.65 | H146: -1.487820147 | I146: 1.732804233
A147: 10:58:00 | B147: 10940 | C147: 1804 | D147: 11614 | E147: 2242 | F147: 674 | G147: 329.35 | H147: -0.8841052988 | I147: 1.538812785
A148: 10:59:00 | B148: 11291 | C148: 1963 | D148: 11073 | E148: 2026 | F148: -218 | G148: 328.95 | H148: -0.2864611804 | I148: -3.46031746
A149: 11:00:00 | B149: 11239 | C149: 1919 | D149: 11170 | E149: 2083 | F149: -69 | G149: 329 | H149: -0.4942382027 | I149: -0.4207317073
A150: 11:01:00 | B150: 11217 | C150: 1920 | D150: 11267 | E150: 2155 | F150: 50 | G150: 329 | H150: -0.6138812355 | I150: 0.2127659574
A151: 11:02:00 | B151: 11454 | C151: 2005 | D151: 10963 | E151: 2010 | F151: -491 | G151: 328.7 | H151: -0.2584893488 | I151: -98.2
A152: 11:03:00 | B152: 11435 | C152: 1974 | D152: 11034 | E152: 2024 | F152: -401 | G152: 328.75 | H152: -0.3412254566 | I152: -8.02
A153: 11:04:00 | B153: 11475 | C153: 1969 | D153: 11041 | E153: 2012 | F153: -434 | G153: 328.65 | H153: -0.3402568338 | I153: -10.09302326
A154: 11:05:00 | B154: 11249 | C154: 1879 | D154: 11375 | E154: 2176 | F154: 126 | G154: 328.95 | H154: -0.7592134329 | I154: 0.4242424242
A155: 11:06:00 | B155: 11169 | C155: 1825 | D155: 11442 | E155: 2216 | F155: 273 | G155: 329 | H155: -0.9566425993 | I155: 0.6982097187
A156: 11:07:00 | B156: 11059 | C156: 1835 | D156: 11488 | E156: 2228 | F156: 429 | G156: 329.1 | H156: -0.8705091014 | I156: 1.091603053
A157: 11:08:00 | B157: 11352 | C157: 1959 | D157: 11231 | E157: 2084 | F157: -121 | G157: 328.9 | H157: -0.4056377916 | I157: -0.968
A158: 11:09:00 | B158: 11353 | C158: 1961 | D158: 11221 | E158: 2096 | F158: -132 | G158: 328.95 | H158: -0.4358626324 | I158: -0.9777777778
A159: 11:10:00 | B159: 11197 | C159: 1895 | D159: 11369 | E159: 2161 | F159: 172 | G159: 329.05 | H159: -0.6477168417 | I159: 0.6466165414
A160: 11:11:00 | B160: 11144 | C160: 1872 | D160: 11466 | E160: 2197 | F160: 322 | G160: 329.1 | H160: -0.7340565417 | I160: 0.9907692308
A161: 11:12:00 | B161: 11069 | C161: 1864 | D161: 11500 | E161: 2210 | F161: 431 | G161: 329.2 | H161: -0.7346848115 | I161: 1.24566474
A162: 11:13:00 | B162: 11124 | C162: 1882 | D162: 11491 | E162: 2213 | F162: 367 | G162: 329.15 | H162: -0.7182343922 | I162: 1.108761329
A163: 11:14:00 | B163: 10947 | C163: 1820 | D163: 11569 | E163: 2234 | F163: 622 | G163: 329.25 | H163: -0.8362317629 | I163: 1.502415459
A164: 11:15:00 | B164: 10866 | C164: 1793 | D164: 11644 | E164: 2262 | F164: 778 | G164: 329.3 | H164: -0.9125773035 | I164: 1.658848614
A165: 11:16:00 | B165: 10936 | C165: 1846 | D165: 11544 | E165: 2240 | F165: 608 | G165: 329.3 | H165: -0.7705889181 | I165: 1.543147208
A166: 11:17:00 | B166: 11037 | C166: 1897 | D166: 11458 | E166: 2203 | F166: 421 | G166: 329.2 | H166: -0.6170444721 | I166: 1.375816993
A167: 11:18:00 | B167: 10746 | C167: 1749 | D167: 11737 | E167: 2297 | F167: 991 | G167: 329.4 | H167: -1.034374018 | I167: 1.808394161
A168: 11:19:00 | B168: 11012 | C168: 1890 | D168: 11488 | E168: 2160 | F168: 476 | G168: 329.25 | H168: -0.5079365079 | I168: 1.762962963
A169: 11:20:00 | B169: 10926 | C169: 1854 | D169: 11589 | E169: 2225 | F169: 663 | G169: 329.3 | H169: -0.6846645577 | I169: 1.787061995
A170: 11:21:00 | B170: 10979 | C170: 1855 | D170: 11503 | E170: 2197 | F170: 524 | G170: 329.3 | H170: -0.6828223245 | I170: 1.532163743
A171: 11:22:00 | B171: 10979 | C171: 1853 | D171: 11580 | E171: 2220 | F171: 601 | G171: 329.3 | H171: -0.7087702921 | I171: 1.63760218
A172: 11:23:00 | B172: 11222 | C172: 1971 | D172: 11306 | E172: 2111 | F172: 84 | G172: 329.1 | H172: -0.3378010042 | I172: 0.6
A173: 11:24:00 | B173: 11016 | C173: 1875 | D173: 11552 | E173: 2226 | F173: 536 | G173: 329.3 | H173: -0.6856222821 | I173: 1.527065527
A174: 11:25:00 | B174: 11207 | C174: 1969 | D174: 11378 | E174: 2143 | F174: 171 | G174: 329.1 | H174: -0.3823423114 | I174: 0.9827586207
A175: 11:26:00 | B175: 11071 | C175: 1905 | D175: 11526 | E175: 2216 | F175: 455 | G175: 329.2 | H175: -0.6102850185 | I175: 1.463022508
A176: 11:27:00 | B176: 11083 | C176: 1909 | D176: 11486 | E176: 2188 | F176: 403 | G176: 329.2 | H176: -0.5561144506 | I176: 1.444444444
A177: 11:28:00 | B177: 11212 | C177: 1973 | D177: 11346 | E177: 2129 | F177: 134 | G177: 329.1 | H177: -0.3534541105 | I177: 0.858974359
A178: 11:29:00 | B178: 11355 | C178: 2033 | D178: 11079 | E178: 2047 | F178: -276 | G178: 328.95 | H178: -0.1730311607 | I178: -19.71428571
A179: 11:30:00 | B179: 11356 | C179: 2025 | D179: 11143 | E179: 2090 | F179: -213 | G179: 329 | H179: -0.2763222872 | I179: -3.276923077
A180: 11:31:00 | B180: 11147 | C180: 1932 | D180: 11280 | E180: 2134 | F180: 133 | G180: 329.1 | H180: -0.4838205646 | I180: 0.6584158416
A181: 11:32:00 | B181: 11210 | C181: 1965 | D181: 11272 | E181: 2135 | F181: 62 | G181: 329.05 | H181: -0.4252093129 | I181: 0.3647058824
A182: 11:33:00 | B182: 11026 | C182: 1872 | D182: 11464 | E182: 2198 | F182: 438 | G182: 329.2 | H182: -0.6743066735 | I182: 1.343558282
A183: 11:34:00 | B183: 11038 | C183: 1874 | D183: 11434 | E183: 2215 | F183: 396 | G183: 329.2 | H183: -0.7279979571 | I183: 1.161290323
A184: 11:35:00 | B184: 11321 | C184: 2021 | D184: 11185 | E184: 2081 | F184: -136 | G184: 328.95 | H184: -0.2268625373 | I184: -2.266666667
A185: 11:36:00 | B185: 11076 | C185: 1895 | D185: 11486 | E185: 2236 | F185: 410 | G185: 329.2 | H185: -0.7080033607 | I185: 1.202346041
A186: 11:37:00 | B186: 11179 | C186: 1965 | D186: 11349 | E186: 2150 | F186: 170 | G186: 329.1 | H186: -0.410453873 | I186: 0.9189189189
A187: 11:38:00 | B187: 11110 | C187: 1924 | D187: 11419 | E187: 2185 | F187: 309 | G187: 329.15 | H187: -0.5483413179 | I187: 1.183908046
A188: 11:39:00 | B188: 11031 | C188: 1899 | D188: 11492 | E188: 2211 | F188: 461 | G188: 329.25 | H188: -0.6111986384 | I188: 1.477564103
A189: 11:40:00 | B189: 10993 | C189: 1872 | D189: 11547 | E189: 2219 | F189: 554 | G189: 329.3 | H189: -0.6686337016 | I189: 1.596541787
A190: 11:41:00 | B190: 10977 | C190: 1861 | D190: 11531 | E190: 2242 | F190: 554 | G190: 329.25 | H190: -0.7552659621 | I190: 1.454068241
A191: 11:42:00 | B191: 10844 | C191: 1803 | D191: 11643 | E191: 2271 | F191: 799 | G191: 329.4 | H191: -0.88760403 | I191: 1.707264957
A192: 11:43:00 | B192: 10849 | C192: 1797 | D192: 11596 | E192: 2277 | F192: 747 | G192: 329.4 | H192: -0.9446185745 | I192: 1.55625
A193: 11:44:00 | B193: 10816 | C193: 1783 | D193: 11661 | E193: 2317 | F193: 845 | G193: 329.4 | H193: -1.033379559 | I193: 1.582397004
A194: 11:45:00 | B194: 10988 | C194: 1861 | D194: 11467 | E194: 2230 | F194: 479 | G194: 329.25 | H194: -0.7622000323 | I194: 1.298102981
A195: 11:46:00 | B195: 10870 | C195: 1809 | D195: 11606 | E195: 2308 | F195: 736 | G195: 329.35 | H195: -0.9802484784 | I195: 1.4749499
A196: 11:47:00 | B196: 10745 | C196: 1744 | D196: 11710 | E196: 2333 | F196: 965 | G196: 329.5 | H196: -1.141835383 | I196: 1.638370119
A197: 11:48:00 | B197: 10654 | C197: 1703 | D197: 11804 | E197: 2370 | F197: 1150 | G197: 329.55 | H197: -1.275428073 | I197: 1.724137931
A198: 11:49:00 | B198: 10670 | C198: 1733 | D198: 11714 | E198: 2327 | F198: 1044 | G198: 329.55 | H198: -1.123003969 | I198: 1.757575758
A199: 11:50:00 | B199: 10643 | C199: 1719 | D199: 11757 | E199: 2328 | F199: 1114 | G199: 329.55 | H199: -1.141132611 | I199: =(D199-B199)/(E199-C199) -> 1.829228243
A200: 11:51:00 | B200: 10378 | C200: 1644 | D200: 11968 | E200: 2407 | F200: 1590 | G200: 329.7 | H200: -1.340487548 | I200: 2.083879423
A201: 11:52:00 | B201: 10374 | C201: 1612 | D201: 11877 | E201: 2357 | F201: 1503 | G201: 329.7 | H201: -1.396451202 | I201: 2.017449664
A202: 11:53:00 | B202: 10299 | C202: 1631 | D202: 11871 | E202: 2348 | F202: 1572 | G202: 329.7 | H202: =(D202/E202)-(B202/C202) -> -1.258738799 | I202: 2.192468619
A203: 11:54:00 | B203: 10160 | C203: 1572 | D203: 12027 | E203: 2386 | F203: 1867 | G203: 329.85 | H203: -1.422450512 | I203: 2.293611794
... 232 more rows

Sheet 2. 순매수에 따른 익일가격 (hidden)
I1: 15:35:00 | T1: 15:45:00 | Y1: 익일시가예상 | Z1: 당일 | AB1: 발생횟수 | AC1: 성공횟수 | AD1: 확률
B2: 날짜 | C2: 시간 | D2: 매도총잔량 | E2: 매도건수 | F2: 매수총잔량 | G2: 매수건수 | H2: 순매수총잔량 | I2: 선물지수 | J2: 순매수건수 | K2: 평균계약수 | M2: 날짜 | N2: 시간 | O2: 매도총잔량 | P2: 매도건수 | Q2: 매수총잔량 | R2: 매수건수 | S2: 순매수총잔량 | T2: 선물지수 | U2: 순매수건수 | V2: 평균계약수 | W2: 종가 | Y2: 순매수총잔량 | Z2: 시작가 | AA2: 일치여부 | AB2: =COUNTA(AA4:AA1000) -> 272 | AC2: =COUNTIF(AA4:AA1000,"성공") -> 143 | AD2: =AC2/AB2 -> 0.5257352941
B3: 2023-10-12 | C3: 15:35:00 | D3: 9508 | E3: 1216 | F3: 15618 | G3: 2033 | H3: 6110 | I3: 330.4 | J3: -0.1368359567 | K3: 7.478580171 | M3: 2023-10-12 | N3: 15:46:00 | O3: 10474 | P3: 1101 | Q3: 13874 | R3: 1542 | S3: 3400 | T3: 330.45 | U3: -0.5157638793 | V3: 7.709750567 | W3: =T3 -> 330.45 | Y3: =IF(H3>S3,"하락","상승") -> 하락 | AB3: 순매수총잔량 증감율
A4: 금 | B4: 2023-10-13 | C4: 15:35:00 | D4: 14867 | E4: 1854 | F4: 13866 | G4: 1712 | H4: -1001 | I4: 327.45 | J4: 0.08042096402 | K4: 7.049295775 | M4: 2023-10-13 | N4: 15:46:00 | O4: 11298 | P4: 1240 | Q4: 11489 | R4: 1268 | S4: 191 | T4: 327.85 | U4: -0.05056477053 | V4: 6.821428571 | W4: 327.85 | Y4: 상승 | Z4: 327.45 | AA4: =IF(AND(Y3="상승",Z4>W3),"성공",IF(AND(Y3="하락",Z4<W3),"성공",IF(AND(Y3="상승",Z4=W3),"동일가",IF(AND(Y3="하락",Z4=W3),"동일가","실패")))) -> 성공 | AB4: =S4/H4-1 -> -1.190809191
B5: 2023-10-16 | C5: 15:35:00 | D5: 15940 | E5: 1970 | F5: 11709 | G5: 1602 | H5: -4231 | I5: 325.05 | J5: -0.7823817943 | K5: 11.49728261 | M5: 2023-10-16 | N5: 15:46:00 | O5: 7849 | P5: 1022 | Q5: 5360 | R5: 774 | S5: -2489 | T5: 324.85 | U5: -0.7549745395 | V5: 10.03629032 | W5: 324.85 | Y5: =IF(H5>S5,"하락","상승") -> 상승 | Z5: 326.2 | AA5: 실패 | AB5: -0.4117229969
B6: 2023-10-17 | C6: 15:35:00 | D6: 13240 | E6: 1889 | F6: 17947 | G6: 2371 | H6: 4707 | I6: 328.7 | J6: 0.5603805378 | K6: 9.765560166 | M6: 2023-10-17 | N6: 15:46:00 | O6: 4526 | P6: 1045 | Q6: 8044 | R6: 1103 | S6: 3518 | T6: 328.8 | U6: 2.961737237 | V6: 60.65517241 | W6: 328.8 | Y6: 하락 | Z6: 327.15 | AA6: 성공 | AB6: -0.2526025069
B7: 2023-10-18 | C7: 15:35:00 | D7: 12859 | E7: 1924 | F7: 19132 | G7: 2629 | H7: 6273 | I7: 330.15 | J7: 0.5938198124 | K7: 8.89787234 | M7: 2023-10-18 | N7: 15:46:00 | O7: 5359 | P7: 994 | Q7: 9271 | R7: 1403 | S7: 3912 | T7: 330.2 | U7: 1.216634805 | V7: 9.564792176 | W7: 330.2 | Y7: 하락 | Z7: 327.95 | AA7: 성공 | AB7: -0.3763749402
B8: 2023-10-19 | C8: 15:35:00 | D8: 21327 | E8: 2960 | F8: 9834 | G8: 1197 | H8: -11493 | I8: 323.7 | J8: 1.01047128 | K8: 6.519001702 | M8: 2023-10-19 | N8: 15:46:00 | O8: 9871 | P8: 1718 | Q8: 5219 | R8: 684 | S8: -4652 | T8: 323.7 | U8: 1.8844825 | V8: 4.499032882 | W8: 323.7 | Y8: 상승 | Z8: 326.5 | AA8: 성공 | AB8: -0.5952318803
A9: 금 | B9: 2023-10-20 | C9: 15:35:00 | D9: 18708 | E9: 2366 | F9: 11741 | G9: 1732 | H9: -6967 | I9: 319.1 | J9: -0.263889643 | K9: 7.72796518 | M9: 2023-10-20 | N9: 15:46:00 | O9: 9208 | P9: 1203 | Q9: 6245 | R9: 949 | S9: -2963 | T9: 318.85 | U9: -1.073586669 | V9: 11.66535433 | W9: 318.85 | Y9: 상승 | Z9: 321 | AA9: 실패 | AB9: -0.5747093441
B10: 2023-10-23 | C10: 15:35:00 | D10: 14892 | E10: 2334 | F10: 14494 | G10: 1833 | H10: -398 | I10: 317.15 | J10: 1.52679314 | K10: 0.7944111776 | M10: 2023-10-23 | N10: 15:46:00 | O10: 8073 | P10: 1395 | Q10: 6831 | R10: 945 | S10: -1242 | T10: 317 | U10: 1.441474654 | V10: 2.76 | W10: 317 | Y10: 하락 | Z10: 317.15 | AA10: =IF(AND(Y9="상승",Z10>W9),"성공",IF(AND(Y9="하락",Z10<W9),"성공",IF(AND(Y9="상승",Z10=W9),"동일가",IF(AND(Y9="하락",Z10=W9),"동일가","실패")))) -> 실패 | AB10: =S10/H10-1 -> 2.120603015
B11: 2023-10-24 | C11: 15:35:00 | D11: 11514 | E11: 1530 | F11: 17453 | G11: 2719 | H11: 5939 | I11: 319.65 | J11: -1.106586187 | K11: 4.994953743 | M11: 2023-10-24 | N11: 15:46:00 | O11: 5906 | P11: 849 | Q11: 7700 | R11: 1211 | S11: 1794 | T11: 319.55 | U11: -0.598037814 | V11: 4.955801105 | W11: 319.55 | Y11: 하락 | Z11: 318.55 | AA11: 실패 | AB11: -0.6979289443
B12: 2023-10-25 | C12: 15:35:00 | D12: 18960 | E12: 2689 | F12: 10553 | G12: 1355 | H12: -8407 | I12: 317.75 | J12: 0.9912027057 | K12: 5.52532391 | M12: 2023-10-25 | N12: 15:46:00 | O12: 8726 | P12: 1370 | Q12: 4076 | R12: 566 | S12: -4650 | T12: 317.85 | U12: 0.8320703619 | V12: 5.78358209 | W12: 317.85 | Y12: 상승 | Z12: 320.3 | AA12: 실패 | AB12: -0.4468894968
B13: 2023-10-26 | C13: 15:35:00 | D13: 20611 | E13: 2970 | F13: 8651 | G13: 1141 | H13: -11960 | I13: 309.4 | J13: 0.5471770049 | K13: 6.249262537 | M13: 2023-10-26 | N13: 15:46:00 | O13: 8791 | P13: 1423 | Q13: 6158 | R13: 680 | S13: -2633 | T13: 309.15 | U13: 2.878088959 | V13: 3.543741588 | W13: 309.15 | Y13: =IF(H13>S13,"하락","상승") -> 상승 | Z13: 312.95 | AA13: 실패 | AB13: -0.7798494983
A14: 금 | B14: 2023-10-27 | C14: 15:35:00 | D14: 14273 | E14: 2133 | F14: 13278 | G14: 1990 | H14: -995 | I14: 309.5 | J14: -0.01915249006 | K14: 6.958041958 | M14: 2023-10-27 | N14: 15:46:00 | O14: 7000 | P14: 1081 | Q14: 6563 | R14: 956 | S14: -437 | T14: 309.2 | U14: 0.3895771001 | V14: 3.496 | W14: 309.2 | Y14: 상승 | Z14: 309.95 | AA14: 성공 | AB14: -0.5608040201
B15: 2023-10-30 | C15: 15:35:00 | D15: 10351 | E15: 1519 | F15: 18337 | G15: 2271 | H15: 7986 | I15: 310.3 | J15: 1.26006501 | K15: 10.61968085 | M15: 2023-10-30 | N15: 15:46:00 | O15: 3324 | P15: 627 | Q15: 7833 | R15: 941 | S15: 4509 | T15: 310.2 | U15: 3.022687866 | V15: 14.35987261 | W15: 310.2 | Y15: 하락 | Z15: 307.25 | AA15: 실패 | AB15: -0.4353869271
B16: 2023-10-31 | C16: 15:35:00 | D16: 19479 | E16: 2879 | F16: 10061 | G16: 1313 | H16: -9418 | I16: 306.75 | J16: 0.8967137877 | K16: 6.014048531 | M16: 2023-10-31 | N16: 15:46:00 | O16: 9313 | P16: 1622 | Q16: 4459 | R16: 643 | S16: -4854 | T16: 307.1 | U16: 1.19300424 | V16: 4.958120531 | W16: 307.1 | Y16: 상승 | Z16: 311.65 | AA16: =IF(AND(Y15="상승",Z16>W15),"성공",IF(AND(Y15="하락",Z16<W15),"성공",IF(AND(Y15="상승",Z16=W15),"동일가",IF(AND(Y15="하락",Z16=W15),"동일가","실패")))) -> 실패 | AB16: =S16/H16-1 -> -0.4846039499
B17: 2023-11-01 | C17: 15:35:00 | D17: 12505 | E17: 1840 | F17: 18703 | G17: 2301 | H17: 6198 | I17: 310.8 | J17: 1.332009476 | K17: 13.44468547 | M17: 2023-11-01 | N17: 15:46:00 | O17: 6095 | P17: 1011 | Q17: 7729 | R17: 1068 | S17: 1634 | T17: 311.05 | U17: 1.208206915 | V17: 28.66666667 | W17: 311.05 | Y17: 하락 | Z17: 308.4 | AA17: 성공 | AB17: -0.7363665699
B18: 2023-11-02 | C18: 15:35:00 | D18: 15256 | E18: 2159 | F18: 17094 | G18: 1861 | H18: 1838 | I18: 315.9 | J18: 2.119149834 | K18: -6.167785235 | M18: 2023-11-02 | N18: 15:46:00 | O18: 7632 | P18: 1221 | Q18: 7674 | R18: 962 | S18: 42 | T18: 316.15 | U18: 1.726516727 | V18: -0.1621621622 | W18: 316.15 | Y18: 하락 | Z18: 316.05 | AA18: 실패 | AB18: -0.9771490751
A19: 금 | B19: 2023-11-03 | C19: 15:35:00 | D19: 15120 | E19: 2050 | F19: 15477 | G19: 1950 | H19: 357 | I19: 319.5 | J19: 0.5613133208 | K19: -3.57 | M19: 2023-11-03 | N19: 15:45:00 | O19: 14160 | P19: 1654 | Q19: 13848 | R19: 1299 | S19: -312 | T19: 319.6 | U19: 2.099443996 | V19: 0.8788732394 | W19: 319.6 | Y19: =IF(H19>S19,"하락","상승") -> 하락 | Z19: 319.7 | AA19: 실패 | AB19: -1.87394958
B20: 2023-11-06 | C20: 15:35:00 | D20: 3920 | E20: 606 | F20: 24897 | G20: 3711 | H20: 20977 | I20: 334.4 | J20: 0.2403264579 | K20: 6.755877617 | M20: 2023-11-06 | N20: 15:45:00 | O20: 16699 | P20: 1125 | Q20: 25667 | R20: 2368 | S20: 8968 | T20: 335.3 | U20: -4.004450826 | V20: 7.214802896 | W20: 335.3 | Y20: 하락 | Z20: 324 | AA20: 실패 | AB20: -0.5724841493
B21: 2023-11-07 | C21: 15:35:00 | D21: 16844 | E21: 2310 | F21: 13014 | G21: 1871 | H21: -3830 | I21: 328.4 | J21: -0.3361361959 | K21: 8.724373576 | M21: 2023-11-07 | N21: 15:45:00 | O21: 18430 | P21: 1499 | Q21: 16567 | R21: 1414 | S21: -1863 | T21: 328.4 | U21: -0.5784558871 | V21: 21.91764706 | W21: 328.4 | Y21: 상승 | Z21: 334.9 | AA21: 성공 | AB21: -0.5135770235
B22: 2023-11-08 | C22: 15:35:00 | D22: 18810 | E22: 2785 | F22: 7789 | G22: 1052 | H22: -11021 | I22: 324.9 | J22: 0.6499528981 | K22: 6.35949221 | M22: 2023-11-08 | N22: 15:45:00 | O22: 16585 | P22: 2058 | Q22: 10002 | R22: 923 | S22: -6583 | T22: 325.1 | U22: 2.777608087 | V22: 5.8 | W22: 325.1 | Y22: 상승 | Z22: 331.1 | AA22: =IF(AND(Y21="상승",Z22>W21),"성공",IF(AND(Y21="하락",Z22<W21),"성공",IF(AND(Y21="상승",Z22=W21),"동일가",IF(AND(Y21="하락",Z22=W21),"동일가","실패")))) -> 성공 | AB22: =S22/H22-1 -> -0.4026857817
B23: 2023-11-09 | C23: 15:35:00 | D23: 13157 | E23: 1940 | F23: 8442 | G23: 726 | H23: -4715 | I23: 326.65 | J23: 4.846140411 | K23: 3.883855025 | M23: 2023-11-09 | N23: 15:45:00 | O23: 19892 | P23: 2460 | Q23: 11790 | R23: 1098 | S23: -8102 | T23: 326.7 | U23: 2.651526056 | V23: 5.948604993 | W23: =T23 -> 326.7 | Y23: 하락 | Z23: 325.95 | AA23: 성공 | AB23: 0.7183457052
A24: 금 | B24: 2023-11-10 | C24: 15:35:00 | D24: 14965 | E24: 2234 | F24: 15837 | G24: 2507 | H24: 872 | I24: 324.65 | J24: -0.3816345566 | K24: 3.194139194 | M24: 2023-11-10 | N24: 15:45:00 | O24: 12537 | P24: 1437 | Q24: 13881 | R24: 1574 | S24: 1344 | T24: 324.7 | U24: 0.09450676839 | V24: 9.810218978 | W24: 324.7 | Y24: 상승 | Z24: 324 | AA24: 성공 | AB24: 0.5412844037
B25: 2023-11-13 | C25: 15:35:00 | D25: 14877 | E25: 1935 | F25: 10824 | G25: 1241 | H25: -4053 | I25: 324.75 | J25: 1.033626295 | K25: 5.840057637 | M25: 2023-11-13 | N25: 15:45:00 | O25: 14131 | P25: 1907 | Q25: 10515 | R25: 1203 | S25: -3616 | T25: 325.1 | U25: 1.330580209 | V25: 5.136363636 | W25: 325.1 | Y25: =IF(H25>S25,"하락","상승") -> 상승 | Z25: 328.25 | AA25: 성공 | AB25: -0.1078213669
B26: 2023-11-14 | C26: 15:35:00 | D26: 13349 | E26: 1970 | F26: 15127 | G26: 2091 | H26: 1778 | I26: 327.65 | J26: 0.4581955055 | K26: 14.69421488 | M26: 2023-11-14 | N26: 15:45:00 | O26: 11995 | P26: 1573 | Q26: 13193 | R26: 1354 | S26: 1198 | T26: 327.8 | U26: 2.118166042 | V26: -5.470319635 | W26: 327.8 | Y26: 하락 | Z26: 326.6 | AA26: 성공 | AB26: -0.3262092238
B27: 2023-11-15 | C27: 15:35:00 | D27: 12553 | E27: 1770 | F27: 21897 | G27: 2890 | H27: 9344 | I27: 335.1 | J27: 0.4847262135 | K27: 8.342857143 | M27: 2023-11-15 | N27: 15:45:00 | O27: 13505 | P27: 1574 | Q27: 20304 | R27: 2003 | S27: 6799 | T27: 335.25 | U27: 1.556743982 | V27: 15.84848485 | W27: 335.25 | Y27: 하락 | Z27: 334.8 | AA27: 실패 | AB27: -0.2723672945
B28: 2023-11-16 | C28: 16:35:00 | D28: 15736 | E28: 1972 | F28: 15449 | G28: 1947 | H28: -287 | I28: 334.7 | J28: -0.04494458109 | K28: 11.48 | M28: 2023-11-16 | N28: 16:45:00 | O28: 14323 | P28: 1656 | Q28: 12603 | R28: 1365 | S28: -1720 | T28: 334.55 | U28: 0.5838124436 | V28: 5.910652921 | W28: 334.55 | Y28: 하락 | Z28: 334.35 | AA28: 성공 | AB28: 4.993031359
A29: 금 | B29: 2023-11-17 | C29: 15:35:00 | D29: 14539 | E29: 1874 | F29: 13556 | G29: 1595 | H29: -983 | I29: 333.05 | J29: 0.7407884832 | K29: 3.523297491 | M29: 2023-11-17 | N29: 15:45:00 | O29: 7777 | P29: 1096 | Q29: 5924 | R29: 838 | S29: -1853 | T29: 333.1 | U29: -0.02659050921 | V29: 7.182170543 | W29: 333.1 | Y29: 하락 | Z29: 334.2 | AA29: =IF(AND(Y28="상승",Z29>W28),"성공",IF(AND(Y28="하락",Z29<W28),"성공",IF(AND(Y28="상승",Z29=W28),"동일가",IF(AND(Y28="하락",Z29=W28),"동일가","실패")))) -> 성공 | AB29: =S29/H29-1 -> 0.8850457782
B30: 2023-11-20 | C30: 15:35:00 | D30: 11499 | E30: 1434 | F30: 19554 | G30: 2835 | H30: 8055 | I30: 335.55 | J30: -1.121473955 | K30: 5.749464668 | M30: 2023-11-20 | N30: 15:45:00 | O30: 4624 | P30: 708 | Q30: 8556 | R30: 1362 | S30: 3932 | T30: 335.55 | U30: -0.2491351203 | V30: 6.012232416 | W30: 335.55 | Y30: 하락 | Z30: 332.35 | AA30: 성공 | AB30: -0.5118559901
B31: 2023-11-21 | C31: 15:35:00 | D31: 13571 | E31: 1720 | F31: 13268 | G31: 1747 | H31: -303 | I31: 337.2 | J31: -0.2953824496 | K31: -11.22222222 | M31: 2023-11-21 | N31: 15:45:00 | O31: 6977 | P31: 1040 | Q31: 6827 | R31: 975 | S31: -150 | T31: 337.45 | U31: 0.2933974359 | V31: 2.307692308 | W31: 337.45 | Y31: =IF(H31>S31,"하락","상승") -> 상승 | Z31: 338 | AA31: 실패 | AB31: -0.504950495
B32: 2023-11-22 | C32: 15:35:00 | D32: 12155 | E32: 1603 | F32: 21455 | G32: 3128 | H32: 9300 | I32: 337.75 | J32: -0.7236421719 | K32: 6.098360656 | M32: 2023-11-22 | N32: 15:45:00 | O32: 9124 | P32: 1080 | Q32: 16184 | R32: 1840 | S32: 7060 | T32: 338 | U32: 0.3475040258 | V32: 9.289473684 | W32: 338 | Y32: 하락 | Z32: 335 | AA32: 실패 | AB32: -0.2408602151
B33: 2023-11-23 | C33: 15:35:00 | D33: 11017 | E33: 1962 | F33: 11446 | G33: 1862 | H33: 429 | I33: 337.6 | J33: 0.5319650152 | K33: -4.29 | M33: 2023-11-23 | N33: 15:45:00 | O33: 9842 | P33: 1464 | Q33: 11671 | R33: 1161 | S33: 1829 | T33: 337.95 | U33: 3.329863317 | V33: -6.03630363 | W33: 337.95 | Y33: 상승 | Z33: 337.45 | AA33: 성공 | AB33: 3.263403263
A34: 금 | B34: 2023-11-24 | C34: 15:35:00 | D34: 14724 | E34: 2624 | F34: 8163 | G34: 1053 | H34: -6561 | I34: 334.75 | J34: 2.140856264 | K34: 4.176320815 | M34: 2023-11-24 | N34: 15:45:00 | O34: 14916 | P34: 2014 | Q34: 8718 | R34: 815 | S34: -6198 | T34: 334.7 | U34: 3.290775614 | V34: 5.169307756 | W34: 334.7 | Y34: 상승 | Z34: 337.2 | AA34: 실패 | AB34: -0.05532693187
B35: 2023-11-27 | C35: 15:35:00 | D35: 16972 | E35: 2558 | F35: 14481 | G35: 1862 | H35: -2491 | I35: 334.2 | J35: 1.142250382 | K35: 3.579022989 | M35: 2023-11-27 | N35: 15:45:00 | O35: 11748 | P35: 1759 | Q35: 12065 | R35: 1236 | S35: 317 | T35: 334.2 | U35: 3.082532091 | V35: -0.6061185468 | W35: 334.2 | Y35: 상승 | Z35: 334.35 | AA35: 실패 | AB35: -1.127258129
B36: 2023-11-28 | C36: 15:35:00 | D36: 10701 | E36: 1284 | F36: 19672 | G36: 3042 | H36: 8971 | I36: 338.25 | J36: -1.86731399 | K36: 5.102957907 | M36: 2023-11-28 | N36: 15:45:00 | O36: 10306 | P36: 1177 | Q36: 16153 | R36: 1705 | S36: 5847 | T36: 338.4 | U36: 0.7177405651 | V36: 11.07386364 | W36: 338.4 | Y36: 하락 | Z36: 335.75 | AA36: =IF(AND(Y35="상승",Z36>W35),"성공",IF(AND(Y35="하락",Z36<W35),"성공",IF(AND(Y35="상승",Z36=W35),"동일가",IF(AND(Y35="하락",Z36=W35),"동일가","실패")))) -> 성공 | AB36: =S36/H36-1 -> -0.3482331959
B37: 2023-11-29 | C37: 15:35:00 | D37: 13518 | E37: 1890 | F37: 16056 | G37: 2344 | H37: 2538 | I37: 337.3 | J37: -0.3025516008 | K37: 5.59030837 | M37: 2023-11-29 | N37: 15:45:00 | O37: 9769 | P37: 1267 | Q37: 12661 | R37: 1346 | S37: 2892 | T37: 337.55 | U37: 1.696049917 | V37: 36.60759494 | W37: 337.55 | Y37: =IF(H37>S37,"하락","상승") -> 상승 | Z37: 338.35 | AA37: 성공 | AB37: 0.1394799054
B38: 2023-11-30 | C38: 15:35:00 | D38: 12252 | E38: 1347 | F38: 20299 | G38: 2994 | H38: 8047 | I38: 339.05 | J38: -2.315875255 | K38: 4.885853066 | M38: 2023-11-30 | N38: 15:45:00 | O38: 12711 | P38: 1064 | Q38: 15831 | R38: 1811 | S38: 3120 | T38: 339.15 | U38: -3.204849333 | V38: 4.176706827 | W38: 339.15 | Y38: 하락 | Z38: 337.05 | AA38: 실패 | AB38: -0.6122778675
A39: 금 | B39: 2023-12-01 | C39: 15:35:00 | D39: 16548 | E39: 2482 | F39: 11783 | G39: 1535 | H39: -4765 | I39: 335.15 | J39: 1.009017631 | K39: 5.031678986 | M39: 2023-12-01 | N39: 15:45:00 | O39: 13881 | P39: 1676 | Q39: 10641 | R39: 1152 | S39: -3240 | T39: 335.5 | U39: 0.9547595963 | V39: 6.183206107 | W39: 335.5 | Y39: 상승 | Z39: 337.75 | AA39: 성공 | AB39: -0.3200419727
B40: 2023-12-04 | C40: 15:35:00 | D40: 14822 | E40: 1997 | F40: 14749 | G40: 1800 | H40: -73 | I40: 336.7 | J40: 0.7717556891 | K40: 0.3705583756 | M40: 2023-12-04 | N40: 15:45:00 | O40: 12105 | P40: 1572 | Q40: 11318 | R40: 1157 | S40: -787 | T40: 336.7 | U40: 2.081813653 | V40: 1.896385542 | W40: 336.7 | Y40: 하락 | Z40: 337.05 | AA40: 성공 | AB40: 9.780821918
B41: 2023-12-05 | C41: 15:35:00 | D41: 15391 | E41: 2238 | F41: 10643 | G41: 1102 | H41: -4748 | I41: 332.65 | J41: 2.780772306 | K41: 4.179577465 | M41: 2023-12-05 | N41: 15:45:00 | O41: 14028 | P41: 1583 | Q41: 10041 | R41: 839 | S41: -3987 | T41: 332.65 | U41: 3.106163747 | V41: 5.358870968 | W41: 332.65 | Y41: 상승 | Z41: 334.15 | AA41: 성공 | AB41: -0.1602780118
B42: 2023-12-06 | C42: 15:35:00 | D42: 13958 | E42: 1907 | F42: 15189 | G42: 1516 | H42: 1231 | I42: 333.9 | J42: 2.699779524 | K42: -3.148337596 | M42: 2023-12-06 | N42: 15:45:00 | O42: 12316 | P42: 1381 | Q42: 11653 | R42: 1107 | S42: -663 | T42: 333.5 | U42: 1.608473364 | V42: 2.419708029 | W42: 333.5 | Y42: 하락 | Z42: 333.8 | AA42: =IF(AND(Y41="상승",Z42>W41),"성공",IF(AND(Y41="하락",Z42<W41),"성공",IF(AND(Y41="상승",Z42=W41),"동일가",IF(AND(Y41="하락",Z42=W41),"동일가","실패")))) -> 성공 | AB42: =S42/H42-1 -> -1.538586515
B43: 2023-12-07 | C43: 15:35:00 | D43: 12299 | E43: 1489 | F43: 15158 | G43: 1957 | H43: 2859 | I43: 333 | J43: -0.5143771064 | K43: 6.108974359 | M43: 2023-12-07 | N43: 15:45:00 | O43: 11173 | P43: 1117 | Q43: 12060 | R43: 1519 | S43: 887 | T43: 332.4 | U43: -2.063251927 | V43: 2.206467662 | W43: 332.4 | Y43: =IF(H43>S43,"하락","상승") -> 하락 | Z43: 331.8 | AA43: =IF(AND(Y42="상승",Z43>W42),"성공",IF(AND(Y42="하락",Z43<W42),"성공",IF(AND(Y42="상승",Z43=W42),"동일가",IF(AND(Y42="하락",Z43=W42),"동일가","실패")))) -> 성공 | AB43: =S43/H43-1 -> -0.6897516614
B44: 2023-12-08 | C44: 15:35:00 | D44: 11485 | E44: 1233 | F44: 17894 | G44: 2482 | H44: 6409 | I44: 337.2 | J44: -2.105171182 | K44: 5.131305044 | M44: 2023-12-08 | N44: 15:45:00 | O44: 12935 | P44: 1290 | Q44: 15739 | R44: 1812 | S44: 2804 | T44: 337.25 | U44: -1.341149443 | V44: 5.37164751 | W44: 337.25 | Y44: =IF(H44>S44,"하락","상승") -> 하락 | Z44: 334.8 | AA44: =IF(AND(Y43="상승",Z44>W43),"성공",IF(AND(Y43="하락",Z44<W43),"성공",IF(AND(Y43="상승",Z44=W43),"동일가",IF(AND(Y43="하락",Z44=W43),"동일가","실패")))) -> 실패 | AB44: =S44/H44-1 -> -0.5624902481
B45: 2023-12-11 | C45: 15:35:00 | D45: 13135 | E45: 1427 | F45: 17334 | G45: 2336 | H45: 4199 | I45: 338.3 | J45: -1.784248375 | K45: 4.619361936 | M45: 2023-12-11 | N45: 15:45:00 | O45: 11811 | P45: 1168 | Q45: 12822 | R45: 1447 | S45: 1011 | T45: 338.25 | U45: -1.25106562 | V45: 3.623655914 | W45: 338.25 | Y45: =IF(H45>S45,"하락","상승") -> 하락 | Z45: 338 | AA45: =IF(AND(Y44="상승",Z45>W44),"성공",IF(AND(Y44="하락",Z45<W44),"성공",IF(AND(Y44="상승",Z45=W44),"동일가",IF(AND(Y44="하락",Z45=W44),"동일가","실패")))) -> 실패 | AB45: =S45/H45-1 -> -0.7592283877
B46: 2023-12-12 | C46: 15:35:00 | D46: 12966 | E46: 1565 | F46: 15848 | G46: 1966 | H46: 2882 | I46: 340.45 | J46: -0.2239463857 | K46: 7.187032419 | M46: 2023-12-12 | N46: 15:45:00 | O46: 10545 | P46: 1314 | Q46: 11919 | R46: 1160 | S46: 1374 | T46: 340.5 | U46: 2.249885845 | V46: -8.922077922 | W46: 340.5 | Y46: =IF(H46>S46,"하락","상승") -> 하락 | Z46: 340.05 | AA46: =IF(AND(Y45="상승",Z46>W45),"성공",IF(AND(Y45="하락",Z46<W45),"성공",IF(AND(Y45="상승",Z46=W45),"동일가",IF(AND(Y45="하락",Z46=W45),"동일가","실패")))) -> 실패 | AB46: =S46/H46-1 -> -0.5232477446
B47: 2023-12-13 | C47: 15:35:00 | D47: 17299 | E47: 2207 | F47: 10286 | G47: 1128 | H47: -7013 | I47: 336.8 | J47: 1.280552369 | K47: 6.499536608 | M47: 2023-12-13 | N47: 15:45:00 | O47: 12052 | P47: 1597 | Q47: 7190 | R47: 824 | S47: -4862 | T47: 337 | U47: 1.179078187 | V47: 6.289780078 | W47: 337 | Y47: =IF(H47>S47,"하락","상승") -> 상승 | Z47: 340.95 | AA47: =IF(AND(Y46="상승",Z47>W46),"성공",IF(AND(Y46="하락",Z47<W46),"성공",IF(AND(Y46="상승",Z47=W46),"동일가",IF(AND(Y46="하락",Z47=W46),"동일가","실패")))) -> 실패 | AB47: =S47/H47-1 -> -0.3067160987
B48: 2023-12-14 | C48: 15:35:00 | D48: 5049 | E48: 498 | F48: 5005 | G48: 446 | H48: -44 | I48: 340.75 | J48: 1.083418877 | K48: 0.8461538462 | M48: 2023-12-14 | N48: 15:45:00 | O48: 5049 | P48: 498 | Q48: 5005 | R48: 446 | S48: -44 | T48: 340.75 | U48: 1.083418877 | V48: 0.8461538462 | W48: 340.75 | Y48: =IF(H48>S48,"하락","상승") -> 상승 | Z48: 341.25 | AA48: =IF(AND(Y47="상승",Z48>W47),"성공",IF(AND(Y47="하락",Z48<W47),"성공",IF(AND(Y47="상승",Z48=W47),"동일가",IF(AND(Y47="하락",Z48=W47),"동일가","실패")))) -> 성공 | AB48: =S48/H48-1 -> 0
B49: 2023-12-15 | C49: 15:35:00 | D49: 8978 | E49: 1586 | F49: 9221 | G49: 1561 | H49: 243 | I49: 343.55 | J49: 0.2463289853 | K49: -9.72 | M49: 2023-12-15 | N49: 15:45:00 | O49: 9208 | P49: 1301 | Q49: 8820 | R49: 1241 | S49: -388 | T49: 343.25 | U49: 0.02953904546 | V49: 6.466666667 | W49: 343.25 | Y49: =IF(H49>S49,"하락","상승") -> 하락 | Z49: 341.3 | AA49: =IF(AND(Y48="상승",Z49>W48),"성공",IF(AND(Y48="하락",Z49<W48),"성공",IF(AND(Y48="상승",Z49=W48),"동일가",IF(AND(Y48="하락",Z49=W48),"동일가","실패")))) -> 성공 | AB49: =S49/H49-1 -> -2.596707819
B50: 2023-12-18 | C50: 15:35:00 | D50: 9830 | E50: 1382 | F50: 15643 | G50: 2454 | H50: 5813 | I50: 344.45 | J50: -0.7383892567 | K50: 5.422574627 | M50: 2023-12-18 | N50: 15:45:00 | O50: 11057 | P50: 1290 | Q50: 14620 | R50: 1731 | S50: 3563 | T50: 344.45 | U50: -0.1253328497 | V50: 8.079365079 | W50: 344.45 | Y50: =IF(H50>S50,"하락","상승") -> 하락 | Z50: 343.25 | AA50: =IF(AND(Y49="상승",Z50>W49),"성공",IF(AND(Y49="하락",Z50<W49),"성공",IF(AND(Y49="상승",Z50=W49),"동일가",IF(AND(Y49="하락",Z50=W49),"동일가","실패")))) -> 동일가 | AB50: =S50/H50-1 -> -0.3870634784
B51: 2023-12-19 | C51: 15:35:00 | D51: 10399 | E51: 1156 | F51: 17760 | G51: 2782 | H51: 7361 | I51: 344.85 | J51: -2.611778263 | K51: 4.527060271 | M51: 2023-12-19 | N51: 15:45:00 | O51: 10003 | P51: 1016 | Q51: 12969 | R51: 1819 | S51: 2966 | T51: 344.75 | U51: -2.715730825 | V51: 3.693648817 | W51: 344.75 | Y51: =IF(H51>S51,"하락","상승") -> 하락 | Z51: 343.8 | AA51: =IF(AND(Y50="상승",Z51>W50),"성공",IF(AND(Y50="하락",Z51<W50),"성공",IF(AND(Y50="상승",Z51=W50),"동일가",IF(AND(Y50="하락",Z51=W50),"동일가","실패")))) -> 성공 | AB51: =S51/H51-1 -> -0.5970656161
B52: 2023-12-20 | C52: 15:35:00 | D52: 7000 | E52: 843 | F52: 21481 | G52: 3357 | H52: 14481 | I52: 351.6 | J52: -1.904809306 | K52: 5.760143198 | M52: 2023-12-20 | N52: 15:45:00 | O52: 9570 | P52: 1087 | Q52: 16511 | R52: 2078 | S52: 6941 | T52: 351.65 | U52: -0.8584270489 | V52: 7.004036327 | W52: 351.65 | Y52: =IF(H52>S52,"하락","상승") -> 하락 | Z52: 347.2 | AA52: =IF(AND(Y51="상승",Z52>W51),"성공",IF(AND(Y51="하락",Z52<W51),"성공",IF(AND(Y51="상승",Z52=W51),"동일가",IF(AND(Y51="하락",Z52=W51),"동일가","실패")))) -> 실패 | AB52: =S52/H52-1 -> -0.5206822733
B53: 2023-12-21 | C53: 15:35:00 | D53: 12381 | E53: 1602 | F53: 15853 | G53: 2227 | H53: 3472 | I53: 349.15 | J53: -0.6099192915 | K53: 5.5552 | M53: 2023-12-21 | N53: 15:45:00 | O53: 14127 | P53: 1274 | Q53: 15463 | R53: 1685 | S53: 1336 | T53: 348.9 | U53: -1.911842418 | V53: 3.250608273 | W53: 348.9 | Y53: =IF(H53>S53,"하락","상승") -> 하락 | Z53: 349 | AA53: =IF(AND(Y52="상승",Z53>W52),"성공",IF(AND(Y52="하락",Z53<W52),"성공",IF(AND(Y52="상승",Z53=W52),"동일가",IF(AND(Y52="하락",Z53=W52),"동일가","실패")))) -> 성공 | AB53: =S53/H53-1 -> -0.6152073733
B54: 2023-12-22 | C54: 15:35:00 | D54: 12991 | E54: 1972 | F54: 15796 | G54: 2085 | H54: 2805 | I54: 350.65 | J54: 0.9882909899 | K54: 24.82300885 | M54: 2023-12-22 | N54: 15:45:00 | O54: 11655 | P54: 1550 | Q54: 11624 | R54: 1290 | S54: -31 | T54: 350.7 | U54: 1.491497874 | V54: 0.1192307692 | W54: 350.7 | Y54: =IF(H54>S54,"하락","상승") -> 하락 | Z54: 351.45 | AA54: =IF(AND(Y53="상승",Z54>W53),"성공",IF(AND(Y53="하락",Z54<W53),"성공",IF(AND(Y53="상승",Z54=W53),"동일가",IF(AND(Y53="하락",Z54=W53),"동일가","실패")))) -> 실패 | AB54: =S54/H54-1 -> -1.011051693
B55: 2023-12-26 | C55: 15:35:00 | D55: 16475 | E55: 2183 | F55: 19682 | G55: 2988 | H55: 3207 | I55: 351.75 | J55: -0.9599390078 | K55: 3.983850932 | M55: 2023-12-26 | N55: 15:45:00 | O55: 12009 | P55: 1658 | Q55: 14016 | R55: 1527 | S55: 2007 | T55: 352 | U55: 1.94 | V55: -15.32 | W55: 352 | Y55: =IF(H55>S55,"하락","상승") -> 하락 | Z55: 352.45 | AA55: =IF(AND(Y54="상승",Z55>W54),"성공",IF(AND(Y54="하락",Z55<W54),"성공",IF(AND(Y54="상승",Z55=W54),"동일가",IF(AND(Y54="하락",Z55=W54),"동일가","실패")))) -> 실패 | AB55: =S55/H55-1 -> -0.374181478
B56: 2023-12-27 | C56: 15:35:00 | D56: 7706 | E56: 929 | F56: 19119 | G56: 2936 | H56: 11413 | I56: 356.1 | J56: -1.783019816 | K56: 5.686596911 | M56: 2023-12-27 | N56: 15:45:00 | O56: 11304 | P56: 867 | Q56: 15529 | R56: 2076 | S56: 4225 | T56: 355.9 | U56: -5.56 | V56: 3.49 | W56: 355.9 | Y56: =IF(H56>S56,"하락","상승") -> 하락 | Z56: 352.15 | AA56: =IF(AND(Y55="상승",Z56>W55),"성공",IF(AND(Y55="하락",Z56<W55),"성공",IF(AND(Y55="상승",Z56=W55),"동일가",IF(AND(Y55="하락",Z56=W55),"동일가","실패")))) -> 실패 | AB56: =S56/H56-1 -> -0.6298081136
B57: 2023-12-28 | C57: 15:35:00 | D57: 5072 | E57: 526 | F57: 23482 | G57: 3004 | H57: 18410 | I57: 362.3 | J57: -1.825674766 | K57: 7.429378531 | M57: 2023-12-28 | N57: 15:45:00 | O57: 11538 | P57: 812 | Q57: 22601 | R57: 2206 | S57: 11063 | T57: 362.7 | U57: -3.964119352 | V57: 7.93615495 | W57: 362.7 | Y57: =IF(H57>S57,"하락","상승") -> 하락 | Z57: 355.5 | AA57: =IF(AND(Y56="상승",Z57>W56),"성공",IF(AND(Y56="하락",Z57<W56),"성공",IF(AND(Y56="상승",Z57=W56),"동일가",IF(AND(Y56="하락",Z57=W56),"동일가","실패")))) -> 성공 | AB57: =S57/H57-1 -> -0.3990765888
B58: 2024-01-02 | C58: 15:35:00 | D58: 12796 | E58: 1579 | F58: 17048 | G58: 2869 | H58: 4252 | I58: 363.45 | J58: -2.161723086 | K58: 3.296124031 | M58: 2024-01-02 | N58: 15:45:00 | O58: 11588 | P58: 1326 | Q58: 15431 | R58: 2331 | S58: 3843 | T58: 363.8 | U58: -2.119159237 | V58: 3.823880597 | W58: 363.8 | Y58: =IF(H58>S58,"하락","상승") -> 하락 | Z58: 360.7 | AA58: =IF(AND(Y57="상승",Z58>W57),"성공",IF(AND(Y57="하락",Z58<W57),"성공",IF(AND(Y57="상승",Z58=W57),"동일가",IF(AND(Y57="하락",Z58=W57),"동일가","실패")))) -> 성공 | AB58: =S58/H58-1 -> -0.09619002822
B59: 2024-01-03 | C59: 15:35:00 | D59: 16680 | E59: 2912 | F59: 7392 | G59: 1069 | H59: -9288 | I59: 353.55 | J59: 1.186851736 | K59: 5.039609333 | M59: 2024-01-03 | N59: 15:45:00 | O59: 20999 | P59: 2023 | Q59: 15855 | R59: 1310 | S59: -5144 | T59: 353.6 | U59: 1.722924913 | V59: 7.214586255 | W59: 353.6 | Y59: =IF(H59>S59,"하락","상승") -> 상승 | Z59: 359.7 | AA59: =IF(AND(Y58="상승",Z59>W58),"성공",IF(AND(Y58="하락",Z59<W58),"성공",IF(AND(Y58="상승",Z59=W58),"동일가",IF(AND(Y58="하락",Z59=W58),"동일가","실패")))) -> 성공 | AB59: =S59/H59-1 -> -0.4461670973
B60: 2024-01-04 | C60: 15:35:00 | D60: 17439 | E60: 2513 | F60: 13205 | G60: 1961 | H60: -4234 | I60: 350.3 | J60: -0.2057052435 | K60: 7.670289855 | M60: 2024-01-04 | N60: 15:45:00 | O60: 15343 | P60: 1737 | Q60: 15163 | R60: 1698 | S60: -180 | T60: 350.3 | U60: 0.09687206935 | V60: 4.615384615 | W60: 350.3 | Y60: =IF(H60>S60,"하락","상승") -> 상승 | Z60: 350.2 | AA60: =IF(AND(Y59="상승",Z60>W59),"성공",IF(AND(Y59="하락",Z60<W59),"성공",IF(AND(Y59="상승",Z60=W59),"동일가",IF(AND(Y59="하락",Z60=W59),"동일가","실패")))) -> 실패 | AB60: =S60/H60-1 -> -0.9574870099
B61: 2024-01-05 | C61: 15:35:00 | D61: 14354 | E61: 2580 | F61: 11594 | G61: 1853 | H61: -2760 | I61: 348.85 | J61: 0.6933148425 | K61: 3.796423659 | M61: 2024-01-05 | N61: 15:45:00 | O61: 13234 | P61: 1848 | Q61: 11795 | R61: 1524 | S61: -1439 | T61: 348.7 | U61: 0.5782459011 | V61: 4.441358025 | W61: 348.7 | Y61: =IF(H61>S61,"하락","상승") -> 상승 | Z61: 349.35 | AA61: =IF(AND(Y60="상승",Z61>W60),"성공",IF(AND(Y60="하락",Z61<W60),"성공",IF(AND(Y60="상승",Z61=W60),"동일가",IF(AND(Y60="하락",Z61=W60),"동일가","실패")))) -> 실패 | AB61: =S61/H61-1 -> -0.4786231884
B62: 2024-01-08 | C62: 15:35:00 | D62: 17709 | E62: 3057 | F62: 11569 | G62: 1466 | H62: -6140 | I62: 347.55 | J62: 2.098607361 | K62: 3.859208045 | M62: 2024-01-08 | N62: 15:45:00 | O62: 12577 | P62: 2133 | Q62: 8725 | R62: 1126 | S62: -3852 | T62: 347.4 | U62: 1.85227779 | V62: 3.825223436 | W62: 347.4 | Y62: =IF(H62>S62,"하락","상승") -> 상승 | Z62: 350.35 | AA62: =IF(AND(Y61="상승",Z62>W61),"성공",IF(AND(Y61="하락",Z62<W61),"성공",IF(AND(Y61="상승",Z62=W61),"동일가",IF(AND(Y61="하락",Z62=W61),"동일가","실패")))) -> 성공 | AB62: =S62/H62-1 -> -0.3726384365
B63: 2024-01-09 | C63: 15:35:00 | D63: 19016 | E63: 3364 | F63: 9723 | G63: 1185 | H63: -9293 | I63: 346.35 | J63: 2.552268999 | K63: 4.264800367 | M63: 2024-01-09 | N63: 15:45:00 | O63: 13890 | P63: 2204 | Q63: 9402 | R63: 1003 | S63: -4488 | T63: 346.3 | U63: 3.071700506 | V63: 3.736885928 | W63: 346.3 | Y63: =IF(H63>S63,"하락","상승") -> 상승 | Z63: 351.4 | AA63: =IF(AND(Y62="상승",Z63>W62),"성공",IF(AND(Y62="하락",Z63<W62),"성공",IF(AND(Y62="상승",Z63=W62),"동일가",IF(AND(Y62="하락",Z63=W62),"동일가","실패")))) -> 성공 | AB63: =S63/H63-1 -> -0.5170558485
B64: 2024-01-10 | C64: 15:35:00 | D64: 17124 | E64: 2561 | F64: 12748 | G64: 1491 | H64: -4376 | I64: 342.7 | J64: 1.86351586 | K64: 4.089719626 | M64: 2024-01-10 | N64: 15:45:00 | O64: 12851 | P64: 1696 | Q64: 9982 | R64: 1115 | S64: -2869 | T64: 342.7 | U64: 1.375225802 | V64: 4.938037866 | W64: 342.7 | Y64: =IF(H64>S64,"하락","상승") -> 상승 | Z64: 345.35 | AA64: =IF(AND(Y63="상승",Z64>W63),"성공",IF(AND(Y63="하락",Z64<W63),"성공",IF(AND(Y63="상승",Z64=W63),"동일가",IF(AND(Y63="하락",Z64=W63),"동일가","실패")))) -> 실패 | AB64: =S64/H64-1 -> -0.3443784278
B65: 2024-01-11 | C65: 15:35:00 | D65: 12642 | E65: 1650 | F65: 15502 | G65: 2211 | H65: 2860 | I65: 343.55 | J65: -0.650511081 | K65: 5.098039216 | M65: 2024-01-11 | N65: 15:45:00 | O65: 11614 | P65: 1321 | Q65: 12143 | R65: 1494 | S65: 529 | T65: 343.55 | U65: -0.6639796633 | V65: 3.057803468 | W65: 343.55 | Y65: =IF(H65>S65,"하락","상승") -> 하락 | Z65: 344.45 | AA65: =IF(AND(Y64="상승",Z65>W64),"성공",IF(AND(Y64="하락",Z65<W64),"성공",IF(AND(Y64="상승",Z65=W64),"동일가",IF(AND(Y64="하락",Z65=W64),"동일가","실패")))) -> 성공 | AB65: =S65/H65-1 -> -0.815034965
B66: 2024-01-12 | C66: 15:35:00 | D66: 13696 | E66: 1883 | F66: 10336 | G66: 1233 | H66: -3360 | I66: 339.75 | J66: 1.109306429 | K66: 5.169230769 | M66: 2024-01-12 | N66: 15:45:00 | O66: 12564 | P66: 1475 | Q66: 10811 | R66: 1115 | S66: -1753 | T66: 340 | U66: 1.177998024 | V66: 4.869444444 | W66: 340 | Y66: =IF(H66>S66,"하락","상승") -> 상승 | Z66: 341.5 | AA66: =IF(AND(Y65="상승",Z66>W65),"성공",IF(AND(Y65="하락",Z66<W65),"성공",IF(AND(Y65="상승",Z66=W65),"동일가",IF(AND(Y65="하락",Z66=W65),"동일가","실패")))) -> 성공 | AB66: =S66/H66-1 -> -0.4782738095
B67: 2024-01-15 | C67: 15:35:00 | D67: 13174 | E67: 1907 | F67: 14904 | G67: 2091 | H67: 1730 | I67: 341.2 | J67: 0.219457274 | K67: 9.402173913 | M67: 2024-01-15 | N67: 15:45:00 | O67: 11622 | P67: 1409 | Q67: 12901 | R67: 1539 | S67: 1279 | T67: 341.3 | U67: 0.1343129266 | V67: 9.838461538 | W67: 341.3 | Y67: =IF(H67>S67,"하락","상승") -> 하락 | Z67: 340 | AA67: =IF(AND(Y66="상승",Z67>W66),"성공",IF(AND(Y66="하락",Z67<W66),"성공",IF(AND(Y66="상승",Z67=W66),"동일가",IF(AND(Y66="하락",Z67=W66),"동일가","실패")))) -> 동일가 | AB67: =S67/H67-1 -> -0.2606936416
B68: 2024-01-16 | C68: 15:35:00 | D68: 18119 | E68: 2800 | F68: 9431 | G68: 1346 | H68: -8688 | I68: 335.95 | J68: 0.5356150499 | K68: 5.975240715 | M68: 2024-01-16 | N68: 15:45:00 | O68: 15167 | P68: 1780 | Q68: 9652 | R68: 1187 | S68: -5515 | T68: 336 | U68: -0.3893627595 | V68: 9.300168634 | W68: 336 | Y68: =IF(H68>S68,"하락","상승") -> 상승 | Z68: 339.55 | AA68: =IF(AND(Y67="상승",Z68>W67),"성공",IF(AND(Y67="하락",Z68<W67),"성공",IF(AND(Y67="상승",Z68=W67),"동일가",IF(AND(Y67="하락",Z68=W67),"동일가","실패")))) -> 성공 | AB68: =S68/H68-1 -> -0.3652163904
B69: 2024-01-17 | C69: 15:35:00 | D69: 20456 | E69: 3377 | F69: 7876 | G69: 1093 | H69: -12580 | I69: 327.45 | J69: 1.148408005 | K69: 5.507880911 | M69: 2024-01-17 | N69: 15:45:00 | O69: 20144 | P69: 2289 | Q69: 12625 | R69: 1209 | S69: -7519 | T69: 327.3 | U69: 1.642164977 | V69: 6.962037037 | W69: 327.3 | Y69: =IF(H69>S69,"하락","상승") -> 상승 | Z69: 336.45 | AA69: =IF(AND(Y68="상승",Z69>W68),"성공",IF(AND(Y68="하락",Z69<W68),"성공",IF(AND(Y68="상승",Z69=W68),"동일가",IF(AND(Y68="하락",Z69=W68),"동일가","실패")))) -> 성공 | AB69: =S69/H69-1 -> -0.4023052464
B70: 2024-01-18 | C70: 15:35:00 | D70: 12717 | E70: 1856 | F70: 16598 | G70: 2286 | H70: 3881 | I70: 329.05 | J70: 0.4088855138 | K70: 9.025581395 | M70: 2024-01-18 | N70: 15:45:00 | O70: 16931 | P70: 1471 | Q70: 16848 | R70: 1374 | S70: -83 | T70: 329.1 | U70: 0.7521514937 | V70: 0.8556701031 | W70: 329.1 | Y70: =IF(H70>S70,"하락","상승") -> 하락 | Z70: 328.7 | AA70: =IF(AND(Y69="상승",Z70>W69),"성공",IF(AND(Y69="하락",Z70<W69),"성공",IF(AND(Y69="상승",Z70=W69),"동일가",IF(AND(Y69="하락",Z70=W69),"동일가","실패")))) -> 성공 | AB70: =S70/H70-1 -> -1.021386241
B71: 2024-01-19 | C71: 15:35:00 | D71: 11598 | E71: 1739 | F71: 16362 | G71: 2379 | H71: 4764 | I71: 333.95 | J71: 0.2083294961 | K71: 7.44375 | M71: 2024-01-19 | N71: 15:45:00 | O71: 15843 | P71: 1619 | Q71: 14448 | R71: 1527 | S71: -1395 | T71: 333.65 | U71: -0.3239805793 | V71: 15.16304348 | W71: 333.65 | Y71: =IF(H71>S71,"하락","상승") -> 하락 | Z71: 333 | AA71: =IF(AND(Y70="상승",Z71>W70),"성공",IF(AND(Y70="하락",Z71<W70),"성공",IF(AND(Y70="상승",Z71=W70),"동일가",IF(AND(Y70="하락",Z71=W70),"동일가","실패")))) -> 실패 | AB71: =S71/H71-1 -> -1.292821159
B72: 2024-01-22 | C72: 15:35:00 | D72: 15935 | E72: 2677 | F72: 11638 | G72: 1703 | H72: -4297 | I72: 334.65 | J72: 0.8812638314 | K72: 4.411704312 | M72: 2024-01-22 | N72: 15:45:00 | O72: 13415 | P72: 1864 | Q72: 10143 | R72: 1270 | S72: -3272 | T72: 334.5 | U72: 0.7897257612 | V72: 5.508417508 | W72: 334.5 | Y72: =IF(H72>S72,"하락","상승") -> 상승 | Z72: 337.05 | AA72: =IF(AND(Y71="상승",Z72>W71),"성공",IF(AND(Y71="하락",Z72<W71),"성공",IF(AND(Y71="상승",Z72=W71),"동일가",IF(AND(Y71="하락",Z72=W71),"동일가","실패")))) -> 실패 | AB72: =S72/H72-1 -> -0.2385385152
B73: 2024-01-23 | C73: 15:35:00 | D73: 12427 | E73: 1736 | F73: 17048 | G73: 2830 | H73: 4621 | I73: 336.25 | J73: -1.13438187 | K73: 4.223948812 | M73: 2024-01-23 | N73: 15:45:00 | O73: 12771 | P73: 1407 | Q73: 13016 | R73: 1642 | S73: 245 | T73: 336.45 | U73: -1.14984067 | V73: 1.042553191 | W73: 336.45 | Y73: =IF(H73>S73,"하락","상승") -> 하락 | Z73: 334 | AA73: =IF(AND(Y72="상승",Z73>W72),"성공",IF(AND(Y72="하락",Z73<W72),"성공",IF(AND(Y72="상승",Z73=W72),"동일가",IF(AND(Y72="하락",Z73=W72),"동일가","실패")))) -> 실패 | AB73: =S73/H73-1 -> -0.9469811729
B74: 2024-01-24 | C74: 15:35:00 | D74: 16209 | E74: 2415 | F74: 11797 | G74: 1977 | H74: -4412 | I74: 334.55 | J74: -0.7446793404 | K74: 10.07305936 | M74: 2024-01-24 | N74: 15:45:00 | O74: 14707 | P74: 1725 | Q74: 11843 | R74: 1391 | S74: -2864 | T74: 334.85 | U74: -0.01177840986 | V74: 8.574850299 | W74: 334.85 | Y74: =IF(H74>S74,"하락","상승") -> 상승 | Z74: 337.1 | AA74: =IF(AND(Y73="상승",Z74>W73),"성공",IF(AND(Y73="하락",Z74<W73),"성공",IF(AND(Y73="상승",Z74=W73),"동일가",IF(AND(Y73="하락",Z74=W73),"동일가","실패")))) -> 실패 | AB74: =S74/H74-1 -> -0.3508612874
B75: 2024-01-25 | C75: 15:35:00 | D75: 15233 | E75: 2064 | F75: 12770 | G75: 1775 | H75: -2463 | I75: 335.05 | J75: -0.1859632602 | K75: 8.522491349 | M75: 2024-01-25 | N75: 15:45:00 | O75: 12771 | P75: 1571 | Q75: 11063 | R75: 1221 | S75: -1708 | T75: 335.05 | U75: 0.9313890014 | V75: 4.88 | W75: 335.05 | Y75: =IF(H75>S75,"하락","상승") -> 상승 | Z75: 334.7 | AA75: =IF(AND(Y74="상승",Z75>W74),"성공",IF(AND(Y74="하락",Z75<W74),"성공",IF(AND(Y74="상승",Z75=W74),"동일가",IF(AND(Y74="하락",Z75=W74),"동일가","실패")))) -> 실패 | AB75: =S75/H75-1 -> -0.3065367438
B76: 2024-01-26 | C76: 15:35:00 | D76: 12405 | E76: 1853 | F76: 13547 | G76: 1589 | H76: 1142 | I76: 335.25 | J76: 1.830938349 | K76: -4.325757576 | M76: 2024-01-26 | N76: 15:45:00 | O76: 10580 | P76: 1559 | Q76: 10032 | R76: 1087 | S76: -548 | T76: 335.15 | U76: 2.442669298 | V76: 1.161016949 | W76: 335.15 | Y76: =IF(H76>S76,"하락","상승") -> 하락 | Z76: 333.5 | AA76: =IF(AND(Y75="상승",Z76>W75),"성공",IF(AND(Y75="하락",Z76<W75),"성공",IF(AND(Y75="상승",Z76=W75),"동일가",IF(AND(Y75="하락",Z76=W75),"동일가","실패")))) -> 실패 | AB76: =S76/H76-1 -> -1.479859895
B77: 2024-01-29 | C77: 15:35:00 | D77: 10558 | E77: 1575 | F77: 14722 | G77: 2093 | H77: 4164 | I77: 339.3 | J77: 0.3304305356 | K77: 8.038610039 | M77: 2024-01-29 | N77: 15:45:00 | O77: 10461 | P77: 1290 | Q77: 13092 | R77: 1547 | S77: 2631 | T77: 339.25 | U77: 0.3535289608 | V77: 10.23735409 | W77: 339.25 | Y77: =IF(H77>S77,"하락","상승") -> 하락 | Z77: 336.25 | AA77: =IF(AND(Y76="상승",Z77>W76),"성공",IF(AND(Y76="하락",Z77<W76),"성공",IF(AND(Y76="상승",Z77=W76),"동일가",IF(AND(Y76="하락",Z77=W76),"동일가","실패")))) -> 실패 | AB77: =S77/H77-1 -> -0.3681556196
B78: 2024-01-30 | C78: 15:35:00 | D78: 16259 | E78: 2699 | F78: 12904 | G78: 1708 | H78: -3355 | I78: 338.45 | J78: 1.530952135 | K78: 3.385469223 | M78: 2024-01-30 | N78: 15:45:00 | O78: 13936 | P78: 1814 | Q78: 11352 | R78: 1029 | S78: -2584 | T78: 338.7 | U78: 3.349600291 | V78: 3.291719745 | W78: 338.7 | Y78: =IF(H78>S78,"하락","상승") -> 상승 | Z78: 340.55 | AA78: =IF(AND(Y77="상승",Z78>W77),"성공",IF(AND(Y77="하락",Z78<W77),"성공",IF(AND(Y77="상승",Z78=W77),"동일가",IF(AND(Y77="하락",Z78=W77),"동일가","실패")))) -> 실패 | AB78: =S78/H78-1 -> -0.2298062593
B79: 2024-01-31 | C79: 15:35:00 | D79: 13924 | E79: 2056 | F79: 12018 | G79: 1847 | H79: -1906 | I79: 336.6 | J79: -0.2656058094 | K79: 9.119617225 | M79: 2024-01-31 | N79: 15:45:00 | O79: 11431 | P79: 1485 | Q79: 12145 | R79: 1349 | S79: 714 | T79: 337 | U79: 1.305322062 | V79: -5.25 | W79: 337 | Y79: =IF(H79>S79,"하락","상승") -> 상승 | Z79: 335.15 | AA79: =IF(AND(Y78="상승",Z79>W78),"성공",IF(AND(Y78="하락",Z79<W78),"성공",IF(AND(Y78="상승",Z79=W78),"동일가",IF(AND(Y78="하락",Z79=W78),"동일가","실패")))) -> 실패 | AB79: =S79/H79-1 -> -1.374606506
B80: 2024-02-01 | C80: 15:35:00 | D80: 8275 | E80: 1652 | F80: 21310 | G80: 3493 | H80: 13035 | I80: 342.1 | J80: 1.091693071 | K80: 7.080391092 | M80: 2024-02-01 | N80: 15:45:00 | O80: 10134 | P80: 1589 | Q80: 16020 | R80: 1895 | S80: 5886 | T80: 342.15 | U80: 2.076229885 | V80: 19.23529412 | W80: 342.15 | Y80: =IF(H80>S80,"하락","상승") -> 하락 | Z80: 335.8 | AA80: =IF(AND(Y79="상승",Z80>W79),"성공",IF(AND(Y79="하락",Z80<W79),"성공",IF(AND(Y79="상승",Z80=W79),"동일가",IF(AND(Y79="하락",Z80=W79),"동일가","실패")))) -> 실패 | AB80: =S80/H80-1 -> -0.5484464902
B81: 2024-02-02 | C81: 15:35:00 | D81: 5803 | E81: 1006 | F81: 16843 | G81: 2825 | H81: 11040 | I81: 354.1 | J81: 0.1937342318 | K81: 6.069268829 | M81: 2024-02-02 | N81: 15:45:00 | O81: 10755 | P81: 1041 | Q81: 16761 | R81: 1949 | S81: 6006 | T81: 354.05 | U81: -1.731617337 | V81: 6.614537445 | W81: 354.05 | Y81: =IF(H81>S81,"하락","상승") -> 하락 | Z81: 344.6 | AA81: =IF(AND(Y80="상승",Z81>W80),"성공",IF(AND(Y80="하락",Z81<W80),"성공",IF(AND(Y80="상승",Z81=W80),"동일가",IF(AND(Y80="하락",Z81=W80),"동일가","실패")))) -> 실패 | AB81: =S81/H81-1 -> -0.4559782609
B82: 2024-02-05 | C82: 15:35:00 | D82: 12971 | E82: 2085 | F82: 15924 | G82: 2826 | H82: 2953 | I82: 349.3 | J82: -0.5862835846 | K82: 3.985155196 | M82: 2024-02-05 | N82: 15:45:00 | O82: 14780 | P82: 1387 | Q82: 13487 | R82: 1970 | S82: -1293 | T82: 349.25 | U82: -3.809899392 | V82: -2.217838765 | W82: 349.25 | Y82: =IF(H82>S82,"하락","상승") -> 하락 | Z82: 353.7 | AA82: =IF(AND(Y81="상승",Z82>W81),"성공",IF(AND(Y81="하락",Z82<W81),"성공",IF(AND(Y81="상승",Z82=W81),"동일가",IF(AND(Y81="하락",Z82=W81),"동일가","실패")))) -> 성공 | AB82: =S82/H82-1 -> -1.437859804
B83: 2024-02-06 | C83: 15:35:00 | D83: 13819 | E83: 2079 | F83: 13514 | G83: 2243 | H83: -305 | I83: 347.75 | J83: -0.6219790843 | K83: -1.859756098 | M83: 2024-02-06 | N83: 15:45:00 | O83: 13001 | P83: 1440 | Q83: 11686 | R83: 1395 | S83: -1315 | T83: 348.05 | U83: -0.6514112903 | V83: 29.22222222 | W83: 348.05 | Y83: =IF(H83>S83,"하락","상승") -> 하락 | Z83: 348.05 | AA83: =IF(AND(Y82="상승",Z83>W82),"성공",IF(AND(Y82="하락",Z83<W82),"성공",IF(AND(Y82="상승",Z83=W82),"동일가",IF(AND(Y82="하락",Z83=W82),"동일가","실패")))) -> 성공 | AB83: =S83/H83-1 -> 3.31147541
B84: 2024-02-07 | C84: 15:35:00 | D84: 9476 | E84: 1840 | F84: 18054 | G84: 2720 | H84: 8578 | I84: 352.55 | J84: 1.4875 | K84: 9.747727273 | M84: 2024-02-07 | N84: 15:45:00 | O84: 11445 | P84: 1427 | Q84: 15002 | R84: 1376 | S84: 3557 | T84: 352.7 | U84: 2.882293924 | V84: -69.74509804 | W84: 352.7 | Y84: =IF(H84>S84,"하락","상승") -> 하락 | Z84: 349.75 | AA84: =IF(AND(Y83="상승",Z84>W83),"성공",IF(AND(Y83="하락",Z84<W83),"성공",IF(AND(Y83="상승",Z84=W83),"동일가",IF(AND(Y83="하락",Z84=W83),"동일가","실패")))) -> 실패 | AB84: =S84/H84-1 -> -0.5853345768
B85: 2024-02-08 | C85: 15:35:00 | D85: 11809 | E85: 1843 | F85: 10389 | G85: 1450 | H85: -1420 | I85: 353.4 | J85: 0.7573397946 | K85: 3.613231552 | M85: 2024-02-08 | N85: 15:45:00 | O85: 11679 | P85: 1437 | Q85: 10798 | R85: 1096 | S85: -881 | T85: 353.4 | U85: 1.724841138 | V85: 2.583577713 | W85: 353.4 | Y85: =IF(H85>S85,"하락","상승") -> 상승 | Z85: 355.1 | AA85: =IF(AND(Y84="상승",Z85>W84),"성공",IF(AND(Y84="하락",Z85<W84),"성공",IF(AND(Y84="상승",Z85=W84),"동일가",IF(AND(Y84="하락",Z85=W84),"동일가","실패")))) -> 실패 | AB85: =S85/H85-1 -> -0.3795774648
B86: 2024-02-13 | C86: 15:35:00 | D86: 10070 | E86: 1986 | F86: 13745 | G86: 1912 | H86: 3675 | I86: 357.25 | J86: 2.118314077 | K86: -49.66216216 | M86: 2024-02-13 | N86: 15:45:00 | O86: 10332 | P86: 1695 | Q86: 9830 | R86: 1246 | S86: -502 | T86: 357.25 | U86: 1.793670365 | V86: 1.118040089 | W86: 357.25 | Y86: =IF(H86>S86,"하락","상승") -> 하락 | Z86: 355.55 | AA86: =IF(AND(Y85="상승",Z86>W85),"성공",IF(AND(Y85="하락",Z86<W85),"성공",IF(AND(Y85="상승",Z86=W85),"동일가",IF(AND(Y85="하락",Z86=W85),"동일가","실패")))) -> 성공 | AB86: =S86/H86-1 -> -1.136598639
B87: 2024-02-14 | C87: 15:35:00 | D87: 11116 | E87: 1753 | F87: 14571 | G87: 2402 | H87: 3455 | I87: 352.35 | J87: -0.2749346547 | K87: 5.32357473 | M87: 2024-02-14 | N87: 15:45:00 | O87: 11293 | P87: 1303 | Q87: 11292 | R87: 1389 | S87: -1 | T87: 352.5 | U87: -0.5373328537 | V87: -0.01162790698 | W87: 352.5 | Y87: =IF(H87>S87,"하락","상승") -> 하락 | Z87: 352 | AA87: =IF(AND(Y86="상승",Z87>W86),"성공",IF(AND(Y86="하락",Z87<W86),"성공",IF(AND(Y86="상승",Z87=W86),"동일가",IF(AND(Y86="하락",Z87=W86),"동일가","실패")))) -> 성공 | AB87: =S87/H87-1 -> -1.000289436
B88: 2024-02-15 | C88: 15:35:00 | D88: 13721 | E88: 2342 | F88: 8919 | G88: 1280 | H88: -4802 | I88: 352.2 | J88: 1.109300945 | K88: 4.52165725 | M88: 2024-02-15 | N88: 15:45:00 | O88: 11746 | P88: 1715 | Q88: 10240 | R88: 1046 | S88: -1506 | T88: 352.15 | U88: 2.94069536 | V88: 2.251121076 | W88: 352.15 | Y88: =IF(H88>S88,"하락","상승") -> 상승 | Z88: 355.65 | AA88: =IF(AND(Y87="상승",Z88>W87),"성공",IF(AND(Y87="하락",Z88<W87),"성공",IF(AND(Y87="상승",Z88=W87),"동일가",IF(AND(Y87="하락",Z88=W87),"동일가","실패")))) -> 실패 | AB88: =S88/H88-1 -> -0.6863806747
B89: 2024-02-16 | C89: 15:35:00 | D89: 10043 | E89: 1533 | F89: 18002 | G89: 2913 | H89: 7959 | I89: 355.5 | J89: -0.3713235022 | K89: 5.767391304 | M89: 2024-02-16 | N89: 15:45:00 | O89: 12635 | P89: 1418 | Q89: 11878 | R89: 1323 | S89: -757 | T89: 355.8 | U89: 0.06764288539 | V89: 7.968421053 | W89: 355.8 | Y89: =IF(H89>S89,"하락","상승") -> 하락 | Z89: 354.3 | AA89: =IF(AND(Y88="상승",Z89>W88),"성공",IF(AND(Y88="하락",Z89<W88),"성공",IF(AND(Y88="상승",Z89=W88),"동일가",IF(AND(Y88="하락",Z89=W88),"동일가","실패")))) -> 성공 | AB89: =S89/H89-1 -> -1.095112451
B90: 2024-02-19 | C90: 15:35:00 | D90: 5552 | E90: 1093 | F90: 17583 | G90: 2826 | H90: 12031 | I90: 361.1 | J90: 1.142270927 | K90: 6.942296595 | M90: 2024-02-19 | N90: 15:45:00 | O90: 11748 | P90: 1199 | Q90: 14992 | R90: 1607 | S90: 3244 | T90: 361.1 | U90: -0.4689803212 | V90: 7.950980392 | W90: 361.1 | Y90: =IF(H90>S90,"하락","상승") -> 하락 | Z90: 355.3 | AA90: =IF(AND(Y89="상승",Z90>W89),"성공",IF(AND(Y89="하락",Z90<W89),"성공",IF(AND(Y89="상승",Z90=W89),"동일가",IF(AND(Y89="하락",Z90=W89),"동일가","실패")))) -> 성공 | AB90: =S90/H90-1 -> -0.7303632283
B91: 2024-02-20 | C91: 15:35:00 | D91: 14097 | E91: 2112 | F91: 9301 | G91: 1621 | H91: -4796 | I91: 356.65 | J91: -0.9368997462 | K91: 9.767820774 | M91: 2024-02-20 | N91: 15:45:00 | O91: 15272 | P91: 1509 | Q91: 13234 | R91: 1304 | S91: -2038 | T91: 356.65 | U91: 0.02816333085 | V91: 9.941463415 | W91: 356.65 | Y91: =IF(H91>S91,"하락","상승") -> 상승 | Z91: 360.3 | AA91: =IF(AND(Y90="상승",Z91>W90),"성공",IF(AND(Y90="하락",Z91<W90),"성공",IF(AND(Y90="상승",Z91=W90),"동일가",IF(AND(Y90="하락",Z91=W90),"동일가","실패")))) -> 성공 | AB91: =S91/H91-1 -> -0.5750625521
B92: 2024-02-21 | C92: 15:35:00 | D92: 9357 | E92: 1928 | F92: 8330 | G92: 1529 | H92: -1027 | I92: 355.9 | J92: 0.5947894645 | K92: 2.573934837 | M92: 2024-02-21 | N92: 15:45:00 | O92: 9526 | P92: 1413 | Q92: 8726 | R92: 1089 | S92: -800 | T92: 355.95 | U92: 1.271171472 | V92: 2.469135802 | W92: 355.95 | Y92: =IF(H92>S92,"하락","상승") -> 상승 | Z92: 357.05 | AA92: =IF(AND(Y91="상승",Z92>W91),"성공",IF(AND(Y91="하락",Z92<W91),"성공",IF(AND(Y91="상승",Z92=W91),"동일가",IF(AND(Y91="하락",Z92=W91),"동일가","실패")))) -> 성공 | AB92: =S92/H92-1 -> -0.2210321324
B93: 2024-02-22 | C93: 15:35:00 | D93: 10513 | E93: 1842 | F93: 13434 | G93: 2260 | H93: 2921 | I93: 357.7 | J93: 0.2368645086 | K93: 6.988038278 | M93: 2024-02-22 | N93: 15:45:00 | O93: 11048 | P93: 1506 | Q93: 10146 | R93: 1350 | S93: -902 | T93: 357.9 | U93: 0.1795661797 | V93: 5.782051282 | W93: 357.9 | Y93: =IF(H93>S93,"하락","상승") -> 하락 | Z93: 360 | AA93: =IF(AND(Y92="상승",Z93>W92),"성공",IF(AND(Y92="하락",Z93<W92),"성공",IF(AND(Y92="상승",Z93=W92),"동일가",IF(AND(Y92="하락",Z93=W92),"동일가","실패")))) -> 성공 | AB93: =S93/H93-1 -> -1.308798357
B94: 2024-02-23 | C94: 15:35:00 | D94: 10153 | E94: 2006 | F94: 8203 | G94: 1284 | H94: -1950 | I94: 359.05 | J94: 1.327313232 | K94: 2.700831025 | M94: 2024-02-23 | N94: 15:45:00 | O94: 11670 | P94: 1726 | Q94: 10155 | R94: 1040 | S94: -1515 | T94: 359.05 | U94: 3.003125279 | V94: 2.20845481 | W94: 359.05 | Y94: =IF(H94>S94,"하락","상승") -> 상승 | Z94: 360.4 | AA94: =IF(AND(Y93="상승",Z94>W93),"성공",IF(AND(Y93="하락",Z94<W93),"성공",IF(AND(Y93="상승",Z94=W93),"동일가",IF(AND(Y93="하락",Z94=W93),"동일가","실패")))) -> 실패 | AB94: =S94/H94-1 -> -0.2230769231
B95: 2024-02-26 | C95: 15:35:00 | D95: 7018 | E95: 1464 | F95: 6646 | G95: 1275 | H95: -372 | I95: 355.4 | J95: 0.4188331726 | K95: 1.968253968 | M95: 2024-02-26 | N95: 15:45:00 | O95: 11804 | P95: 1500 | Q95: 11564 | R95: 1364 | S95: -240 | T95: 355.25 | U95: 0.6086725318 | V95: 1.764705882 | W95: 355.25 | Y95: =IF(H95>S95,"하락","상승") -> 상승 | Z95: 359.25 | AA95: =IF(AND(Y94="상승",Z95>W94),"성공",IF(AND(Y94="하락",Z95<W94),"성공",IF(AND(Y94="상승",Z95=W94),"동일가",IF(AND(Y94="하락",Z95=W94),"동일가","실패")))) -> 성공 | AB95: =S95/H95-1 -> -0.3548387097
B96: 2024-02-27 | C96: 15:35:00 | D96: 10749 | E96: 2285 | F96: 5634 | G96: 855 | H96: -5115 | I96: 352.65 | J96: 1.885316135 | K96: 3.576923077 | M96: 2024-02-27 | N96: 15:45:00 | O96: 11871 | P96: 2051 | Q96: 7760 | R96: 879 | S96: -4111 | T96: 352.6 | U96: 3.040305542 | V96: 3.507679181 | W96: 352.6 | Y96: =IF(H96>S96,"하락","상승") -> 상승 | Z96: 356.45 | AA96: =IF(AND(Y95="상승",Z96>W95),"성공",IF(AND(Y95="하락",Z96<W95),"성공",IF(AND(Y95="상승",Z96=W95),"동일가",IF(AND(Y95="하락",Z96=W95),"동일가","실패")))) -> 성공 | AB96: =S96/H96-1 -> -0.196285435
B97: 2024-02-28 | C97: 15:35:00 | D97: 5482 | E97: 1047 | F97: 9526 | G97: 2014 | H97: 4044 | I97: 357.2 | J97: -0.5060213652 | K97: 4.182006205 | M97: 2024-02-28 | N97: 15:45:00 | O97: 11057 | P97: 1241 | Q97: 13695 | R97: 1738 | S97: 2638 | T97: 357.2 | U97: -1.030003366 | V97: 5.307847082 | W97: 357.2 | Y97: =IF(H97>S97,"하락","상승") -> 하락 | Z97: 353.9 | AA97: =IF(AND(Y96="상승",Z97>W96),"성공",IF(AND(Y96="하락",Z97<W96),"성공",IF(AND(Y96="상승",Z97=W96),"동일가",IF(AND(Y96="하락",Z97=W96),"동일가","실패")))) -> 성공 | AB97: =S97/H97-1 -> -0.3476755687
B98: 2024-02-29 | C98: 15:35:00 | D98: 6274 | E98: 1205 | F98: 8584 | G98: 1615 | H98: 2310 | I98: 355.4 | J98: 0.1085312745 | K98: 5.634146341 | M98: 2024-02-29 | N98: 15:45:00 | O98: 12051 | P98: 1262 | Q98: 12769 | R98: 1211 | S98: 718 | T98: 355.75 | U98: 0.9950499973 | V98: -14.07843137 | W98: 355.75 | Y98: =IF(H98>S98,"하락","상승") -> 하락 | Z98: 355.6 | AA98: =IF(AND(Y97="상승",Z98>W97),"성공",IF(AND(Y97="하락",Z98<W97),"성공",IF(AND(Y97="상승",Z98=W97),"동일가",IF(AND(Y97="하락",Z98=W97),"동일가","실패")))) -> 성공 | AB98: =S98/H98-1 -> -0.6891774892
B99: 2024-03-04 | C99: 15:35:00 | D99: 6320 | E99: 1204 | F99: 10811 | G99: 1991 | H99: 4491 | I99: 361.25 | J99: 0.180765271 | K99: 5.706480305 | M99: 2024-03-04 | N99: 15:45:00 | O99: 12683 | P99: 1493 | Q99: 13403 | R99: 1401 | S99: 720 | T99: 361.4 | U99: 1.071761487 | V99: -7.826086957 | W99: 361.4 | Y99: =IF(H99>S99,"하락","상승") -> 하락 | Z99: 359.2 | AA99: =IF(AND(Y98="상승",Z99>W98),"성공",IF(AND(Y98="하락",Z99<W98),"성공",IF(AND(Y98="상승",Z99=W98),"동일가",IF(AND(Y98="하락",Z99=W98),"동일가","실패")))) -> 실패 | AB99: =S99/H99-1 -> -0.8396793587
B100: 2024-03-05 | C100: 15:35:00 | D100: 10511 | E100: 2142 | F100: 5315 | G100: 719 | H100: -5196 | I100: 357.5 | J100: 2.485115233 | K100: 3.651440618 | M100: 2024-03-05 | N100: 15:45:00 | O100: 12128 | P100: 1892 | Q100: 9883 | R100: 840 | S100: -2245 | T100: 357.65 | U100: 5.355328199 | V100: 2.134030418 | W100: 357.65 | Y100: =IF(H100>S100,"하락","상승") -> 상승 | Z100: 360.1 | AA100: =IF(AND(Y99="상승",Z100>W99),"성공",IF(AND(Y99="하락",Z100<W99),"성공",IF(AND(Y99="상승",Z100=W99),"동일가",IF(AND(Y99="하락",Z100=W99),"동일가","실패")))) -> 성공 | AB100: =S100/H100-1 -> -0.5679368745
B101: 2024-03-06 | C101: 15:35:00 | D101: 7174 | E101: 1266 | F101: 10925 | G101: 2001 | H101: 3751 | I101: 356.55 | J101: -0.2068965517 | K101: 5.103401361 | M101: 2024-03-06 | N101: 15:45:00 | O101: 8662 | P101: 1142 | Q101: 11128 | R101: 1669 | S101: 2466 | T101: 356.6 | U101: -0.9174731558 | V101: 4.679316888 | W101: 356.6 | Y101: =IF(H101>S101,"하락","상승") -> 하락 | Z101: 354.6 | AA101: =IF(AND(Y100="상승",Z101>W100),"성공",IF(AND(Y100="하락",Z101<W100),"성공",IF(AND(Y100="상승",Z101=W100),"동일가",IF(AND(Y100="하락",Z101=W100),"동일가","실패")))) -> 실패 | AB101: =S101/H101-1 -> -0.3425753132
B102: 2024-03-07 | C102: 15:35:00 | D102: 11047 | E102: 1750 | F102: 9874 | G102: 1529 | H102: -1173 | I102: 357.05 | J102: 0.1452441372 | K102: 5.307692308 | M102: 2024-03-07 | N102: 15:45:00 | O102: 10020 | P102: 1490 | Q102: 8966 | R102: 1243 | S102: -1054 | T102: 357.1 | U102: 0.488361671 | V102: 4.267206478 | W102: 357.1 | Y102: =IF(H102>S102,"하락","상승") -> 상승 | Z102: 358.3 | AA102: =IF(AND(Y101="상승",Z102>W101),"성공",IF(AND(Y101="하락",Z102<W101),"성공",IF(AND(Y101="상승",Z102=W101),"동일가",IF(AND(Y101="하락",Z102=W101),"동일가","실패")))) -> 실패 | AB102: =S102/H102-1 -> -0.1014492754
B103: 2024-03-08 | C103: 15:35:00 | D103: 9198 | E103: 1374 | F103: 11423 | G103: 1914 | H103: 2225 | I103: 362.15 | J103: -0.7261935725 | K103: 4.12037037 | M103: 2024-03-08 | N103: 15:45:00 | O103: 12006 | P103: 1420 | Q103: 13344 | R103: 1669 | S103: 1338 | T103: 362.15 | U103: -0.4597228669 | V103: 5.373493976 | W103: 362.15 | Y103: =IF(H103>S103,"하락","상승") -> 하락 | Z103: 360.55 | AA103: =IF(AND(Y102="상승",Z103>W102),"성공",IF(AND(Y102="하락",Z103<W102),"성공",IF(AND(Y102="상승",Z103=W102),"동일가",IF(AND(Y102="하락",Z103=W102),"동일가","실패")))) -> 성공 | AB103: =S103/H103-1 -> -0.3986516854
B104: 2024-03-11 | C104: 15:35:00 | D104: 12359 | E104: 1687 | F104: 9621 | G104: 1563 | H104: -2738 | I104: 358.95 | J104: -1.170552276 | K104: 22.08064516 | M104: 2024-03-11 | N104: 15:45:00 | O104: 10678 | P104: 1102 | Q104: 10287 | R104: 1207 | S104: -391 | T104: 359.05 | U104: -1.166871411 | V104: -3.723809524 | W104: 359.05 | Y104: =IF(H104>S104,"하락","상승") -> 상승 | Z104: 359.9 | AA104: =IF(AND(Y103="상승",Z104>W103),"성공",IF(AND(Y103="하락",Z104<W103),"성공",IF(AND(Y103="상승",Z104=W103),"동일가",IF(AND(Y103="하락",Z104=W103),"동일가","실패")))) -> 성공 | AB104: =S104/H104-1 -> -0.8571950329
B105: 2024-03-12 | C105: 15:35:00 | D105: 8291 | E105: 1127 | F105: 16128 | G105: 2611 | H105: 7837 | I105: 361.65 | J105: -1.179755502 | K105: 5.280997305 | M105: 2024-03-12 | N105: 15:45:00 | O105: 8485 | P105: 918 | Q105: 12889 | R105: 1523 | S105: 4404 | T105: 361.7 | U105: -0.7800172232 | V105: 7.279338843 | W105: 361.7 | Y105: =IF(H105>S105,"하락","상승") -> 하락 | Z105: 360 | AA105: =IF(AND(Y104="상승",Z105>W104),"성공",IF(AND(Y104="하락",Z105<W104),"성공",IF(AND(Y104="상승",Z105=W104),"동일가",IF(AND(Y104="하락",Z105=W104),"동일가","실패")))) -> 성공 | AB105: =S105/H105-1 -> -0.4380502743
B106: 2024-03-13 | C106: 15:35:00 | D106: 11035 | E106: 1729 | F106: 11932 | G106: 1896 | H106: 897 | I106: 363.25 | J106: -0.08905296347 | K106: 5.371257485 | M106: 2024-03-13 | N106: 15:45:00 | O106: 10088 | P106: 1391 | Q106: 9338 | R106: 1092 | S106: -750 | T106: 363.55 | U106: 1.298945603 | V106: 2.508361204 | W106: 363.55 | Y106: =IF(H106>S106,"하락","상승") -> 하락 | Z106: 363.4 | AA106: =IF(AND(Y105="상승",Z106>W105),"성공",IF(AND(Y105="하락",Z106<W105),"성공",IF(AND(Y105="상승",Z106=W105),"동일가",IF(AND(Y105="하락",Z106=W105),"동일가","실패")))) -> 실패 | AB106: =S106/H106-1 -> -1.836120401
B107: 2024-03-14 | C107: 15:35:00 | D107: 3056 | E107: 620 | F107: 6187 | G107: 1031 | H107: 3131 | I107: 366.35 | J107: 1.071937674 | K107: 7.618004866 | M107: 2024-03-14 | N107: 15:45:00 | O107: 3056 | P107: 620 | Q107: 6187 | R107: 1031 | S107: 3131 | T107: 366.35 | U107: 1.071937674 | V107: 7.618004866 | W107: 366.35 | Y107: =IF(H107>S107,"하락","상승") -> 상승 | Z107: 363.55 | AA107: =IF(AND(Y106="상승",Z107>W106),"성공",IF(AND(Y106="하락",Z107<W106),"성공",IF(AND(Y106="상승",Z107=W106),"동일가",IF(AND(Y106="하락",Z107=W106),"동일가","실패")))) -> 동일가 | AB107: =S107/H107-1 -> 0
B108: 2024-03-15 | C108: 15:35:00 | D108: 13346 | E108: 2452 | F108: 5746 | G108: 825 | H108: -7600 | I108: 360.95 | J108: 1.521944733 | K108: 4.67117394 | M108: 2024-03-15 | N108: 15:45:00 | O108: 18826 | P108: 2147 | Q108: 13439 | R108: 987 | S108: -5387 | T108: 361.1 | U108: 4.8474939 | V108: 4.643965517 | W108: 361.1 | Y108: =IF(H108>S108,"하락","상승") -> 상승 | Z108: 365.7 | AA108: =IF(AND(Y107="상승",Z108>W107),"성공",IF(AND(Y107="하락",Z108<W107),"성공",IF(AND(Y107="상승",Z108=W107),"동일가",IF(AND(Y107="하락",Z108=W107),"동일가","실패")))) -> 실패 | AB108: =S108/H108-1 -> -0.2911842105
B109: 2024-03-18 | C109: 15:35:00 | D109: 9015 | E109: 1452 | F109: 14136 | G109: 2520 | H109: 5121 | I109: 362.9 | J109: -0.5991538764 | K109: 4.79494382 | M109: 2024-03-18 | N109: 15:45:00 | O109: 14162 | P109: 1371 | Q109: 15523 | R109: 1655 | S109: 1361 | T109: 362.95 | U109: -0.950230167 | V109: 4.792253521 | W109: 362.95 | Y109: =IF(H109>S109,"하락","상승") -> 하락 | Z109: 361.1 | AA109: =IF(AND(Y108="상승",Z109>W108),"성공",IF(AND(Y108="하락",Z109<W108),"성공",IF(AND(Y108="상승",Z109=W108),"동일가",IF(AND(Y108="하락",Z109=W108),"동일가","실패")))) -> 동일가 | AB109: =S109/H109-1 -> -0.7342315954
B110: 2024-03-19 | C110: 15:35:00 | D110: 12791 | E110: 2239 | F110: 9247 | G110: 1724 | H110: -3544 | I110: 358.95 | J110: -0.3491291273 | K110: 6.881553398 | M110: 2024-03-19 | N110: 15:45:00 | O110: 13413 | P110: 1694 | Q110: 11339 | R110: 1449 | S110: -2074 | T110: 358.95 | U110: -0.09254886528 | V110: 8.465306122 | W110: 358.95 | Y110: =IF(H110>S110,"하락","상승") -> 상승 | Z110: 361 | AA110: =IF(AND(Y109="상승",Z110>W109),"성공",IF(AND(Y109="하락",Z110<W109),"성공",IF(AND(Y109="상승",Z110=W109),"동일가",IF(AND(Y109="하락",Z110=W109),"동일가","실패")))) -> 성공 | AB110: =S110/H110-1 -> -0.414785553
B111: 2024-03-20 | C111: 15:35:00 | D111: 8701 | E111: 1560 | F111: 18809 | G111: 3437 | H111: 10108 | I111: 364.95 | J111: -0.1050590109 | K111: 5.385189132 | M111: 2024-03-20 | N111: 15:45:00 | O111: 11751 | P111: 1459 | Q111: 15896 | R111: 1968 | S111: 4145 | T111: 365.05 | U111: 0.02308909655 | V111: 8.143418468 | W111: 365.05 | Y111: =IF(H111>S111,"하락","상승") -> 하락 | Z111: 361 | AA111: =IF(AND(Y110="상승",Z111>W110),"성공",IF(AND(Y110="하락",Z111<W110),"성공",IF(AND(Y110="상승",Z111=W110),"동일가",IF(AND(Y110="하락",Z111=W110),"동일가","실패")))) -> 성공 | AB111: =S111/H111-1 -> -0.5899287693
B112: 2024-03-21 | C112: 15:35:00 | D112: 8818 | E112: 1231 | F112: 27511 | G112: 4035 | H112: 18693 | I112: 375.25 | J112: -0.345190187 | K112: 6.666547789 | M112: 2024-03-21 | N112: 15:45:00 | O112: 14360 | P112: 1231 | Q112: 21833 | R112: 1874 | S112: 1874 | T112: 375.45 | U112: 0.01184839876 | V112: 11.69984448 | W112: 375.45 | Y112: =IF(H112>S112,"하락","상승") -> 하락 | Z112: 371.7 | AA112: =IF(AND(Y111="상승",Z112>W111),"성공",IF(AND(Y111="하락",Z112<W111),"성공",IF(AND(Y111="상승",Z112=W111),"동일가",IF(AND(Y111="하락",Z112=W111),"동일가","실패")))) -> 실패 | AB112: =S112/H112-1 -> -0.899748569
B113: 2024-03-22 | C113: 15:35:00 | D113: 11667 | E113: 1995 | F113: 12267 | G113: 1787 | H113: 600 | I113: 373.45 | J113: 1.016457203 | K113: -2.884615385 | M113: 2024-03-22 | N113: 15:45:00 | O113: 15341 | P113: 1401 | Q113: 14657 | R113: 1324 | S113: -684 | T113: 373.4 | U113: 0.120206003 | V113: 8.883116883 | W113: 373.4 | Y113: =IF(H113>S113,"하락","상승") -> 하락 | Z113: 373.95 | AA113: =IF(AND(Y112="상승",Z113>W112),"성공",IF(AND(Y112="하락",Z113<W112),"성공",IF(AND(Y112="상승",Z113=W112),"동일가",IF(AND(Y112="하락",Z113=W112),"동일가","실패")))) -> 성공 | AB113: =S113/H113-1 -> -2.14
B114: 2024-03-25 | C114: 15:35:00 | D114: 13192 | E114: 2369 | F114: 12090 | G114: 1758 | H114: -1102 | I114: 372.45 | J114: 1.308538762 | K114: 1.803600655 | M114: 2024-03-25 | N114: 15:45:00 | O114: 12096 | P114: 1583 | Q114: 11859 | R114: 1246 | S114: -237 | T114: 372.6 | U114: 1.876468882 | V114: 0.703264095 | W114: 372.6 | Y114: =IF(H114>S114,"하락","상승") -> 상승 | Z114: 373.8 | AA114: =IF(AND(Y113="상승",Z114>W113),"성공",IF(AND(Y113="하락",Z114<W113),"성공",IF(AND(Y113="상승",Z114=W113),"동일가",IF(AND(Y113="하락",Z114=W113),"동일가","실패")))) -> 실패 | AB114: =S114/H114-1 -> -0.7849364791
B115: 2024-03-26 | C115: 15:35:00 | D115: 10114 | E115: 1964 | F115: 14094 | G115: 2260 | H115: 3980 | I115: 376.2 | J115: 1.086588685 | K115: 13.44594595 | M115: 2024-03-26 | N115: 15:45:00 | O115: 11643 | P115: 1453 | Q115: 13108 | R115: 1465 | S115: 1465 | T115: 376 | U115: 0.9343638794 | V115: 122.0833333 | W115: 376 | Y115: =IF(H115>S115,"하락","상승") -> 하락 | Z115: 375.05 | AA115: =IF(AND(Y114="상승",Z115>W114),"성공",IF(AND(Y114="하락",Z115<W114),"성공",IF(AND(Y114="상승",Z115=W114),"동일가",IF(AND(Y114="하락",Z115=W114),"동일가","실패")))) -> 성공 | AB115: =S115/H115-1 -> -0.6319095477
B116: 2024-03-27 | C116: 15:35:00 | D116: 10207 | E116: 1822 | F116: 17113 | G116: 2756 | H116: 6906 | I116: 376.25 | J116: 0.6072757731 | K116: 7.394004283 | M116: 2024-03-27 | N116: 15:45:00 | O116: 11766 | P116: 1441 | Q116: 13320 | R116: 1551 | S116: 1554 | T116: 376.3 | U116: 0.4228446558 | V116: 14.12727273 | W116: 376.3 | Y116: =IF(H116>S116,"하락","상승") -> 하락 | Z116: 375.3 | AA116: =IF(AND(Y115="상승",Z116>W115),"성공",IF(AND(Y115="하락",Z116<W115),"성공",IF(AND(Y115="상승",Z116=W115),"동일가",IF(AND(Y115="하락",Z116=W115),"동일가","실패")))) -> 성공 | AB116: =S116/H116-1 -> -0.7749782798
B117: 2024-03-28 | C117: 15:35:00 | D117: 9465 | E117: 1661 | F117: 9153 | G117: 1601 | H117: -312 | I117: 375.65 | J117: 0.01867736939 | K117: 5.2 | M117: 2024-03-28 | N117: 15:45:00 | O117: 9729 | P117: 1343 | Q117: 10350 | R117: 1412 | S117: 621 | T117: 375.7 | U117: 0.08579899131 | V117: 9 | W117: 375.7 | Y117: =IF(H117>S117,"하락","상승") -> 상승 | Z117: 376.75 | AA117: =IF(AND(Y116="상승",Z117>W116),"성공",IF(AND(Y116="하락",Z117<W116),"성공",IF(AND(Y116="상승",Z117=W116),"동일가",IF(AND(Y116="하락",Z117=W116),"동일가","실패")))) -> 실패 | AB117: =S117/H117-1 -> -2.990384615
B118: 2024-03-29 | C118: 15:35:00 | D118: 9237 | E118: 1596 | F118: 11545 | G118: 1862 | H118: 2308 | I118: 377.35 | J118: 0.4127282492 | K118: 8.676691729 | M118: 2024-03-29 | N118: 15:45:00 | O118: 9502 | P118: 1250 | Q118: 10350 | R118: 1299 | S118: 848 | T118: 376.95 | U118: 0.3660674365 | V118: 17.30612245 | W118: 376.95 | Y118: =IF(H118>S118,"하락","상승") -> 하락 | Z118: 376.95 | AA118: =IF(AND(Y117="상승",Z118>W117),"성공",IF(AND(Y117="하락",Z118<W117),"성공",IF(AND(Y117="상승",Z118=W117),"동일가",IF(AND(Y117="하락",Z118=W117),"동일가","실패")))) -> 성공 | AB118: =S118/H118-1 -> -0.6325823224
B119: 2024-04-01 | C119: 15:35:00 | D119: 13924 | E119: 2619 | F119: 11927 | G119: 1608 | H119: -1997 | I119: 377.05 | J119: 2.100755529 | K119: 1.975272008 | M119: 2024-04-01 | N119: 15:45:00 | O119: 10738 | P119: 1727 | Q119: 8769 | R119: 945 | S119: -1969 | T119: 377 | U119: 3.061646492 | V119: 2.517902813 | W119: 377 | Y119: =IF(H119>S119,"하락","상승") -> 상승 | Z119: 379.95 | AA119: =IF(AND(Y118="상승",Z119>W118),"성공",IF(AND(Y118="하락",Z119<W118),"성공",IF(AND(Y118="상승",Z119=W118),"동일가",IF(AND(Y118="하락",Z119=W118),"동일가","실패")))) -> 실패 | AB119: =S119/H119-1 -> -0.01402103155
B120: 2024-04-02 | C120: 15:35:00 | D120: 9727 | E120: 1881 | F120: 14658 | G120: 2443 | H120: 4931 | I120: 378.5 | J120: 0.8288144604 | K120: 8.774021352 | M120: 2024-04-02 | N120: 15:45:00 | O120: 10094 | P120: 1389 | Q120: 12177 | R120: 1549 | S120: 2083 | T120: 378.55 | U120: 0.5941021426 | V120: 13.01875 | W120: 378.55 | Y120: =IF(H120>S120,"하락","상승") -> 하락 | Z120: 375.4 | AA120: =IF(AND(Y119="상승",Z120>W119),"성공",IF(AND(Y119="하락",Z120<W119),"성공",IF(AND(Y119="상승",Z120=W119),"동일가",IF(AND(Y119="하락",Z120=W119),"동일가","실패")))) -> 실패 | AB120: =S120/H120-1 -> -0.5775704725
B121: 2024-04-03 | C121: 15:35:00 | D121: 16312 | E121: 3053 | F121: 9128 | G121: 1376 | H121: -7184 | I121: 372.6 | J121: 1.290779561 | K121: 4.283840191 | M121: 2024-04-03 | N121: 15:45:00 | O121: 17526 | P121: 2071 | Q121: 13691 | R121: 1144 | S121: -3835 | T121: 373.05 | U121: 3.505078878 | V121: 4.137001079 | W121: 373.05 | Y121: =IF(H121>S121,"하락","상승") -> 상승 | Z121: 376.3 | AA121: =IF(AND(Y120="상승",Z121>W120),"성공",IF(AND(Y120="하락",Z121<W120),"성공",IF(AND(Y120="상승",Z121=W120),"동일가",IF(AND(Y120="하락",Z121=W120),"동일가","실패")))) -> 성공 | AB121: =S121/H121-1 -> -0.466174833
B122: 2024-04-04 | C122: 15:35:00 | D122: 8069 | E122: 1238 | F122: 12851 | G122: 2435 | H122: 4782 | I122: 378.35 | J122: -1.240152528 | K122: 3.994987469 | M122: 2024-04-04 | N122: 15:45:00 | O122: 12335 | P122: 1076 | Q122: 14467 | R122: 1496 | S122: 2132 | T122: 378.25 | U122: -1.793300101 | V122: 5.076190476 | W122: 378.25 | Y122: =IF(H122>S122,"하락","상승") -> 하락 | Z122: 376.25 | AA122: =IF(AND(Y121="상승",Z122>W121),"성공",IF(AND(Y121="하락",Z122<W121),"성공",IF(AND(Y121="상승",Z122=W121),"동일가",IF(AND(Y121="하락",Z122=W121),"동일가","실패")))) -> 성공 | AB122: =S122/H122-1 -> -0.5541614387
B123: 2024-04-05 | C123: 15:35:00 | D123: 13371 | E123: 2756 | F123: 11809 | G123: 2221 | H123: -1562 | I123: 373.75 | J123: 0.4653778192 | K123: 2.919626168 | M123: 2024-04-05 | N123: 15:45:00 | O123: 14772 | P123: 1567 | Q123: 15422 | R123: 1658 | S123: 650 | T123: 373.75 | U123: -0.1253622859 | V123: 7.142857143 | W123: 373.75 | Y123: =IF(H123>S123,"하락","상승") -> 상승 | Z123: 375 | AA123: =IF(AND(Y122="상승",Z123>W122),"성공",IF(AND(Y122="하락",Z123<W122),"성공",IF(AND(Y122="상승",Z123=W122),"동일가",IF(AND(Y122="하락",Z123=W122),"동일가","실패")))) -> 성공 | AB123: =S123/H123-1 -> -1.416133163
B124: 2024-04-08 | C124: 15:35:00 | D124: 12349 | E124: 2215 | F124: 10719 | G124: 1923 | H124: -1630 | I124: 375.25 | J124: -0.001066336107 | K124: 5.582191781 | M124: 2024-04-08 | N124: 15:45:00 | O124: 10951 | P124: 1512 | Q124: 10577 | R124: 1412 | S124: -374 | T124: 375.2 | U124: 0.2480683334 | V124: 3.74 | W124: 375.2 | Y124: =IF(H124>S124,"하락","상승") -> 상승 | Z124: 376 | AA124: =IF(AND(Y123="상승",Z124>W123),"성공",IF(AND(Y123="하락",Z124<W123),"성공",IF(AND(Y123="상승",Z124=W123),"동일가",IF(AND(Y123="하락",Z124=W123),"동일가","실패")))) -> 성공 | AB124: =S124/H124-1 -> -0.7705521472
B125: 2024-04-09 | C125: 15:35:00 | D125: 15195 | E125: 2943 | F125: 6811 | G125: 1238 | H125: -8384 | I125: 373.05 | J125: 0.3385166302 | K125: 4.917302053 | M125: 2024-04-09 | N125: 15:45:00 | O125: 13130 | P125: 2038 | Q125: 8602 | R125: 1037 | S125: -4528 | T125: 372.8 | U125: 1.852491192 | V125: 4.523476523 | W125: 372.8 | Y125: =IF(H125>S125,"하락","상승") -> 상승 | Z125: 376.95 | AA125: =IF(AND(Y124="상승",Z125>W124),"성공",IF(AND(Y124="하락",Z125<W124),"성공",IF(AND(Y124="상승",Z125=W124),"동일가",IF(AND(Y124="하락",Z125=W124),"동일가","실패")))) -> 성공 | AB125: =S125/H125-1 -> -0.4599236641
B126: 2024-04-11 | C126: 15:35:00 | D126: 5840 | E126: 1223 | F126: 15982 | G126: 3351 | H126: 10142 | I126: 372.85 | J126: -0.005820500489 | K126: 4.765977444 | M126: 2024-04-11 | N126: 15:45:00 | O126: 7872 | P126: 925 | Q126: 12336 | R126: 1959 | S126: 4464 | T126: 372.8 | U126: -2.213179918 | V126: 4.3172147 | W126: 372.8 | Y126: =IF(H126>S126,"하락","상승") -> 하락 | Z126: 365.85 | AA126: =IF(AND(Y125="상승",Z126>W125),"성공",IF(AND(Y125="하락",Z126<W125),"성공",IF(AND(Y125="상승",Z126=W125),"동일가",IF(AND(Y125="하락",Z126=W125),"동일가","실패")))) -> 실패 | AB126: =S126/H126-1 -> -0.5598501282
B127: 2024-04-12 | C127: 15:35:00 | D127: 14680 | E127: 2549 | F127: 9540 | G127: 1781 | H127: -5140 | I127: 369.3 | J127: -0.4025799551 | K127: 6.692708333 | M127: 2024-04-12 | N127: 15:45:00 | O127: 13301 | P127: 1724 | Q127: 9760 | R127: 1386 | S127: -3541 | T127: 369.35 | U127: -0.6733501739 | V127: 10.47633136 | W127: 369.35 | Y127: =IF(H127>S127,"하락","상승") -> 상승 | Z127: 373.65 | AA127: =IF(AND(Y126="상승",Z127>W126),"성공",IF(AND(Y126="하락",Z127<W126),"성공",IF(AND(Y126="상승",Z127=W126),"동일가",IF(AND(Y126="하락",Z127=W126),"동일가","실패")))) -> 실패 | AB127: =S127/H127-1 -> -0.3110894942
B128: 2024-04-15 | C128: 15:35:00 | D128: 8909 | E128: 1439 | F128: 14686 | G128: 2543 | H128: 5777 | I128: 367.05 | J128: -0.4160361176 | K128: 5.232789855 | M128: 2024-04-15 | N128: 15:45:00 | O128: 10438 | P128: 1105 | Q128: 11899 | R128: 1726 | S128: 1461 | T128: 367.2 | U128: -2.552179339 | V128: 2.352657005 | W128: 367.2 | Y128: =IF(H128>S128,"하락","상승") -> 하락 | Z128: 366.5 | AA128: =IF(AND(Y127="상승",Z128>W127),"성공",IF(AND(Y127="하락",Z128<W127),"성공",IF(AND(Y127="상승",Z128=W127),"동일가",IF(AND(Y127="하락",Z128=W127),"동일가","실패")))) -> 실패 | AB128: =S128/H128-1 -> -0.7471005712
B129: 2024-04-16 | C129: 15:35:00 | D129: 16239 | E129: 3066 | F129: 11684 | G129: 1533 | H129: -4555 | I129: 358.15 | J129: 2.325179387 | K129: 2.971298108 | M129: 2024-04-16 | N129: 15:45:00 | O129: 14968 | P129: 2182 | Q129: 13197 | R129: 1456 | S129: -1771 | T129: 358.15 | U129: 2.20411194 | V129: 2.439393939 | W129: 358.15 | Y129: =IF(H129>S129,"하락","상승") -> 상승 | Z129: 362.95 | AA129: =IF(AND(Y128="상승",Z129>W128),"성공",IF(AND(Y128="하락",Z129<W128),"성공",IF(AND(Y128="상승",Z129=W128),"동일가",IF(AND(Y128="하락",Z129=W128),"동일가","실패")))) -> 성공 | AB129: =S129/H129-1 -> -0.6111964874
B130: 2024-04-17 | C130: 15:35:00 | D130: 15503 | E130: 2671 | F130: 7185 | G130: 1058 | H130: -8318 | I130: 354.7 | J130: 0.9869221258 | K130: 5.156850589 | M130: 2024-04-17 | N130: 15:45:00 | O130: 13762 | P130: 1859 | Q130: 9787 | R130: 899 | S130: -3975 | T130: 354.7 | U130: 3.483635813 | V130: 4.140625 | W130: 354.7 | Y130: =IF(H130>S130,"하락","상승") -> 상승 | Z130: 360 | AA130: =IF(AND(Y129="상승",Z130>W129),"성공",IF(AND(Y129="하락",Z130<W129),"성공",IF(AND(Y129="상승",Z130=W129),"동일가",IF(AND(Y129="하락",Z130=W129),"동일가","실패")))) -> 성공 | AB130: =S130/H130-1 -> -0.5221207021
B131: 2024-04-18 | C131: 15:35:00 | D131: 8938 | E131: 1410 | F131: 19716 | G131: 3680 | H131: 10778 | I131: 360.45 | J131: -0.9813983965 | K131: 4.748017621 | M131: 2024-04-18 | N131: 15:45:00 | O131: 10451 | P131: 1095 | Q131: 18104 | R131: 2531 | S131: 7653 | T131: 360.35 | U131: -2.391388247 | V131: 5.329387187 | W131: 360.35 | Y131: =IF(H131>S131,"하락","상승") -> 하락 | Z131: 353.5 | AA131: =IF(AND(Y130="상승",Z131>W130),"성공",IF(AND(Y130="하락",Z131<W130),"성공",IF(AND(Y130="상승",Z131=W130),"동일가",IF(AND(Y130="하락",Z131=W130),"동일가","실패")))) -> 실패 | AB131: =S131/H131-1 -> -0.2899424754
B132: 2024-04-19 | C132: 15:35:00 | D132: 13737 | E132: 2192 | F132: 10415 | G132: 2052 | H132: -3322 | I132: 354.15 | J132: -1.1913435 | K132: 23.72857143 | M132: 2024-04-19 | N132: 15:45:00 | O132: 14489 | P132: 1409 | Q132: 12576 | R132: 1596 | S132: -1913 | T132: 354.05 | U132: -2.403480312 | V132: -10.22994652 | W132: 354.05 | Y132: =IF(H132>S132,"하락","상승") -> 상승 | Z132: 357 | AA132: =IF(AND(Y131="상승",Z132>W131),"성공",IF(AND(Y131="하락",Z132<W131),"성공",IF(AND(Y131="상승",Z132=W131),"동일가",IF(AND(Y131="하락",Z132=W131),"동일가","실패")))) -> 성공 | AB132: =S132/H132-1 -> -0.4241420831
B133: 2024-04-22 | C133: 15:35:00 | D133: 9366 | E133: 1503 | F133: 14507 | G133: 2457 | H133: 5141 | I133: 358.7 | J133: -0.3271820218 | K133: 5.388888889 | M133: 2024-04-22 | N133: 15:45:00 | O133: 16026 | P133: 1414 | Q133: 15613 | R133: 1552 | S133: -413 | T133: 358.8 | U133: -1.273882129 | V133: -2.992753623 | W133: 358.8 | Y133: =IF(H133>S133,"하락","상승") -> 하락 | Z133: 355.15 | AA133: =IF(AND(Y132="상승",Z133>W132),"성공",IF(AND(Y132="하락",Z133<W132),"성공",IF(AND(Y132="상승",Z133=W132),"동일가",IF(AND(Y132="하락",Z133=W132),"동일가","실패")))) -> 성공 | AB133: =S133/H133-1 -> -1.080334565
B134: 2024-04-23 | C134: 15:35:00 | D134: 13384 | E134: 2164 | F134: 10423 | G134: 1654 | H134: -2961 | I134: 358.25 | J134: 0.1168499822 | K134: 5.805882353 | M134: 2024-04-23 | N134: 15:45:00 | O134: 11267 | P134: 1540 | Q134: 11123 | R134: 1255 | S134: -144 | T134: 358.5 | U134: 1.546714441 | V134: 0.5052631579 | W134: 358.5 | Y134: =IF(H134>S134,"하락","상승") -> 상승 | Z134: 359.1 | AA134: =IF(AND(Y133="상승",Z134>W133),"성공",IF(AND(Y133="하락",Z134<W133),"성공",IF(AND(Y133="상승",Z134=W133),"동일가",IF(AND(Y133="하락",Z134=W133),"동일가","실패")))) -> 실패 | AB134: =S134/H134-1 -> -0.9513677812
B135: 2024-04-24 | C135: 15:35:00 | D135: 10736 | E135: 1839 | F135: 14383 | G135: 2328 | H135: 3647 | I135: 364.6 | J135: 0.3403091943 | K135: 7.45807771 | M135: 2024-04-24 | N135: 15:45:00 | O135: 13070 | P135: 1679 | Q135: 13119 | R135: 1347 | S135: 49 | T135: 364.55 | U135: 1.955025462 | V135: -0.1475903614 | W135: 364.55 | Y135: =IF(H135>S135,"하락","상승") -> 하락 | Z135: 363.3 | AA135: =IF(AND(Y134="상승",Z135>W134),"성공",IF(AND(Y134="하락",Z135<W134),"성공",IF(AND(Y134="상승",Z135=W134),"동일가",IF(AND(Y134="하락",Z135=W134),"동일가","실패")))) -> 성공 | AB135: =S135/H135-1 -> -0.9865642994
B136: 2024-04-25 | C136: 15:35:00 | D136: 15300 | E136: 2803 | F136: 8898 | G136: 1424 | H136: -6402 | I136: 358.4 | J136: 0.7901581171 | K136: 4.642494561 | M136: 2024-04-25 | N136: 15:45:00 | O136: 12407 | P136: 1716 | Q136: 9891 | R136: 1119 | S136: -2516 | T136: 358.6 | U136: 1.608955611 | V136: 4.21440536 | W136: 358.6 | Y136: =IF(H136>S136,"하락","상승") -> 상승 | Z136: 360 | AA136: =IF(AND(Y135="상승",Z136>W135),"성공",IF(AND(Y135="하락",Z136<W135),"성공",IF(AND(Y135="상승",Z136=W135),"동일가",IF(AND(Y135="하락",Z136=W135),"동일가","실패")))) -> 성공 | AB136: =S136/H136-1 -> -0.6069978132
B137: 2024-04-26 | C137: 15:35:00 | D137: 9839 | E137: 1779 | F137: 10012 | G137: 1719 | H137: 173 | I137: 361.85 | J137: 0.2936812748 | K137: -2.883333333 | M137: 2024-04-26 | N137: 15:45:00 | O137: 10263 | P137: 1490 | Q137: 10353 | R137: 1201 | S137: 90 | T137: 361.9 | U137: 1.73239694 | V137: -0.3114186851 | W137: 361.9 | Y137: =IF(H137>S137,"하락","상승") -> 하락 | Z137: 362 | AA137: =IF(AND(Y136="상승",Z137>W136),"성공",IF(AND(Y136="하락",Z137<W136),"성공",IF(AND(Y136="상승",Z137=W136),"동일가",IF(AND(Y136="하락",Z137=W136),"동일가","실패")))) -> 성공 | AB137: =S137/H137-1 -> -0.4797687861
B138: 2024-04-29 | C138: 15:35:00 | D138: 10168 | E138: 1770 | F138: 13763 | G138: 2354 | H138: 3595 | I138: 365.45 | J138: 0.1020112418 | K138: 6.155821918 | M138: 2024-04-29 | N138: 15:45:00 | O138: 9328 | P138: 1440 | Q138: 10198 | R138: 1370 | S138: 870 | T138: 365.65 | U138: 0.9660178427 | V138: -12.42857143 | W138: 365.65 | Y138: =IF(H138>S138,"하락","상승") -> 하락 | Z138: 364.35 | AA138: =IF(AND(Y137="상승",Z138>W137),"성공",IF(AND(Y137="하락",Z138<W137),"성공",IF(AND(Y137="상승",Z138=W137),"동일가",IF(AND(Y137="하락",Z138=W137),"동일가","실패")))) -> 실패 | AB138: =S138/H138-1 -> -0.7579972184
B139: 2024-04-30 | C139: 15:35:00 | D139: 9301 | E139: 1645 | F139: 11567 | G139: 2047 | H139: 2266 | I139: 367.2 | J139: -0.003394989777 | K139: 5.63681592 | M139: 2024-04-30 | N139: 15:45:00 | O139: 9137 | P139: 1341 | Q139: 10714 | R139: 1361 | S139: 1577 | T139: 367.45 | U139: 1.058580868 | V139: 78.85 | W139: 367.45 | Y139: =IF(H139>S139,"하락","상승") -> 하락 | Z139: 365.05 | AA139: =IF(AND(Y138="상승",Z139>W138),"성공",IF(AND(Y138="하락",Z139<W138),"성공",IF(AND(Y138="상승",Z139=W138),"동일가",IF(AND(Y138="하락",Z139=W138),"동일가","실패")))) -> 성공 | AB139: =S139/H139-1 -> -0.3040600177
B140: 2024-05-02 | C140: 15:35:00 | D140: 9626 | E140: 1591 | F140: 10184 | G140: 2156 | H140: 558 | I140: 365.6 | J140: -1.326720689 | K140: 0.9876106195 | M140: 2024-05-02 | N140: 15:45:00 | O140: 10298 | P140: 1111 | Q140: 9737 | R140: 1660 | S140: -561 | T140: 365.35 | U140: -3.403464262 | V140: -1.021857923 | W140: 365.35 | Y140: =IF(H140>S140,"하락","상승") -> 하락 | Z140: 365.1 | AA140: =IF(AND(Y139="상승",Z140>W139),"성공",IF(AND(Y139="하락",Z140<W139),"성공",IF(AND(Y139="상승",Z140=W139),"동일가",IF(AND(Y139="하락",Z140=W139),"동일가","실패")))) -> 성공 | AB140: =S140/H140-1 -> -2.005376344
B141: 2024-05-03 | C141: 15:35:00 | D141: 16188 | E141: 3118 | F141: 7025 | G141: 1043 | H141: -9163 | I141: 364.9 | J141: 1.543589107 | K141: 4.415903614 | M141: 2024-05-03 | N141: 15:45:00 | O141: 12148 | P141: 1867 | Q141: 8224 | R141: 849 | S141: -3924 | T141: 364.5 | U141: 3.179994991 | V141: 3.854616896 | W141: 364.5 | Y141: =IF(H141>S141,"하락","상승") -> 상승 | Z141: 369.3 | AA141: =IF(AND(Y140="상승",Z141>W140),"성공",IF(AND(Y140="하락",Z141<W140),"성공",IF(AND(Y140="상승",Z141=W140),"동일가",IF(AND(Y140="하락",Z141=W140),"동일가","실패")))) -> 실패 | AB141: =S141/H141-1 -> -0.5717559751
B142: 2024-05-07 | C142: 15:35:00 | D142: 9997 | E142: 1628 | F142: 20599 | G142: 3873 | H142: 10602 | I142: 373.75 | J142: -0.8220473308 | K142: 4.722494432 | M142: 2024-05-07 | N142: 15:45:00 | O142: 12949 | P142: 1326 | Q142: 16600 | R142: 2020 | S142: 3651 | T142: 373.7 | U142: -1.547638248 | V142: 5.260806916 | W142: 373.7 | Y142: =IF(H142>S142,"하락","상승") -> 하락 | Z142: 370.75 | AA142: =IF(AND(Y141="상승",Z142>W141),"성공",IF(AND(Y141="하락",Z142<W141),"성공",IF(AND(Y141="상승",Z142=W141),"동일가",IF(AND(Y141="하락",Z142=W141),"동일가","실패")))) -> 성공 | AB142: =S142/H142-1 -> -0.655631013
B143: 2024-05-08 | C143: 15:35:00 | D143: 9204 | E143: 1551 | F143: 17536 | G143: 3401 | H143: 8332 | I143: 375.35 | J143: -0.778105427 | K143: 4.503783784 | M143: 2024-05-08 | N143: 15:45:00 | O143: 10841 | P143: 1180 | Q143: 14642 | R143: 2002 | S143: 3801 | T143: 375.3 | U143: -1.873601822 | V143: 4.624087591 | W143: 375.3 | Y143: =IF(H143>S143,"하락","상승") -> 하락 | Z143: 374.35 | AA143: =IF(AND(Y142="상승",Z143>W142),"성공",IF(AND(Y142="하락",Z143<W142),"성공",IF(AND(Y142="상승",Z143=W142),"동일가",IF(AND(Y142="하락",Z143=W142),"동일가","실패")))) -> 실패 | AB143: =S143/H143-1 -> -0.5438070091
B144: 2024-05-09 | C144: 15:35:00 | D144: 15061 | E144: 2840 | F144: 6666 | G144: 1303 | H144: -8395 | I144: 370.7 | J144: -0.1872825981 | K144: 5.461938842 | M144: 2024-05-09 | N144: 15:45:00 | O144: 15736 | P144: 2129 | Q144: 12046 | R144: 1188 | S144: -3690 | T144: 370.95 | U144: 2.748467136 | V144: 3.921360255 | W144: 370.95 | Y144: =IF(H144>S144,"하락","상승") -> 상승 | Z144: 376.4 | AA144: =IF(AND(Y143="상승",Z144>W143),"성공",IF(AND(Y143="하락",Z144<W143),"성공",IF(AND(Y143="상승",Z144=W143),"동일가",IF(AND(Y143="하락",Z144=W143),"동일가","실패")))) -> 실패 | AB144: =S144/H144-1 -> -0.5604526504
B145: 2024-05-10 | C145: 15:35:00 | D145: 12786 | E145: 2328 | F145: 12035 | G145: 1750 | H145: -751 | I145: 372.55 | J145: 1.384874816 | K145: 1.299307958 | M145: 2024-05-10 | N145: 15:45:00 | O145: 12877 | P145: 1682 | Q145: 10124 | R145: 1066 | S145: -2753 | T145: 372.4 | U145: 1.841418797 | V145: 4.469155844 | W145: 372.4 | Y145: =IF(H145>S145,"하락","상승") -> 하락 | Z145: 373.95 | AA145: =IF(AND(Y144="상승",Z145>W144),"성공",IF(AND(Y144="하락",Z145<W144),"성공",IF(AND(Y144="상승",Z145=W144),"동일가",IF(AND(Y144="하락",Z145=W144),"동일가","실패")))) -> 성공 | AB145: =S145/H145-1 -> 2.665778961
B146: 2024-05-13 | C146: 15:35:00 | D146: 10630 | E146: 2071 | F146: 9033 | G146: 1602 | H146: -1597 | I146: 371.65 | J146: 0.5057906854 | K146: 3.405117271 | M146: 2024-05-13 | N146: 15:45:00 | O146: 10760 | P146: 1788 | Q146: 9778 | R146: 1367 | S146: -982 | T146: 371.65 | U146: 1.134992447 | V146: 2.332541568 | W146: 371.65 | Y146: =IF(H146>S146,"하락","상승") -> 상승 | Z146: 373.1 | AA146: =IF(AND(Y145="상승",Z146>W145),"성공",IF(AND(Y145="하락",Z146<W145),"성공",IF(AND(Y145="상승",Z146=W145),"동일가",IF(AND(Y145="하락",Z146=W145),"동일가","실패")))) -> 실패 | AB146: =S146/H146-1 -> -0.385097057
B147: 2024-05-14 | C147: 15:35:00 | D147: 11367 | E147: 1924 | F147: 11211 | G147: 1808 | H147: -156 | I147: 371.9 | J147: 0.2927701783 | K147: 1.344827586 | M147: 2024-05-14 | N147: 15:45:00 | O147: 10221 | P147: 1579 | Q147: 9726 | R147: 1448 | S147: -495 | T147: 371.85 | U147: 0.2437665982 | V147: 3.778625954 | W147: 371.85 | Y147: =IF(H147>S147,"하락","상승") -> 하락 | Z147: 372.4 | AA147: =IF(AND(Y146="상승",Z147>W146),"성공",IF(AND(Y146="하락",Z147<W146),"성공",IF(AND(Y146="상승",Z147=W146),"동일가",IF(AND(Y146="하락",Z147=W146),"동일가","실패")))) -> 성공 | AB147: =S147/H147-1 -> 2.173076923
B148: 2024-05-16 | C148: 15:35:00 | D148: 15041 | E148: 2976 | F148: 11928 | G148: 1812 | H148: -3113 | I148: 375.95 | J148: 1.528681995 | K148: 2.674398625 | M148: 2024-05-16 | N148: 15:45:00 | O148: 12227 | P148: 1926 | Q148: 8544 | R148: 1131 | S148: -3683 | T148: 376 | U148: 1.205986211 | V148: 4.632704403 | W148: 376 | Y148: =IF(H148>S148,"하락","상승") -> 하락 | Z148: 379.05 | AA148: =IF(AND(Y147="상승",Z148>W147),"성공",IF(AND(Y147="하락",Z148<W147),"성공",IF(AND(Y147="상승",Z148=W147),"동일가",IF(AND(Y147="하락",Z148=W147),"동일가","실패")))) -> 실패 | AB148: =S148/H148-1 -> 0.183103116
B149: 2024-05-17 | C149: 15:35:00 | D149: 21250 | E149: 3695 | F149: 9626 | G149: 1189 | H149: -11624 | I149: 371.45 | J149: 2.344864005 | K149: 4.638467678 | M149: 2024-05-17 | N149: 15:45:00 | O149: 14789 | P149: 1993 | Q149: 10883 | R149: 1003 | S149: -3906 | T149: 371.35 | U149: 3.429977003 | V149: 3.945454545 | W149: 371.35 | Y149: =IF(H149>S149,"하락","상승") -> 상승 | Z149: 374.35 | AA149: =IF(AND(Y148="상승",Z149>W148),"성공",IF(AND(Y148="하락",Z149<W148),"성공",IF(AND(Y148="상승",Z149=W148),"동일가",IF(AND(Y148="하락",Z149=W148),"동일가","실패")))) -> 성공 | AB149: =S149/H149-1 -> -0.6639710943
B150: 2024-05-20 | C150: 15:35:00 | D150: 10703 | E150: 2043 | F150: 14127 | G150: 2426 | H150: 3424 | I150: 374.45 | J150: 0.5843012898 | K150: 8.939947781 | M150: 2024-05-20 | N150: 15:45:00 | O150: 10678 | P150: 1568 | Q150: 11816 | R150: 1183 | S150: 1138 | T150: 374.65 | U150: 3.178216701 | V150: -2.955844156 | W150: 374.65 | Y150: =IF(H150>S150,"하락","상승") -> 하락 | Z150: 374.1 | AA150: =IF(AND(Y149="상승",Z150>W149),"성공",IF(AND(Y149="하락",Z150<W149),"성공",IF(AND(Y149="상승",Z150=W149),"동일가",IF(AND(Y149="하락",Z150=W149),"동일가","실패")))) -> 성공 | AB150: =S150/H150-1 -> -0.6676401869
B151: 2024-05-21 | C151: 15:35:00 | D151: 11774 | E151: 1828 | F151: 10985 | G151: 1950 | H151: -789 | I151: 373.05 | J151: -0.8075857039 | K151: -6.467213115 | M151: 2024-05-21 | N151: 15:45:00 | O151: 10796 | P151: 1221 | Q151: 10846 | R151: 1377 | S151: 50 | T151: 373.25 | U151: -0.9653896321 | V151: 0.3205128205 | W151: 373.25 | Y151: =IF(H151>S151,"하락","상승") -> 상승 | Z151: 373.85 | AA151: =IF(AND(Y150="상승",Z151>W150),"성공",IF(AND(Y150="하락",Z151<W150),"성공",IF(AND(Y150="상승",Z151=W150),"동일가",IF(AND(Y150="하락",Z151=W150),"동일가","실패")))) -> 성공 | AB151: =S151/H151-1 -> -1.063371356
B152: 2024-05-22 | C152: 15:35:00 | D152: 10451 | E152: 1742 | F152: 14433 | G152: 2677 | H152: 3982 | I152: 372.9 | J152: -0.6079429438 | K152: 4.258823529 | M152: 2024-05-22 | N152: 15:45:00 | O152: 9119 | P152: 1292 | Q152: 10425 | R152: 1485 | S152: 1306 | T152: 372.85 | U152: -0.0378475154 | V152: 6.766839378 | W152: 372.85 | Y152: =IF(H152>S152,"하락","상승") -> 하락 | Z152: 373.45 | AA152: =IF(AND(Y151="상승",Z152>W151),"성공",IF(AND(Y151="하락",Z152<W151),"성공",IF(AND(Y151="상승",Z152=W151),"동일가",IF(AND(Y151="하락",Z152=W151),"동일가","실패")))) -> 성공 | AB152: =S152/H152-1 -> -0.6720241085
B153: 2024-05-23 | C153: 15:35:00 | D153: 9900 | E153: 1772 | F153: 14631 | G153: 2481 | H153: 4731 | I153: 372.55 | J153: 0.3103114142 | K153: 6.672778561 | M153: 2024-05-23 | N153: 15:45:00 | O153: 9451 | P153: 1358 | Q153: 11285 | R153: 1429 | S153: 1834 | T153: 372.75 | U153: 0.9376315971 | V153: 25.83098592 | W153: 372.75 | Y153: =IF(H153>S153,"하락","상승") -> 하락 | Z153: 372.6 | AA153: =IF(AND(Y152="상승",Z153>W152),"성공",IF(AND(Y152="하락",Z153<W152),"성공",IF(AND(Y152="상승",Z153=W152),"동일가",IF(AND(Y152="하락",Z153=W152),"동일가","실패")))) -> 성공 | AB153: =S153/H153-1 -> -0.6123441133
B154: 2024-05-24 | C154: 15:35:00 | D154: 13793 | E154: 2380 | F154: 10409 | G154: 1685 | H154: -3384 | I154: 366.6 | J154: 0.38206992 | K154: 4.869064748 | M154: 2024-05-24 | N154: 15:45:00 | O154: 10531 | P154: 1579 | Q154: 9109 | R154: 1296 | S154: -1422 | T154: 366.55 | U154: 0.3591383631 | V154: 5.024734982 | W154: 366.55 | Y154: =IF(H154>S154,"하락","상승") -> 상승 | Z154: 367.25 | AA154: =IF(AND(Y153="상승",Z154>W153),"성공",IF(AND(Y153="하락",Z154<W153),"성공",IF(AND(Y153="상승",Z154=W153),"동일가",IF(AND(Y153="하락",Z154=W153),"동일가","실패")))) -> 성공 | AB154: =S154/H154-1 -> -0.579787234
B155: 2024-05-27 | C155: 15:35:00 | D155: 6827 | E155: 1104 | F155: 13115 | G155: 2471 | H155: 6288 | I155: 371.75 | J155: -0.8763090253 | K155: 4.599853694 | M155: 2024-05-27 | N155: 15:45:00 | O155: 10044 | P155: 1057 | Q155: 13473 | R155: 1745 | S155: 3429 | T155: 371.75 | U155: -1.781448279 | V155: 4.984011628 | W155: 371.75 | Y155: =IF(H155>S155,"하락","상승") -> 하락 | Z155: 368.5 | AA155: =IF(AND(Y154="상승",Z155>W154),"성공",IF(AND(Y154="하락",Z155<W154),"성공",IF(AND(Y154="상승",Z155=W154),"동일가",IF(AND(Y154="하락",Z155=W154),"동일가","실패")))) -> 성공 | AB155: =S155/H155-1 -> -0.4546755725
B156: 2024-05-28 | C156: 15:35:00 | D156: 10912 | E156: 1596 | F156: 17546 | G156: 3107 | H156: 6634 | I156: 372.45 | J156: -1.189844582 | K156: 4.390469887 | M156: 2024-05-28 | N156: 15:45:00 | O156: 8778 | P156: 1120 | Q156: 13517 | R156: 2193 | S156: 4739 | T156: 372.05 | U156: -1.67379731 | V156: 4.416589003 | W156: 372.05 | Y156: =IF(H156>S156,"하락","상승") -> 하락 | Z156: 372.45 | AA156: =IF(AND(Y155="상승",Z156>W155),"성공",IF(AND(Y155="하락",Z156<W155),"성공",IF(AND(Y155="상승",Z156=W155),"동일가",IF(AND(Y155="하락",Z156=W155),"동일가","실패")))) -> 실패 | AB156: =S156/H156-1 -> -0.2856496834
B157: 2024-05-29 | C157: 15:35:00 | D157: 16169 | E157: 3146 | F157: 8292 | G157: 1300 | H157: -7877 | I157: 366.2 | J157: 1.238919263 | K157: 4.267063922 | M157: 2024-05-29 | N157: 15:45:00 | O157: 12779 | P157: 2171 | Q157: 10102 | R157: 1198 | S157: -2677 | T157: 366.35 | U157: 2.546159767 | V157: 2.751284687 | W157: 366.35 | Y157: =IF(H157>S157,"하락","상승") -> 상승 | Z157: 371.65 | AA157: =IF(AND(Y156="상승",Z157>W156),"성공",IF(AND(Y156="하락",Z157<W156),"성공",IF(AND(Y156="상승",Z157=W156),"동일가",IF(AND(Y156="하락",Z157=W156),"동일가","실패")))) -> 성공 | AB157: =S157/H157-1 -> -0.6601498032
B158: 2024-05-30 | C158: 15:35:00 | D158: 16266 | E158: 2853 | F158: 9768 | G158: 1243 | H158: -6498 | I158: 360.05 | J158: 2.157040098 | K158: 4.036024845 | M158: 2024-05-30 | N158: 15:45:00 | O158: 13060 | P158: 2008 | Q158: 9160 | R158: 1065 | S158: -3900 | T158: 360.1 | U158: 2.096954903 | V158: 4.13573701 | W158: 360.1 | Y158: =IF(H158>S158,"하락","상승") -> 상승 | Z158: 362.2 | AA158: =IF(AND(Y157="상승",Z158>W157),"성공",IF(AND(Y157="하락",Z158<W157),"성공",IF(AND(Y157="상승",Z158=W157),"동일가",IF(AND(Y157="하락",Z158=W157),"동일가","실패")))) -> 실패 | AB158: =S158/H158-1 -> -0.3998153278
B159: 2024-05-31 | C159: 15:35:00 | D159: 13756 | E159: 2157 | F159: 9950 | G159: 1208 | H159: -3806 | I159: 360 | J159: 1.859378982 | K159: 4.010537408 | M159: 2024-05-31 | N159: 15:45:00 | O159: 11786 | P159: 1655 | Q159: 10689 | R159: 864 | S159: -1097 | T159: 360.05 | U159: 5.250077627 | V159: 1.386852086 | W159: 360.05 | Y159: =IF(H159>S159,"하락","상승") -> 상승 | Z159: 361.75 | AA159: =IF(AND(Y158="상승",Z159>W158),"성공",IF(AND(Y158="하락",Z159<W158),"성공",IF(AND(Y158="상승",Z159=W158),"동일가",IF(AND(Y158="하락",Z159=W158),"동일가","실패")))) -> 성공 | AB159: =S159/H159-1 -> -0.7117708881
B160: 2024-06-03 | C160: 15:35:00 | D160: 8816 | E160: 1634 | F160: 19610 | G160: 3327 | H160: 10794 | I160: 366.05 | J160: 0.4988501408 | K160: 6.375664501 | M160: 2024-06-03 | N160: 15:45:00 | O160: 9128 | P160: 1384 | Q160: 17097 | R160: 2552 | S160: 7969 | T160: 366.1 | U160: 0.1040756881 | V160: 6.822773973 | W160: 366.1 | Y160: =IF(H160>S160,"하락","상승") -> 하락 | Z160: 362.7 | AA160: =IF(AND(Y159="상승",Z160>W159),"성공",IF(AND(Y159="하락",Z160<W159),"성공",IF(AND(Y159="상승",Z160=W159),"동일가",IF(AND(Y159="하락",Z160=W159),"동일가","실패")))) -> 성공 | AB160: =S160/H160-1 -> -0.2617194738
B161: 2024-06-04 | C161: 15:35:00 | D161: 13060 | E161: 1925 | F161: 11255 | G161: 1637 | H161: -1805 | I161: 363.3 | J161: 0.09096621155 | K161: 6.267361111 | M161: 2024-06-04 | N161: 15:45:00 | O161: 11297 | P161: 1360 | Q161: 9617 | R161: 1168 | S161: -1680 | T161: 363.3 | U161: -0.07288477035 | V161: 8.75 | W161: 363.3 | Y161: =IF(H161>S161,"하락","상승") -> 상승 | Z161: 365.05 | AA161: =IF(AND(Y160="상승",Z161>W160),"성공",IF(AND(Y160="하락",Z161<W160),"성공",IF(AND(Y160="상승",Z161=W160),"동일가",IF(AND(Y160="하락",Z161=W160),"동일가","실패")))) -> 성공 | AB161: =S161/H161-1 -> -0.06925207756
B162: 2024-06-05 | C162: 15:35:00 | D162: 10711 | E162: 1654 | F162: 16216 | G162: 2713 | H162: 5505 | I162: 366.55 | J162: -0.4986691335 | K162: 5.198300283 | M162: 2024-06-05 | N162: 15:45:00 | O162: 10766 | P162: 1311 | Q162: 15650 | R162: 2221 | S162: 4884 | T162: 366.5 | U162: -1.165676362 | V162: 5.367032967 | W162: 366.5 | Y162: =IF(H162>S162,"하락","상승") -> 하락 | Z162: 366 | AA162: =IF(AND(Y161="상승",Z162>W161),"성공",IF(AND(Y161="하락",Z162<W161),"성공",IF(AND(Y161="상승",Z162=W161),"동일가",IF(AND(Y161="하락",Z162=W161),"동일가","실패")))) -> 성공 | AB162: =S162/H162-1 -> -0.1128065395
B163: 2024-06-07 | C163: 15:35:00 | D163: 10602 | E163: 1590 | F163: 18794 | G163: 2738 | H163: 8192 | I163: 371.9 | J163: 0.1962098764 | K163: 7.135888502 | M163: 2024-06-07 | N163: 15:45:00 | O163: 9891 | P163: 1259 | Q163: 14652 | R163: 1740 | S163: 4761 | T163: 371.9 | U163: 0.5644545479 | V163: 9.898128898 | W163: 371.9 | Y163: =IF(H163>S163,"하락","상승") -> 하락 | Z163: 369.8 | AA163: =IF(AND(Y162="상승",Z163>W162),"성공",IF(AND(Y162="하락",Z163<W162),"성공",IF(AND(Y162="상승",Z163=W162),"동일가",IF(AND(Y162="하락",Z163=W162),"동일가","실패")))) -> 실패 | AB163: =S163/H163-1 -> -0.4188232422
B164: 2024-06-10 | C164: 15:35:00 | D164: 12000 | E164: 1721 | F164: 11138 | G164: 1696 | H164: -862 | I164: 368.05 | J164: -0.4054733152 | K164: 34.48 | M164: 2024-06-10 | N164: 15:45:00 | O164: 12157 | P164: 1207 | Q164: 11833 | R164: 1369 | S164: -324 | T164: 368 | U164: -1.428544109 | V164: -2 | W164: 368 | Y164: =IF(H164>S164,"하락","상승") -> 상승 | Z164: 367.85 | AA164: =IF(AND(Y163="상승",Z164>W163),"성공",IF(AND(Y163="하락",Z164<W163),"성공",IF(AND(Y163="상승",Z164=W163),"동일가",IF(AND(Y163="하락",Z164=W163),"동일가","실패")))) -> 성공 | AB164: =S164/H164-1 -> -0.6241299304
B165: 2024-06-11 | C165: ='1. 매수매도 총잔량'!$A$424 -> 15:35:00 | D165: 12000 | E165: 1721 | F165: 11138 | G165: 1696 | H165: -862 | I165: 368.5 | J165: -0.4054733152 | K165: 34.48 | M165: 2024-06-11 | N165: ='1. 매수매도 총잔량'!$A$434 -> 15:45:00 | O165: 12157 | P165: 1207 | Q165: 11833 | R165: 1369 | S165: -324 | T165: ='1. 매수매도 총잔량'!$G$435 -> 329.4 | U165: -1.428544109 | V165: -2 | W165: 368.85 | Y165: =IF(H165>S165,"하락","상승") -> 상승 | Z165: 367.35 | AA165: =IF(AND(Y164="상승",Z165>W164),"성공",IF(AND(Y164="하락",Z165<W164),"성공",IF(AND(Y164="상승",Z165=W164),"동일가",IF(AND(Y164="하락",Z165=W164),"동일가","실패")))) -> 실패 | AB165: =S165/H165-1 -> -0.6241299304
B166: 2024-06-12 | C166: 15:35:00 | D166: 7111 | E166: 845 | F166: 17866 | G166: 2799 | H166: 10755 | I166: 371.65 | J166: -2.032390689 | K166: 5.504094166 | M166: 2024-06-12 | N166: 15:45:00 | O166: 6026 | P166: 634 | Q166: 13333 | R166: 2131 | S166: 7307 | T166: 371.7 | U166: -3.24804486 | V166: 4.881095524 | W166: 371.7 | Y166: =IF(H166>S166,"하락","상승") -> 하락 | Z166: 368 | AA166: =IF(AND(Y165="상승",Z166>W165),"성공",IF(AND(Y165="하락",Z166<W165),"성공",IF(AND(Y165="상승",Z166=W165),"동일가",IF(AND(Y165="하락",Z166=W165),"동일가","실패")))) -> 실패 | AB166: =S166/H166-1 -> -0.3205950721
B167: 2024-06-13 | C167: 15:35:00 | D167: 1290 | E167: 400 | F167: 2421 | G167: 691 | H167: 1131 | I167: 375.75 | J167: 0.278617945 | K167: 3.886597938 | M167: 2024-06-13 | N167: 15:45:00 | O167: 1290 | P167: 400 | Q167: 2421 | R167: 691 | S167: 1131 | T167: 375.75 | U167: 0.278617945 | V167: 3.886597938 | W167: 375.75 | Y167: =IF(H167>S167,"하락","상승") -> 상승 | Z167: 375.5 | AA167: =IF(AND(Y166="상승",Z167>W166),"성공",IF(AND(Y166="하락",Z167<W166),"성공",IF(AND(Y166="상승",Z167=W166),"동일가",IF(AND(Y166="하락",Z167=W166),"동일가","실패")))) -> 실패 | AB167: =S167/H167-1 -> 0
B168: 2024-06-14 | C168: 15:35:00 | D168: 11441 | E168: 1895 | F168: 18180 | G168: 3059 | H168: 6739 | I168: 377.45 | J168: -0.09434835224 | K168: 5.7895189 | M168: 2024-06-14 | N168: 15:45:00 | O168: 11713 | P168: 1553 | Q168: 14626 | R168: 2161 | S168: 2913 | T168: 377.45 | U168: -0.7740135452 | V168: 4.791118421 | W168: 377.45 | Y168: =IF(H168>S168,"하락","상승") -> 하락 | Z168: 375.5 | AA168: =IF(AND(Y167="상승",Z168>W167),"성공",IF(AND(Y167="하락",Z168<W167),"성공",IF(AND(Y167="상승",Z168=W167),"동일가",IF(AND(Y167="하락",Z168=W167),"동일가","실패")))) -> 실패 | AB168: =S168/H168-1 -> -0.5677400208
B169: 2024-06-17 | C169: 15:35:00 | D169: 13385 | E169: 2273 | F169: 11281 | G169: 1788 | H169: -2104 | I169: 376 | J169: 0.4205907595 | K169: 4.33814433 | M169: 2024-06-17 | N169: 15:45:00 | O169: 11850 | P169: 1692 | Q169: 10805 | R169: 1455 | S169: -1045 | T169: 375.95 | U169: 0.4225707392 | V169: 4.4092827 | W169: 375.95 | Y169: =IF(H169>S169,"하락","상승") -> 상승 | Z169: 376 | AA169: =IF(AND(Y168="상승",Z169>W168),"성공",IF(AND(Y168="하락",Z169<W168),"성공",IF(AND(Y168="상승",Z169=W168),"동일가",IF(AND(Y168="하락",Z169=W168),"동일가","실패")))) -> 성공 | AB169: =S169/H169-1 -> -0.5033269962
B170: 2024-06-18 | C170: 15:35:00 | D170: 10906 | E170: 1663 | F170: 15147 | G170: 2755 | H170: 4241 | I170: 379.9 | J170: -1.060024031 | K170: 3.883699634 | M170: 2024-06-18 | N170: 15:45:00 | O170: 10904 | P170: 1326 | Q170: 13536 | R170: 2015 | S170: 2632 | T170: 379.6 | U170: -1.505609887 | V170: 3.820029028 | W170: 379.6 | Y170: =IF(H170>S170,"하락","상승") -> 하락 | Z170: 379.15 | AA170: =IF(AND(Y169="상승",Z170>W169),"성공",IF(AND(Y169="하락",Z170<W169),"성공",IF(AND(Y169="상승",Z170=W169),"동일가",IF(AND(Y169="하락",Z170=W169),"동일가","실패")))) -> 성공 | AB170: =S170/H170-1 -> -0.3793916529
B171: 2024-06-19 | C171: 15:35:00 | D171: 7742 | E171: 1134 | F171: 14368 | G171: 2522 | H171: 6626 | I171: 385.65 | J171: -1.130094673 | K171: 4.773775216 | M171: 2024-06-19 | N171: 15:45:00 | O171: 9358 | P171: 1077 | Q171: 13710 | R171: 1983 | S171: 4352 | T171: 385.7 | U171: -1.77518377 | V171: 4.803532009 | W171: 385.7 | Y171: =IF(H171>S171,"하락","상승") -> 하락 | Z171: 382.6 | AA171: =IF(AND(Y170="상승",Z171>W170),"성공",IF(AND(Y170="하락",Z171<W170),"성공",IF(AND(Y170="상승",Z171=W170),"동일가",IF(AND(Y170="하락",Z171=W170),"동일가","실패")))) -> 실패 | AB171: =S171/H171-1 -> -0.3431934802
B172: 2024-06-20 | C172: 15:35:00 | D172: 9952 | E172: 1532 | F172: 13764 | G172: 2575 | H172: 3812 | I172: 386.9 | J172: -1.150840832 | K172: 3.654841802 | M172: 2024-06-20 | N172: 15:45:00 | O172: 9341 | P172: 994 | Q172: 12657 | R172: 1849 | S172: 3316 | T172: 386.8 | U172: -2.55206251 | V172: 3.878362573 | W172: 386.8 | Y172: =IF(H172>S172,"하락","상승") -> 하락 | Z172: 385.2 | AA172: =IF(AND(Y171="상승",Z172>W171),"성공",IF(AND(Y171="하락",Z172<W171),"성공",IF(AND(Y171="상승",Z172=W171),"동일가",IF(AND(Y171="하락",Z172=W171),"동일가","실패")))) -> 성공 | AB172: =S172/H172-1 -> -0.130115425
B173: 2024-06-21 | C173: 15:35:00 | D173: 9687 | E173: 1662 | F173: 14827 | G173: 2818 | H173: 5140 | I173: 383.65 | J173: -0.5669868535 | K173: 4.446366782 | M173: 2024-06-21 | N173: 15:45:00 | O173: 11696 | P173: 1091 | Q173: 15767 | R173: 2232 | S173: 4071 | T173: 383.45 | U173: -3.656371863 | V173: 3.567922875 | W173: 383.45 | Y173: =IF(H173>S173,"하락","상승") -> 하락 | Z173: 383.25 | AA173: =IF(AND(Y172="상승",Z173>W172),"성공",IF(AND(Y172="하락",Z173<W172),"성공",IF(AND(Y172="상승",Z173=W172),"동일가",IF(AND(Y172="하락",Z173=W172),"동일가","실패")))) -> 성공 | AB173: =S173/H173-1 -> -0.2079766537
B174: 2024-06-24 | C174: 15:35:00 | D174: 10102 | E174: 1784 | F174: 14129 | G174: 2434 | H174: 4027 | I174: 380.6 | J174: 0.142291933 | K174: 6.195384615 | M174: 2024-06-24 | N174: 15:45:00 | O174: 10299 | P174: 1357 | Q174: 13865 | R174: 2148 | S174: 3566 | T174: 380.7 | U174: -1.134694027 | V174: 4.508217446 | W174: 380.7 | Y174: =IF(H174>S174,"하락","상승") -> 하락 | Z174: 381.45 | AA174: =IF(AND(Y173="상승",Z174>W173),"성공",IF(AND(Y173="하락",Z174<W173),"성공",IF(AND(Y173="상승",Z174=W173),"동일가",IF(AND(Y173="하락",Z174=W173),"동일가","실패")))) -> 성공 | AB174: =S174/H174-1 -> -0.1144772784
B175: 2024-06-25 | C175: 15:35:00 | D175: 11306 | E175: 1842 | F175: 20182 | G175: 3606 | H175: 8876 | I175: 381.55 | J175: -0.5411104547 | K175: 5.031746032 | M175: 2024-06-25 | N175: ='1. 매수매도 총잔량'!$A$434 -> 15:45:00 | O175: 10286 | P175: 1439 | Q175: 15977 | R175: 2090 | S175: 5691 | T175: 381.95 | U175: 0.4964781497 | V175: 8.741935484 | W175: 381.95 | Y175: =IF(H175>S175,"하락","상승") -> 하락 | Z175: 379.65 | AA175: =IF(AND(Y174="상승",Z175>W174),"성공",IF(AND(Y174="하락",Z175<W174),"성공",IF(AND(Y174="상승",Z175=W174),"동일가",IF(AND(Y174="하락",Z175=W174),"동일가","실패")))) -> 성공 | AB175: =S175/H175-1 -> -0.3588328076
B176: 2024-06-26 | C176: 15:35:00 | D176: 6683 | E176: 1063 | F176: 18947 | G176: 3174 | H176: 12264 | I176: 384.7 | J176: -0.3174846071 | K176: 5.809568925 | M176: 2024-06-26 | N176: 15:45:00 | O176: 9137 | P176: 924 | Q176: 17724 | R176: 2349 | S176: 8587 | T176: 384.75 | U176: -2.343189697 | V176: 6.025964912 | W176: 384.75 | Y176: =IF(H176>S176,"하락","상승") -> 하락 | Z176: 380.5 | AA176: =IF(AND(Y175="상승",Z176>W175),"성공",IF(AND(Y175="하락",Z176<W175),"성공",IF(AND(Y175="상승",Z176=W175),"동일가",IF(AND(Y175="하락",Z176=W175),"동일가","실패")))) -> 성공 | AB176: =S176/H176-1 -> -0.2998206132
B177: 2024-06-27 | C177: 15:35:00 | D177: 8841 | E177: 1286 | F177: 17910 | G177: 3354 | H177: 9069 | I177: 384.1 | J177: -1.534912933 | K177: 4.385396518 | M177: 2024-06-27 | N177: 15:45:00 | O177: 8594 | P177: 909 | Q177: 16920 | R177: 2913 | S177: 8326 | T177: 383.8 | U177: -3.645900532 | V177: 4.154690619 | W177: 383.8 | Y177: =IF(H177>S177,"하락","상승") -> 하락 | Z177: 381.7 | AA177: =IF(AND(Y176="상승",Z177>W176),"성공",IF(AND(Y176="하락",Z177<W176),"성공",IF(AND(Y176="상승",Z177=W176),"동일가",IF(AND(Y176="하락",Z177=W176),"동일가","실패")))) -> 성공 | AB177: =S177/H177-1 -> -0.08192744514
B178: 2024-06-28 | C178: 15:35:00 | D178: 9322 | E178: 1490 | F178: 13123 | G178: 2091 | H178: 3801 | I178: 386.05 | J178: 0.01956868522 | K178: 6.324459235 | M178: 2024-06-28 | N178: 15:45:00 | O178: 10129 | P178: 1407 | Q178: 12174 | R178: 1623 | S178: 2045 | T178: 386.35 | U178: 0.3019192393 | V178: 9.467592593 | W178: 386.35 | Y178: =IF(H178>S178,"하락","상승") -> 하락 | Z178: 385.55 | AA178: =IF(AND(Y177="상승",Z178>W177),"성공",IF(AND(Y177="하락",Z178<W177),"성공",IF(AND(Y177="상승",Z178=W177),"동일가",IF(AND(Y177="하락",Z178=W177),"동일가","실패")))) -> 실패 | AB178: =S178/H178-1 -> -0.4619836885
B179: 2024-07-01 | C179: 15:35:00 | D179: 10097 | E179: 1766 | F179: 15986 | G179: 2950 | H179: 5889 | I179: 386.75 | J179: -0.2984574928 | K179: 4.973817568 | M179: 2024-07-01 | N179: 15:45:00 | O179: 7446 | P179: 1240 | Q179: 10460 | R179: 1909 | S179: 3014 | T179: 386.7 | U179: -0.5255301712 | V179: 4.505231689 | W179: 386.7 | Y179: =IF(H179>S179,"하락","상승") -> 하락 | Z179: 384.3 | AA179: =IF(AND(Y178="상승",Z179>W178),"성공",IF(AND(Y178="하락",Z179<W178),"성공",IF(AND(Y178="상승",Z179=W178),"동일가",IF(AND(Y178="하락",Z179=W178),"동일가","실패")))) -> 성공 | AB179: =S179/H179-1 -> -0.4881983359
B180: 2024-07-02 | C180: 15:35:00 | D180: 14828 | E180: 2274 | F180: 11980 | G180: 2044 | H180: -2848 | I180: 383.8 | J180: -0.6596116742 | K180: 12.3826087 | M180: 2024-07-02 | N180: 15:45:00 | O180: 11763 | P180: 1575 | Q180: 10979 | R180: 1691 | S180: -784 | T180: 383.5 | U180: -0.9759635043 | V180: -6.75862069 | W180: 383.5 | Y180: =IF(H180>S180,"하락","상승") -> 상승 | Z180: 384.2 | AA180: =IF(AND(Y179="상승",Z180>W179),"성공",IF(AND(Y179="하락",Z180<W179),"성공",IF(AND(Y179="상승",Z180=W179),"동일가",IF(AND(Y179="하락",Z180=W179),"동일가","실패")))) -> 성공 | AB180: =S180/H180-1 -> -0.7247191011
B181: 2024-07-03 | C181: 15:35:00 | D181: 13090 | E181: 2295 | F181: 12716 | G181: 2461 | H181: -374 | I181: 385.4 | J181: -0.5366984213 | K181: -2.253012048 | M181: 2024-07-03 | N181: 15:45:00 | O181: 10180 | P181: 1743 | Q181: 10281 | R181: 1737 | S181: 101 | T181: 385.3 | U181: 0.07832068466 | V181: -16.83333333 | W181: 385.3 | Y181: =IF(H181>S181,"하락","상승") -> 상승 | Z181: 386 | AA181: =IF(AND(Y180="상승",Z181>W180),"성공",IF(AND(Y180="하락",Z181<W180),"성공",IF(AND(Y180="상승",Z181=W180),"동일가",IF(AND(Y180="하락",Z181=W180),"동일가","실패")))) -> 성공 | AB181: =S181/H181-1 -> -1.270053476
B182: 2024-07-04 | C182: 15:35:00 | D182: 8417 | E182: 1152 | F182: 23460 | G182: 3881 | H182: 15043 | I182: 391.05 | J182: -1.261589805 | K182: 5.512275559 | M182: 2024-07-04 | N182: 15:45:00 | O182: 10711 | P182: 1159 | Q182: 15696 | R182: 1871 | S182: 4985 | T182: 391.05 | U182: -0.8524908358 | V182: 7.001404494 | W182: 391.05 | Y182: =IF(H182>S182,"하락","상승") -> 하락 | Z182: 388.7 | AA182: =IF(AND(Y181="상승",Z182>W181),"성공",IF(AND(Y181="하락",Z182<W181),"성공",IF(AND(Y181="상승",Z182=W181),"동일가",IF(AND(Y181="하락",Z182=W181),"동일가","실패")))) -> 성공 | AB182: =S182/H182-1 -> -0.6686166323
B183: 2024-07-05 | C183: 15:35:00 | D183: 8790 | E183: 1735 | F183: 17307 | G183: 2985 | H183: 8517 | I183: 398.1 | J183: 0.731707529 | K183: 6.8136 | M183: 2024-07-05 | N183: 15:45:00 | O183: 8579 | P183: 1030 | Q183: 14130 | R183: 1861 | S183: 5551 | T183: 398 | U183: -0.7364341126 | V183: 6.67990373 | W183: 398 | Y183: =IF(H183>S183,"하락","상승") -> 하락 | Z183: 390.7 | AA183: =IF(AND(Y182="상승",Z183>W182),"성공",IF(AND(Y182="하락",Z183<W182),"성공",IF(AND(Y182="상승",Z183=W182),"동일가",IF(AND(Y182="하락",Z183=W182),"동일가","실패")))) -> 성공 | AB183: =S183/H183-1 -> -0.3482446871
B184: 2024-07-08 | C184: 15:35:00 | D184: 14498 | E184: 2367 | F184: 10190 | G184: 1764 | H184: -4308 | I184: 396.6 | J184: -0.3484088185 | K184: 7.144278607 | M184: 2024-07-08 | N184: 15:45:00 | O184: 12219 | P184: 1420 | Q184: 11720 | R184: 1283 | S184: -499 | T184: 396.7 | U184: 0.5299106408 | V184: 3.642335766 | W184: 396.7 | Y184: =IF(H184>S184,"하락","상승") -> 상승 | Z184: 397.1 | AA184: =IF(AND(Y183="상승",Z184>W183),"성공",IF(AND(Y183="하락",Z184<W183),"성공",IF(AND(Y183="상승",Z184=W183),"동일가",IF(AND(Y183="하락",Z184=W183),"동일가","실패")))) -> 성공 | AB184: =S184/H184-1 -> -0.8841689879
B185: 2024-07-09 | C185: 15:35:00 | D185: 12418 | E185: 2026 | F185: 17116 | G185: 2935 | H185: 4698 | I185: 397.95 | J185: -0.2976323131 | K185: 5.168316832 | M185: 2024-07-09 | N185: 15:45:00 | O185: 10355 | P185: 1341 | Q185: 12951 | R185: 1350 | S185: 2596 | T185: 398.05 | U185: 1.871483967 | V185: 288.4444444 | W185: 398.05 | Y185: =IF(H185>S185,"하락","상승") -> 하락 | Z185: 398.9 | AA185: =IF(AND(Y184="상승",Z185>W184),"성공",IF(AND(Y184="하락",Z185<W184),"성공",IF(AND(Y184="상승",Z185=W184),"동일가",IF(AND(Y184="하락",Z185=W184),"동일가","실패")))) -> 성공 | AB185: =S185/H185-1 -> -0.4474244359
B186: 2024-07-10 | C186: 15:35:00 | D186: 10709 | E186: 1634 | F186: 18390 | G186: 3106 | H186: 7681 | I186: 398.2 | J186: -0.6330571146 | K186: 5.218070652 | M186: 2024-07-10 | N186: 15:45:00 | O186: 7657 | P186: 1020 | Q186: 11034 | R186: 1692 | S186: 3377 | T186: 398.35 | U186: -0.9855861494 | V186: 5.025297619 | W186: 398.35 | Y186: =IF(H186>S186,"하락","상승") -> 하락 | Z186: 396.5 | AA186: =IF(AND(Y185="상승",Z186>W185),"성공",IF(AND(Y185="하락",Z186<W185),"성공",IF(AND(Y185="상승",Z186=W185),"동일가",IF(AND(Y185="하락",Z186=W185),"동일가","실패")))) -> 성공 | AB186: =S186/H186-1 -> -0.5603437052
B187: 2024-07-11 | C187: 15:35:00 | D187: 12811 | E187: 2136 | F187: 12818 | G187: 2004 | H187: 7 | I187: 400.4 | J187: 0.3985484088 | K187: -0.05303030303 | M187: 2024-07-11 | N187: 15:45:00 | O187: 12842 | P187: 1657 | Q187: 11395 | R187: 1128 | S187: -1447 | T187: 400.55 | U187: 2.35179948 | V187: 2.735349716 | W187: 400.55 | Y187: =IF(H187>S187,"하락","상승") -> 하락 | Z187: 401.7 | AA187: =IF(AND(Y186="상승",Z187>W186),"성공",IF(AND(Y186="하락",Z187<W186),"성공",IF(AND(Y186="상승",Z187=W186),"동일가",IF(AND(Y186="하락",Z187=W186),"동일가","실패")))) -> 실패 | AB187: =S187/H187-1 -> -207.7142857
B188: 2024-07-12 | C188: 15:35:00 | D188: 13444 | E188: 2298 | F188: 11115 | G188: 1842 | H188: -2329 | I188: 395.25 | J188: 0.1838973417 | K188: 5.10745614 | M188: 2024-07-12 | N188: 15:45:00 | O188: 10931 | P188: 1345 | Q188: 10437 | R188: 1420 | S188: -494 | T188: 395.25 | U188: -0.7771375465 | V188: -6.586666667 | W188: 395.25 | Y188: =IF(H188>S188,"하락","상승") -> 상승 | Z188: 396.25 | AA188: =IF(AND(Y187="상승",Z188>W187),"성공",IF(AND(Y187="하락",Z188<W187),"성공",IF(AND(Y187="상승",Z188=W187),"동일가",IF(AND(Y187="하락",Z188=W187),"동일가","실패")))) -> 성공 | AB188: =S188/H188-1 -> -0.7878917991
B189: 2024-07-15 | C189: 15:35:00 | D189: 11862 | E189: 1427 | F189: 14344 | G189: 2268 | H189: 2482 | I189: 397.15 | J189: -1.988028807 | K189: 2.951248514 | M189: 2024-07-15 | N189: 15:45:00 | O189: 10377 | P189: 1126 | Q189: 12574 | R189: 1670 | S189: 2197 | T189: 397.25 | U189: -1.686466853 | V189: 4.038602941 | W189: 397.25 | Y189: =IF(H189>S189,"하락","상승") -> 하락 | Z189: 396.6 | AA189: =IF(AND(Y188="상승",Z189>W188),"성공",IF(AND(Y188="하락",Z189<W188),"성공",IF(AND(Y188="상승",Z189=W188),"동일가",IF(AND(Y188="하락",Z189=W188),"동일가","실패")))) -> 성공 | AB189: =S189/H189-1 -> -0.1148267526
B190: 2024-07-16 | C190: 15:35:00 | D190: 10580 | E190: 1771 | F190: 19222 | G190: 3123 | H190: 8642 | I190: 397.3 | J190: 0.1809532127 | K190: 6.392011834 | M190: 2024-07-16 | N190: 15:45:00 | O190: 9914 | P190: 1304 | Q190: 15637 | R190: 1540 | S190: 5723 | T190: 397.2 | U190: 2.551135368 | V190: 24.25 | W190: 397.2 | Y190: =IF(H190>S190,"하락","상승") -> 하락 | Z190: 395.55 | AA190: =IF(AND(Y189="상승",Z190>W189),"성공",IF(AND(Y189="하락",Z190<W189),"성공",IF(AND(Y189="상승",Z190=W189),"동일가",IF(AND(Y189="하락",Z190=W189),"동일가","실패")))) -> 성공 | AB190: =S190/H190-1 -> -0.3377690349
B191: 2024-07-17 | C191: 15:35:00 | D191: 18861 | E191: 3038 | F191: 7731 | G191: 1214 | H191: -11130 | I191: 394.15 | J191: 0.1598435197 | K191: 6.101973684 | M191: 2024-07-17 | N191: 15:45:00 | O191: 14408 | P191: 2035 | Q191: 10269 | R191: 1074 | S191: -4139 | T191: 394.2 | U191: 2.481354234 | V191: 4.306971904 | W191: 394.2 | Y191: =IF(H191>S191,"하락","상승") -> 상승 | Z191: 397.8 | AA191: =IF(AND(Y190="상승",Z191>W190),"성공",IF(AND(Y190="하락",Z191<W190),"성공",IF(AND(Y190="상승",Z191=W190),"동일가",IF(AND(Y190="하락",Z191=W190),"동일가","실패")))) -> 실패 | AB191: =S191/H191-1 -> -0.6281221923
B192: 2024-07-18 | C192: 15:35:00 | D192: 11123 | E192: 1429 | F192: 11006 | G192: 1823 | H192: -117 | I192: 390.5 | J192: -1.746463719 | K192: -0.2969543147 | M192: 2024-07-18 | N192: 15:45:00 | O192: 10849 | P192: 1039 | Q192: 11350 | R192: 1764 | S192: 501 | T192: 390.3 | U192: -4.007530571 | V192: 0.6910344828 | W192: 390.3 | Y192: =IF(H192>S192,"하락","상승") -> 상승 | Z192: 390 | AA192: =IF(AND(Y191="상승",Z192>W191),"성공",IF(AND(Y191="하락",Z192<W191),"성공",IF(AND(Y191="상승",Z192=W191),"동일가",IF(AND(Y191="하락",Z192=W191),"동일가","실패")))) -> 실패 | AB192: =S192/H192-1 -> -5.282051282
B193: 2024-07-19 | C193: 15:35:00 | D193: 13792 | E193: 2155 | F193: 10703 | G193: 1729 | H193: -3089 | I193: 386.1 | J193: -0.2097165992 | K193: 7.251173709 | M193: 2024-07-19 | N193: 15:45:00 | O193: 11166 | P193: 1345 | Q193: 9320 | R193: 1258 | S193: -1846 | T193: 386 | U193: -0.8932736804 | V193: 21.2183908 | W193: 386 | Y193: =IF(H193>S193,"하락","상승") -> 상승 | Z193: 387.3 | AA193: =IF(AND(Y192="상승",Z193>W192),"성공",IF(AND(Y192="하락",Z193<W192),"성공",IF(AND(Y192="상승",Z193=W192),"동일가",IF(AND(Y192="하락",Z193=W192),"동일가","실패")))) -> 실패 | AB193: =S193/H193-1 -> -0.4023955973
B194: 2024-07-22 | C194: 15:35:00 | D194: 12752 | E194: 2320 | F194: 10983 | G194: 1740 | H194: -1769 | I194: 382.45 | J194: 0.8155172414 | K194: 3.05 | M194: 2024-07-22 | N194: 15:45:00 | O194: 13369 | P194: 1647 | Q194: 11593 | R194: 1539 | S194: -1776 | T194: 382.2 | U194: -0.5843692413 | V194: 16.44444444 | W194: 382.2 | Y194: =IF(H194>S194,"하락","상승") -> 하락 | Z194: 383.35 | AA194: =IF(AND(Y193="상승",Z194>W193),"성공",IF(AND(Y193="하락",Z194<W193),"성공",IF(AND(Y193="상승",Z194=W193),"동일가",IF(AND(Y193="하락",Z194=W193),"동일가","실패")))) -> 실패 | AB194: =S194/H194-1 -> 0.003957037875
B195: 2024-07-23 | C195: 15:35:00 | D195: 13441 | E195: 2258 | F195: 8996 | G195: 1460 | H195: -4445 | I195: 383.3 | J195: 0.2090309038 | K195: 5.570175439 | M195: 2024-07-23 | N195: 15:45:00 | O195: 11902 | P195: 1740 | Q195: 9640 | R195: 1084 | S195: -2262 | T195: 383.2 | U195: 2.052759045 | V195: 3.448170732 | W195: 383.2 | Y195: =IF(H195>S195,"하락","상승") -> 상승 | Z195: 384.5 | AA195: =IF(AND(Y194="상승",Z195>W194),"성공",IF(AND(Y194="하락",Z195<W194),"성공",IF(AND(Y194="상승",Z195=W194),"동일가",IF(AND(Y194="하락",Z195=W194),"동일가","실패")))) -> 실패 | AB195: =S195/H195-1 -> -0.4911136108
B196: 2024-07-24 | C196: 15:35:00 | D196: 13983 | E196: 2179 | F196: 12109 | G196: 1910 | H196: -1874 | I196: 380.8 | J196: -0.07737326071 | K196: 6.966542751 | M196: 2024-07-24 | N196: 15:45:00 | O196: 10825 | P196: 1289 | Q196: 10846 | R196: 1419 | S196: 21 | T196: 380.95 | U196: -0.7545720798 | V196: 0.1615384615 | W196: 380.95 | Y196: =IF(H196>S196,"하락","상승") -> 상승 | Z196: 380.25 | AA196: =IF(AND(Y195="상승",Z196>W195),"성공",IF(AND(Y195="하락",Z196<W195),"성공",IF(AND(Y195="상승",Z196=W195),"동일가",IF(AND(Y195="하락",Z196=W195),"동일가","실패")))) -> 실패 | AB196: =S196/H196-1 -> -1.011205977
B197: 2024-07-25 | C197: 15:35:00 | D197: 12763 | E197: 2287 | F197: 11187 | G197: 1911 | H197: -1576 | I197: 374.15 | J197: 0.2733297685 | K197: 4.191489362 | M197: 2024-07-25 | N197: 15:45:00 | O197: 11481 | P197: 1373 | Q197: 12819 | R197: 1637 | S197: 1338 | T197: 374.35 | U197: -0.5311930365 | V197: 5.068181818 | W197: 374.35 | Y197: =IF(H197>S197,"하락","상승") -> 상승 | Z197: 375.35 | AA197: =IF(AND(Y196="상승",Z197>W196),"성공",IF(AND(Y196="하락",Z197<W196),"성공",IF(AND(Y196="상승",Z197=W196),"동일가",IF(AND(Y196="하락",Z197=W196),"동일가","실패")))) -> 실패 | AB197: =S197/H197-1 -> -1.848984772
B198: 2024-07-26 | C198: 15:35:00 | D198: 9252 | E198: 1573 | F198: 14421 | G198: 2318 | H198: 5169 | I198: 375.8 | J198: 0.3395568664 | K198: 6.938255034 | M198: 2024-07-26 | N198: 15:45:00 | O198: 10222 | P198: 1330 | Q198: 11058 | R198: 1501 | S198: 836 | T198: 375.95 | U198: -0.3186256781 | V198: 4.888888889 | W198: 375.95 | Y198: =IF(H198>S198,"하락","상승") -> 하락 | Z198: 373.5 | AA198: =IF(AND(Y197="상승",Z198>W197),"성공",IF(AND(Y197="하락",Z198<W197),"성공",IF(AND(Y197="상승",Z198=W197),"동일가",IF(AND(Y197="하락",Z198=W197),"동일가","실패")))) -> 실패 | AB198: =S198/H198-1 -> -0.8382665893
B199: 2024-07-29 | C199: 15:35:00 | D199: 10671 | E199: 1757 | F199: 12896 | G199: 2207 | H199: 2225 | I199: 380.05 | J199: -0.2301945045 | K199: 4.944444444 | M199: 2024-07-29 | N199: 15:45:00 | O199: 9996 | P199: 1495 | Q199: 11184 | R199: 1340 | S199: 1188 | T199: 380.25 | U199: 1.659981031 | V199: -7.664516129 | W199: 380.25 | Y199: =IF(H199>S199,"하락","상승") -> 하락 | Z199: 378.95 | AA199: =IF(AND(Y198="상승",Z199>W198),"성공",IF(AND(Y198="하락",Z199<W198),"성공",IF(AND(Y198="상승",Z199=W198),"동일가",IF(AND(Y198="하락",Z199=W198),"동일가","실패")))) -> 실패 | AB199: =S199/H199-1 -> -0.4660674157
B200: 2024-07-30 | C200: 15:35:00 | D200: 14487 | E200: 1961 | F200: 12675 | G200: 2129 | H200: -1812 | I200: 376.8 | J200: -1.434058073 | K200: -10.78571429 | M200: 2024-07-30 | N200: 15:45:00 | O200: 10289 | P200: 1113 | Q200: 9834 | R200: 1476 | S200: -455 | T200: 376.9 | U200: -2.58178292 | V200: -1.253443526 | W200: 376.9 | Y200: =IF(H200>S200,"하락","상승") -> 상승 | Z200: 375.9 | AA200: =IF(AND(Y199="상승",Z200>W199),"성공",IF(AND(Y199="하락",Z200<W199),"성공",IF(AND(Y199="상승",Z200=W199),"동일가",IF(AND(Y199="하락",Z200=W199),"동일가","실패")))) -> 성공 | AB200: =S200/H200-1 -> -0.7488962472
... 75 more rows
